Body Name,Invoice Date,Department Code,Department,Expense Area Code,Expense Area,Expense Type Code,Expense Type,Amt Paid (�'s),Supplier Name,Extended Description,Transaction Number,Period,"Grants to Voluntary, Community and Social Enterprise Organisations"
Rother District Council,28/02/2019,091HOUSING,Housing and Community Services,20200,Housing Needs - HB (Housing Benefit),D2513,Hired and Contracted services,100.00,NowMedical,Accommodation Costs Homelessness services B and B Medical Costs,2008175,201812,
Rother District Council,18/03/2019,091HOUSING,Housing and Community Services,20200,Housing Needs - HB (Housing Benefit),D2514,Accommodation Costs,150.00,Stamford Storage Solutions,Accommodation Costs Homelessness services BandB Removals,2008419,201812,
Rother District Council,18/03/2019,091HOUSING,Housing and Community Services,20200,Housing Needs - HB (Housing Benefit),D2514,Accommodation Costs,160.00,Stamford Storage Solutions,Accommodation Costs Homelessness services BandB Removals,2008420,201812,
Rother District Council,18/03/2019,091HOUSING,Housing and Community Services,20200,Housing Needs - HB (Housing Benefit),D2514,Accommodation Costs,260.00,Stamford Storage Solutions,Accommodation Costs Homelessness services BandB Removals,2008421,201812,
Rother District Council,18/03/2019,091HOUSING,Housing and Community Services,20200,Housing Needs - HB (Housing Benefit),D2514,Accommodation Costs,80.00,Stamford Storage Solutions,Accommodation Costs Homelessness services BandB Removals,2008422,201812,
Rother District Council,12/03/2019,091HOUSING,Housing and Community Services,20205,Housing Loans Account,D2514,Accommodation Costs,425.00,East Sussex School of Performing Arts Ltd,Accommodation Costs Homelessness services Deposit for Landlords,2008571,201812,
Rother District Council,08/01/2019,091HOUSING,Housing and Community Services,20109,Sports Development,D2927,Services Facilitated by External Grants,100.00,Adam Field,Services Facilitated by External Grants -Active Sussex Project workforce dev.,2006865,201810,
Rother District Council,25/02/2019,091HOUSING,Housing and Community Services,20205,Housing Loans Account,D2514,Accommodation Costs,"1,150.00",Domaines Investments Ltd,Accommodation Costs Homelessness services Deposit for Landlords,2007939,201812,
Rother District Council,01/02/2019,091HOUSING,Housing and Community Services,20205,Housing Loans Account,D2514,Accommodation Costs,420.00,JS Developments,Accommodation Costs Homelessness services Deposit for Landlords,2007845,201811,
Rother District Council,07/02/2019,091HOUSING,Housing and Community Services,20205,Housing Loans Account,D2514,Accommodation Costs,750.00,Oakfield Property Management Ltd,Accommodation Costs Homelessness services Deposit for Landlords,2007847,201811,
Rother District Council,19/03/2019,091HOUSING,Housing and Community Services,20205,Housing Loans Account,D2514,Accommodation Costs,500.00,Alec Galloway,Accommodation Costs Homelessness services Deposit for Landlords,2008574,201812,
Rother District Council,20/12/2018,091HOUSING,Housing and Community Services,20205,Housing Loans Account,D2514,Accommodation Costs,795.00,The Property Cafe,Accommodation Costs Homelessness services Deposit for Landlords,2006787,201810,
Rother District Council,04/01/2019,091HOUSING,Housing and Community Services,20205,Housing Loans Account,D2514,Accommodation Costs,600.00,Northwood Hastings Ltd,Accommodation Costs Homelessness services Deposit for Landlords,2006808,201810,
Rother District Council,21/12/2018,091HOUSING,Housing and Community Services,20205,Housing Loans Account,D2514,Accommodation Costs,455.00,Pride n Property,Accommodation Costs Homelessness services Deposit for Landlords,2006802,201810,
Rother District Council,29/11/2018,091HOUSING,Housing and Community Services,20205,Housing Loans Account,D2514,Accommodation Costs,775.00,Star Property Investment & Management Ltd,Accommodation Costs Homelessness services Deposit for Landlords,2006804,201810,
Rother District Council,20/12/2018,091HOUSING,Housing and Community Services,20205,Housing Loans Account,D2514,Accommodation Costs,750.00,JFS Properties,Accommodation Costs Homelessness services Deposit for Landlords,2006805,201810,
Rother District Council,19/03/2019,091HOUSING,Housing and Community Services,20205,Housing Loans Account,D2514,Accommodation Costs,500.00,Alec Galloway,Accommodation Costs Homelessness services Rent in Advance for Homeless,2008574,201812,
Rother District Council,21/03/2019,091HOUSING,Housing and Community Services,20206,Syrians,D2513,Hired and Contracted services,366.53,Beja Morrison,Hired and contracted services Syrian Resettlement Programme - Rent,2008525,201812,
Rother District Council,21/03/2019,091HOUSING,Housing and Community Services,20206,Syrians,D2513,Hired and Contracted services,850.00,Beja Morrison,Hired and contracted services Syrian Resettlement Programme - Rent,2008524,201812,
Rother District Council,04/02/2019,091HOUSING,Housing and Community Services,20109,Sports Development,D2923,Grants made,"3,250.00",Dr Nicola O'Brien,Grants made Sports Development - Active Rother,2007372,201811,Yes
Rother District Council,18/01/2019,091HOUSING,Housing and Community Services,20206,Syrians,D2513,Hired and Contracted services,"1,100.00",John King,Hired and contracted services Syrian Resettlement Programme - Rent,2007069,201810,
Rother District Council,13/03/2019,091HOUSING,Housing and Community Services,20205,Housing Loans Account,D2514,Accommodation Costs,"1,523.00",Phillips and Stubbs,Accommodation Costs Homelessness services Deposit for Landlords,2008362,201812,
Rother District Council,12/03/2019,091HOUSING,Housing and Community Services,20205,Housing Loans Account,D2514,Accommodation Costs,200.00,Get a Room Online Limited,Accommodation Costs Homelessness services Deposit for Landlords,2008399,201812,
Rother District Council,19/02/2019,091HOUSING,Housing and Community Services,20206,Syrians,D2513,Hired and Contracted services,"4,732.45",John King,Hired and contracted services Syrian Resettlement Programme - Rent,2007743,201811,
Rother District Council,04/03/2019,031RESOURCES,Executive Directors & Corporate Core,20183,Executive Directors,D2513,Hired and Contracted services,240.63,REDACTED PERSONAL DATA,Hired and contracted services Service fee paid,2008076,201812,
Rother District Council,12/03/2019,091HOUSING,Housing and Community Services,20205,Housing Loans Account,D2514,Accommodation Costs,425.00,East Sussex School of Performing Arts Ltd,Accommodation Costs Homelessness services Rent in Advance for Homeless,2008571,201812,
Rother District Council,19/12/2018,041ENVIRON,Environmental Services,20130,Crime and Disorder Initiatives,D1201,Equipment & Materials,"5,290.00",M. Mason,Equipment & Materials - Safer Rother Partnership,2007705,201811,
Rother District Council,25/02/2019,091HOUSING,Housing and Community Services,20205,Housing Loans Account,D2514,Accommodation Costs,"1,150.00",Domaines Investments Ltd,Accommodation Costs Homelessness services Rent in Advance for Homeless,2007939,201812,
Rother District Council,01/02/2019,091HOUSING,Housing and Community Services,20205,Housing Loans Account,D2514,Accommodation Costs,420.00,JS Developments,Accommodation Costs Homelessness services Rent in Advance for Homeless,2007845,201811,
Rother District Council,18/01/2019,031RESOURCES,Executive Directors & Corporate Core,20159,Corporate Policy Making,D2509,Consultants and Other Services,363.00,Margaret Sandra,Consultants and Other Services Consultants Fees,2007016,201810,
Rother District Council,20/12/2018,091HOUSING,Housing and Community Services,20205,Housing Loans Account,D2514,Accommodation Costs,795.00,The Property Cafe,Accommodation Costs Homelessness services Rent in Advance for Homeless,2006787,201810,
Rother District Council,04/01/2019,091HOUSING,Housing and Community Services,20205,Housing Loans Account,D2514,Accommodation Costs,600.00,Northwood Hastings Ltd,Accommodation Costs Homelessness services Rent in Advance for Homeless,2006808,201810,
Rother District Council,21/12/2018,091HOUSING,Housing and Community Services,20205,Housing Loans Account,D2514,Accommodation Costs,445.00,Pride n Property,Accommodation Costs Homelessness services Rent in Advance for Homeless,2006802,201810,
Rother District Council,29/11/2018,091HOUSING,Housing and Community Services,20205,Housing Loans Account,D2514,Accommodation Costs,525.00,Star Property Investment & Management Ltd,Accommodation Costs Homelessness services Rent in Advance for Homeless,2006804,201810,
Rother District Council,20/12/2018,091HOUSING,Housing and Community Services,20205,Housing Loans Account,D2514,Accommodation Costs,750.00,JFS Properties,Accommodation Costs Homelessness services Rent in Advance for Homeless,2006805,201810,
Rother District Council,20/12/2018,999NOREPORT,Resources,90000,Balance sheet all accounts,T1001,Advances of Pay,126.40,REDACTED PERSONAL DATA,Advances of Pay,2006770,201810,
Rother District Council,31/01/2019,091HOUSING,Housing and Community Services,20205,Housing Loans Account,D2514,Accommodation Costs,850.00,Miss J.E. Robinson,Accommodation Costs Homelessness services Deposit for Landlords,2007932,201812,
Rother District Council,08/01/2019,091HOUSING,Housing and Community Services,20205,Housing Loans Account,D2514,Accommodation Costs,"5,305.00",Phillips and Stubbs,Accommodation Costs Homelessness services Rent in Advance for Homeless,2007102,201810,
Rother District Council,31/01/2019,091HOUSING,Housing and Community Services,20205,Housing Loans Account,D2514,Accommodation Costs,"1,700.00",Miss J.E. Robinson,Accommodation Costs Homelessness services Rent in Advance for Homeless,2007932,201812,
Rother District Council,22/01/2019,091HOUSING,Housing and Community Services,20205,Housing Loans Account,D2514,Accommodation Costs,650.00,Miss Roseanna Pointer,Accommodation Costs Homelessness services Deposit for Landlords,2007130,201810,
Rother District Council,22/01/2019,091HOUSING,Housing and Community Services,20205,Housing Loans Account,D2514,Accommodation Costs,475.00,Oakfield Property Management Ltd,Accommodation Costs Homelessness services Rent in Advance for Homeless,2007249,201810,
Rother District Council,22/01/2019,091HOUSING,Housing and Community Services,20205,Housing Loans Account,D2514,Accommodation Costs,650.00,Miss Roseanna Pointer,Accommodation Costs Homelessness services Rent in Advance for Homeless,2007130,201810,
Rother District Council,13/03/2019,091HOUSING,Housing and Community Services,20205,Housing Loans Account,D2514,Accommodation Costs,"1,100.00",Phillips and Stubbs,Accommodation Costs Homelessness services Rent in Advance for Homeless,2008362,201812,
Rother District Council,12/03/2019,091HOUSING,Housing and Community Services,20205,Housing Loans Account,D2514,Accommodation Costs,550.00,Get a Room Online Limited,Accommodation Costs Homelessness services Rent in Advance for Homeless,2008399,201812,
Rother District Council,08/02/2019,091HOUSING,Housing and Community Services,20205,Housing Loans Account,D2514,Accommodation Costs,"1,635.00",Mr & Mrs Valenzuela,Accommodation Costs Homelessness services Deposit for Landlords,2007731,201811,
Rother District Council,08/02/2019,091HOUSING,Housing and Community Services,20205,Housing Loans Account,D2514,Accommodation Costs,800.00,Mr & Mrs Valenzuela,Accommodation Costs Homelessness services Rent in Advance for Homeless,2007731,201811,
Rother District Council,25/03/2019,091HOUSING,Housing and Community Services,20200,Housing Needs - HB (Housing Benefit),D2514,Accommodation Costs,45.20,South Down Residential Ltd,Accommodation Costs Homelessness services Temp Accom - No VAT,2008557,201812,
Rother District Council,25/03/2019,091HOUSING,Housing and Community Services,20200,Housing Needs - HB (Housing Benefit),D2514,Accommodation Costs,142.80,South Down Residential Ltd,Accommodation Costs Homelessness services Temp Accom - No VAT,2008557,201812,
Rother District Council,25/03/2019,091HOUSING,Housing and Community Services,20200,Housing Needs - HB (Housing Benefit),D2514,Accommodation Costs,268.80,South Down Residential Ltd,Accommodation Costs Homelessness services Temp Accom - No VAT,2008557,201812,
Rother District Council,25/03/2019,091HOUSING,Housing and Community Services,20200,Housing Needs - HB (Housing Benefit),D2514,Accommodation Costs,364.00,South Down Residential Ltd,Accommodation Costs Homelessness services Temp Accom - No VAT,2008557,201812,
Rother District Council,18/03/2019,091HOUSING,Housing and Community Services,20200,Housing Needs - HB (Housing Benefit),D2514,Accommodation Costs,316.40,South Down Residential Ltd,Accommodation Costs Homelessness services Temp Accom - No VAT,2008406,201812,
Rother District Council,18/03/2019,091HOUSING,Housing and Community Services,20200,Housing Needs - HB (Housing Benefit),D2514,Accommodation Costs,142.80,South Down Residential Ltd,Accommodation Costs Homelessness services Temp Accom - No VAT,2008406,201812,
Rother District Council,18/03/2019,091HOUSING,Housing and Community Services,20200,Housing Needs - HB (Housing Benefit),D2514,Accommodation Costs,268.80,South Down Residential Ltd,Accommodation Costs Homelessness services Temp Accom - No VAT,2008406,201812,
Rother District Council,18/03/2019,091HOUSING,Housing and Community Services,20200,Housing Needs - HB (Housing Benefit),D2514,Accommodation Costs,364.00,South Down Residential Ltd,Accommodation Costs Homelessness services Temp Accom - No VAT,2008406,201812,
Rother District Council,25/03/2019,091HOUSING,Housing and Community Services,20200,Housing Needs - HB (Housing Benefit),D2514,Accommodation Costs,142.80,South Down Residential Ltd,Accommodation Costs Homelessness services Temp Accom - No VAT,2008557,201812,
Rother District Council,25/03/2019,091HOUSING,Housing and Community Services,20200,Housing Needs - HB (Housing Benefit),D2514,Accommodation Costs,347.20,South Down Residential Ltd,Accommodation Costs Homelessness services Temp Accom - No VAT,2008557,201812,
Rother District Council,18/03/2019,091HOUSING,Housing and Community Services,20200,Housing Needs - HB (Housing Benefit),D2514,Accommodation Costs,142.80,South Down Residential Ltd,Accommodation Costs Homelessness services Temp Accom - No VAT,2008406,201812,
Rother District Council,18/03/2019,091HOUSING,Housing and Community Services,20200,Housing Needs - HB (Housing Benefit),D2514,Accommodation Costs,198.40,South Down Residential Ltd,Accommodation Costs Homelessness services Temp Accom - No VAT,2008406,201812,
Rother District Council,18/03/2019,091HOUSING,Housing and Community Services,20200,Housing Needs - HB (Housing Benefit),D2514,Accommodation Costs,392.00,Solutions Accommodation Providers Ltd,Accommodation Costs Homelessness services Temp Accom - No VAT,2008463,201812,
Rother District Council,18/03/2019,091HOUSING,Housing and Community Services,20200,Housing Needs - HB (Housing Benefit),D2514,Accommodation Costs,336.00,Solutions Accommodation Providers Ltd,Accommodation Costs Homelessness services Temp Accom - No VAT,2008464,201812,
Rother District Council,18/03/2019,091HOUSING,Housing and Community Services,20200,Housing Needs - HB (Housing Benefit),D2514,Accommodation Costs,392.00,Solutions Accommodation Providers Ltd,Accommodation Costs Homelessness services Temp Accom - No VAT,2008465,201812,
Rother District Council,18/03/2019,091HOUSING,Housing and Community Services,20200,Housing Needs - HB (Housing Benefit),D2514,Accommodation Costs,392.00,Solutions Accommodation Providers Ltd,Accommodation Costs Homelessness services Temp Accom - No VAT,2008466,201812,
Rother District Council,21/12/2018,031RESOURCES,Executive Directors & Corporate Core,20159,Corporate Policy Making,D2509,Consultants and Other Services,389.10,Mr Edward Stone,Consultants and Other Services Consultants Fees,2006611,201810,
Rother District Council,04/03/2019,091HOUSING,Housing and Community Services,20200,Housing Needs - HB (Housing Benefit),D2514,Accommodation Costs,316.40,South Down Residential Ltd,Accommodation Costs Homelessness services Temp Accom - No VAT,2008066,201812,
Rother District Council,04/03/2019,091HOUSING,Housing and Community Services,20200,Housing Needs - HB (Housing Benefit),D2514,Accommodation Costs,142.80,South Down Residential Ltd,Accommodation Costs Homelessness services Temp Accom - No VAT,2008066,201812,
Rother District Council,04/03/2019,091HOUSING,Housing and Community Services,20200,Housing Needs - HB (Housing Benefit),D2514,Accommodation Costs,142.80,South Down Residential Ltd,Accommodation Costs Homelessness services Temp Accom - No VAT,2008066,201812,
Rother District Council,04/03/2019,091HOUSING,Housing and Community Services,20200,Housing Needs - HB (Housing Benefit),D2514,Accommodation Costs,115.20,South Down Residential Ltd,Accommodation Costs Homelessness services Temp Accom - No VAT,2008066,201812,
Rother District Council,04/03/2019,091HOUSING,Housing and Community Services,20200,Housing Needs - HB (Housing Benefit),D2514,Accommodation Costs,48.00,South Down Residential Ltd,Accommodation Costs Homelessness services Temp Accom - No VAT,2008066,201812,
Rother District Council,18/03/2019,091HOUSING,Housing and Community Services,20200,Housing Needs - HB (Housing Benefit),D2514,Accommodation Costs,280.00,Solutions Accommodation Providers Ltd,Accommodation Costs Homelessness services Temp Accom - No VAT,2008459,201812,
Rother District Council,18/03/2019,091HOUSING,Housing and Community Services,20200,Housing Needs - HB (Housing Benefit),D2514,Accommodation Costs,145.60,Solutions Accommodation Providers Ltd,Accommodation Costs Homelessness services Temp Accom - No VAT,2008460,201812,
Rother District Council,18/03/2019,091HOUSING,Housing and Community Services,20200,Housing Needs - HB (Housing Benefit),D2514,Accommodation Costs,392.00,Solutions Accommodation Providers Ltd,Accommodation Costs Homelessness services Temp Accom - No VAT,2008461,201812,
Rother District Council,18/03/2019,091HOUSING,Housing and Community Services,20200,Housing Needs - HB (Housing Benefit),D2514,Accommodation Costs,144.00,Solutions Accommodation Providers Ltd,Accommodation Costs Homelessness services Temp Accom - No VAT,2008462,201812,
Rother District Council,11/03/2019,091HOUSING,Housing and Community Services,20200,Housing Needs - HB (Housing Benefit),D2514,Accommodation Costs,316.40,South Down Residential Ltd,Accommodation Costs Homelessness services Temp Accom - No VAT,2008238,201812,
Rother District Council,11/03/2019,091HOUSING,Housing and Community Services,20200,Housing Needs - HB (Housing Benefit),D2514,Accommodation Costs,142.80,South Down Residential Ltd,Accommodation Costs Homelessness services Temp Accom - No VAT,2008238,201812,
Rother District Council,11/03/2019,091HOUSING,Housing and Community Services,20200,Housing Needs - HB (Housing Benefit),D2514,Accommodation Costs,142.80,South Down Residential Ltd,Accommodation Costs Homelessness services Temp Accom - No VAT,2008238,201812,
Rother District Council,11/03/2019,091HOUSING,Housing and Community Services,20200,Housing Needs - HB (Housing Benefit),D2514,Accommodation Costs,268.80,South Down Residential Ltd,Accommodation Costs Homelessness services Temp Accom - No VAT,2008238,201812,
Rother District Council,11/03/2019,091HOUSING,Housing and Community Services,20200,Housing Needs - HB (Housing Benefit),D2514,Accommodation Costs,312.00,South Down Residential Ltd,Accommodation Costs Homelessness services Temp Accom - No VAT,2008238,201812,
Rother District Council,11/03/2019,091HOUSING,Housing and Community Services,20200,Housing Needs - HB (Housing Benefit),D2514,Accommodation Costs,81.60,South Down Residential Ltd,Accommodation Costs Homelessness services Temp Accom - No VAT,2008238,201812,
Rother District Council,05/02/2019,091HOUSING,Housing and Community Services,20205,Housing Loans Account,D2514,Accommodation Costs,695.00,Mr Giovanni Di Paolo,Accommodation Costs Homelessness services Deposit for Landlords,2007508,201811,
Rother District Council,01/03/2019,091HOUSING,Housing and Community Services,20200,Housing Needs - HB (Housing Benefit),D2514,Accommodation Costs,"1,610.00",UK Room Imperial,Accommodation costs Homelessness services Temp Accom - plus VAT,2007968,201812,
Rother District Council,01/03/2019,091HOUSING,Housing and Community Services,20200,Housing Needs - HB (Housing Benefit),D2514,Accommodation Costs,"1,330.00",UK Room Imperial,Accommodation costs Homelessness services Temp Accom - plus VAT,2007968,201812,
Rother District Council,01/03/2019,091HOUSING,Housing and Community Services,20200,Housing Needs - HB (Housing Benefit),D2514,Accommodation Costs,"1,890.00",UK Room Imperial,Accommodation costs Homelessness services Temp Accom - plus VAT,2007968,201812,
Rother District Council,01/03/2019,091HOUSING,Housing and Community Services,20200,Housing Needs - HB (Housing Benefit),D2514,Accommodation Costs,"1,610.00",UK Room Imperial,Accommodation costs Homelessness services Temp Accom - plus VAT,2007968,201812,
Rother District Council,01/03/2019,091HOUSING,Housing and Community Services,20200,Housing Needs - HB (Housing Benefit),D2514,Accommodation Costs,"1,610.00",UK Room Imperial,Accommodation costs Homelessness services Temp Accom - plus VAT,2007968,201812,
Rother District Council,01/03/2019,091HOUSING,Housing and Community Services,20200,Housing Needs - HB (Housing Benefit),D2514,Accommodation Costs,"1,610.00",UK Room Imperial,Accommodation costs Homelessness services Temp Accom - plus VAT,2007968,201812,
Rother District Council,01/03/2019,091HOUSING,Housing and Community Services,20200,Housing Needs - HB (Housing Benefit),D2514,Accommodation Costs,"1,610.00",UK Room Imperial,Accommodation costs Homelessness services Temp Accom - plus VAT,2007968,201812,
Rother District Council,01/03/2019,091HOUSING,Housing and Community Services,20200,Housing Needs - HB (Housing Benefit),D2514,Accommodation Costs,"1,330.00",UK Room Imperial,Accommodation costs Homelessness services Temp Accom - plus VAT,2007968,201812,
Rother District Council,01/03/2019,091HOUSING,Housing and Community Services,20200,Housing Needs - HB (Housing Benefit),D2514,Accommodation Costs,"1,330.00",UK Room Investco,Accommodation costs Homelessness services Temp Accom - plus VAT,2007969,201812,
Rother District Council,25/03/2019,091HOUSING,Housing and Community Services,20200,Housing Needs - HB (Housing Benefit),D2514,Accommodation Costs,11.30,South Down Residential Ltd,Accommodation costs Homelessness services Temp Accom - plus VAT,2008557,201812,
Rother District Council,25/03/2019,091HOUSING,Housing and Community Services,20200,Housing Needs - HB (Housing Benefit),D2514,Accommodation Costs,35.70,South Down Residential Ltd,Accommodation costs Homelessness services Temp Accom - plus VAT,2008557,201812,
Rother District Council,25/03/2019,091HOUSING,Housing and Community Services,20200,Housing Needs - HB (Housing Benefit),D2514,Accommodation Costs,67.20,South Down Residential Ltd,Accommodation costs Homelessness services Temp Accom - plus VAT,2008557,201812,
Rother District Council,18/03/2019,091HOUSING,Housing and Community Services,20200,Housing Needs - HB (Housing Benefit),D2514,Accommodation Costs,79.10,South Down Residential Ltd,Accommodation costs Homelessness services Temp Accom - plus VAT,2008406,201812,
Rother District Council,18/03/2019,091HOUSING,Housing and Community Services,20200,Housing Needs - HB (Housing Benefit),D2514,Accommodation Costs,35.70,South Down Residential Ltd,Accommodation costs Homelessness services Temp Accom - plus VAT,2008406,201812,
Rother District Council,18/03/2019,091HOUSING,Housing and Community Services,20200,Housing Needs - HB (Housing Benefit),D2514,Accommodation Costs,67.20,South Down Residential Ltd,Accommodation costs Homelessness services Temp Accom - plus VAT,2008406,201812,
Rother District Council,25/03/2019,091HOUSING,Housing and Community Services,20200,Housing Needs - HB (Housing Benefit),D2514,Accommodation Costs,91.00,South Down Residential Ltd,Accommodation costs Homelessness services Temp Accom - plus VAT,2008557,201812,
Rother District Council,25/03/2019,091HOUSING,Housing and Community Services,20200,Housing Needs - HB (Housing Benefit),D2514,Accommodation Costs,35.70,South Down Residential Ltd,Accommodation costs Homelessness services Temp Accom - plus VAT,2008557,201812,
Rother District Council,25/03/2019,091HOUSING,Housing and Community Services,20200,Housing Needs - HB (Housing Benefit),D2514,Accommodation Costs,86.80,South Down Residential Ltd,Accommodation costs Homelessness services Temp Accom - plus VAT,2008557,201812,
Rother District Council,25/03/2019,091HOUSING,Housing and Community Services,20200,Housing Needs - HB (Housing Benefit),D2514,Accommodation Costs,413.00,South Down Residential Ltd,Accommodation costs Homelessness services Temp Accom - plus VAT,2008557,201812,
Rother District Council,25/03/2019,091HOUSING,Housing and Community Services,20200,Housing Needs - HB (Housing Benefit),D2514,Accommodation Costs,178.50,South Down Residential Ltd,Accommodation costs Homelessness services Temp Accom - plus VAT,2008557,201812,
Rother District Council,25/03/2019,091HOUSING,Housing and Community Services,20200,Housing Needs - HB (Housing Benefit),D2514,Accommodation Costs,413.00,South Down Residential Ltd,Accommodation costs Homelessness services Temp Accom - plus VAT,2008557,201812,
Rother District Council,25/03/2019,091HOUSING,Housing and Community Services,20200,Housing Needs - HB (Housing Benefit),D2514,Accommodation Costs,236.00,South Down Residential Ltd,Accommodation costs Homelessness services Temp Accom - plus VAT,2008557,201812,
Rother District Council,25/03/2019,091HOUSING,Housing and Community Services,20200,Housing Needs - HB (Housing Benefit),D2514,Accommodation Costs,413.00,South Down Residential Ltd,Accommodation costs Homelessness services Temp Accom - plus VAT,2008557,201812,
Rother District Council,18/03/2019,091HOUSING,Housing and Community Services,20200,Housing Needs - HB (Housing Benefit),D2514,Accommodation Costs,91.00,South Down Residential Ltd,Accommodation costs Homelessness services Temp Accom - plus VAT,2008406,201812,
Rother District Council,18/03/2019,091HOUSING,Housing and Community Services,20200,Housing Needs - HB (Housing Benefit),D2514,Accommodation Costs,35.70,South Down Residential Ltd,Accommodation costs Homelessness services Temp Accom - plus VAT,2008406,201812,
Rother District Council,18/03/2019,091HOUSING,Housing and Community Services,20200,Housing Needs - HB (Housing Benefit),D2514,Accommodation Costs,186.00,South Down Residential Ltd,Accommodation costs Homelessness services Temp Accom - plus VAT,2008406,201812,
Rother District Council,18/03/2019,091HOUSING,Housing and Community Services,20200,Housing Needs - HB (Housing Benefit),D2514,Accommodation Costs,49.60,South Down Residential Ltd,Accommodation costs Homelessness services Temp Accom - plus VAT,2008406,201812,
Rother District Council,18/03/2019,091HOUSING,Housing and Community Services,20200,Housing Needs - HB (Housing Benefit),D2514,Accommodation Costs,144.00,South Down Residential Ltd,Accommodation costs Homelessness services Temp Accom - plus VAT,2008406,201812,
Rother District Council,18/03/2019,091HOUSING,Housing and Community Services,20200,Housing Needs - HB (Housing Benefit),D2514,Accommodation Costs,413.00,South Down Residential Ltd,Accommodation costs Homelessness services Temp Accom - plus VAT,2008406,201812,
Rother District Council,18/03/2019,091HOUSING,Housing and Community Services,20200,Housing Needs - HB (Housing Benefit),D2514,Accommodation Costs,413.00,South Down Residential Ltd,Accommodation costs Homelessness services Temp Accom - plus VAT,2008406,201812,
Rother District Council,18/03/2019,091HOUSING,Housing and Community Services,20200,Housing Needs - HB (Housing Benefit),D2514,Accommodation Costs,178.50,South Down Residential Ltd,Accommodation costs Homelessness services Temp Accom - plus VAT,2008406,201812,
Rother District Council,18/03/2019,091HOUSING,Housing and Community Services,20200,Housing Needs - HB (Housing Benefit),D2514,Accommodation Costs,96.00,South Down Residential Ltd,Accommodation costs Homelessness services Temp Accom - plus VAT,2008406,201812,
Rother District Council,18/03/2019,091HOUSING,Housing and Community Services,20200,Housing Needs - HB (Housing Benefit),D2514,Accommodation Costs,413.00,South Down Residential Ltd,Accommodation costs Homelessness services Temp Accom - plus VAT,2008406,201812,
Rother District Council,18/03/2019,091HOUSING,Housing and Community Services,20200,Housing Needs - HB (Housing Benefit),D2514,Accommodation Costs,102.00,South Down Residential Ltd,Accommodation costs Homelessness services Temp Accom - plus VAT,2008406,201812,
Rother District Council,18/03/2019,091HOUSING,Housing and Community Services,20200,Housing Needs - HB (Housing Benefit),D2514,Accommodation Costs,98.00,Solutions Accommodation Providers Ltd,Accommodation costs Homelessness services Temp Accom - plus VAT,2008463,201812,
Rother District Council,18/03/2019,091HOUSING,Housing and Community Services,20200,Housing Needs - HB (Housing Benefit),D2514,Accommodation Costs,84.00,Solutions Accommodation Providers Ltd,Accommodation costs Homelessness services Temp Accom - plus VAT,2008464,201812,
Rother District Council,18/03/2019,091HOUSING,Housing and Community Services,20200,Housing Needs - HB (Housing Benefit),D2514,Accommodation Costs,98.00,Solutions Accommodation Providers Ltd,Accommodation costs Homelessness services Temp Accom - plus VAT,2008465,201812,
Rother District Council,18/03/2019,091HOUSING,Housing and Community Services,20200,Housing Needs - HB (Housing Benefit),D2514,Accommodation Costs,140.00,Solutions Accommodation Providers Ltd,Accommodation costs Homelessness services Temp Accom - plus VAT,2008467,201812,
Rother District Council,18/03/2019,091HOUSING,Housing and Community Services,20200,Housing Needs - HB (Housing Benefit),D2514,Accommodation Costs,98.00,Solutions Accommodation Providers Ltd,Accommodation costs Homelessness services Temp Accom - plus VAT,2008466,201812,
Rother District Council,24/03/2019,091HOUSING,Housing and Community Services,20200,Housing Needs - HB (Housing Benefit),D2514,Accommodation Costs,375.00,Specialist Care UK Group Ltd,Accommodation costs Homelessness services Temp Accom - plus VAT,2008534,201812,
Rother District Council,24/03/2019,091HOUSING,Housing and Community Services,20200,Housing Needs - HB (Housing Benefit),D2514,Accommodation Costs,262.50,Specialist Care UK Group Ltd,Accommodation costs Homelessness services Temp Accom - plus VAT,2008532,201812,
Rother District Council,24/03/2019,091HOUSING,Housing and Community Services,20200,Housing Needs - HB (Housing Benefit),D2514,Accommodation Costs,350.00,Specialist Care UK Group Ltd,Accommodation costs Homelessness services Temp Accom - plus VAT,2008535,201812,
Rother District Council,24/03/2019,091HOUSING,Housing and Community Services,20200,Housing Needs - HB (Housing Benefit),D2514,Accommodation Costs,350.00,Specialist Care UK Group Ltd,Accommodation costs Homelessness services Temp Accom - plus VAT,2008526,201812,
Rother District Council,10/03/2019,091HOUSING,Housing and Community Services,20200,Housing Needs - HB (Housing Benefit),D2514,Accommodation Costs,262.50,Specialist Care UK Group Ltd,Accommodation costs Homelessness services Temp Accom - plus VAT,2008200,201812,
Rother District Council,10/03/2019,091HOUSING,Housing and Community Services,20200,Housing Needs - HB (Housing Benefit),D2514,Accommodation Costs,262.50,Specialist Care UK Group Ltd,Accommodation costs Homelessness services Temp Accom - plus VAT,2008205,201812,
Rother District Council,24/03/2019,091HOUSING,Housing and Community Services,20200,Housing Needs - HB (Housing Benefit),D2514,Accommodation Costs,262.50,Specialist Care UK Group Ltd,Accommodation costs Homelessness services Temp Accom - plus VAT,2008527,201812,
Rother District Council,10/03/2019,091HOUSING,Housing and Community Services,20200,Housing Needs - HB (Housing Benefit),D2514,Accommodation Costs,37.50,Specialist Care UK Group Ltd,Accommodation costs Homelessness services Temp Accom - plus VAT,2008201,201812,
Rother District Council,24/03/2019,091HOUSING,Housing and Community Services,20200,Housing Needs - HB (Housing Benefit),D2514,Accommodation Costs,225.00,Specialist Care UK Group Ltd,Accommodation costs Homelessness services Temp Accom - plus VAT,2008537,201812,
Rother District Council,24/03/2019,091HOUSING,Housing and Community Services,20200,Housing Needs - HB (Housing Benefit),D2514,Accommodation Costs,175.00,Specialist Care UK Group Ltd,Accommodation costs Homelessness services Temp Accom - plus VAT,2008530,201812,
Rother District Council,10/03/2019,091HOUSING,Housing and Community Services,20200,Housing Needs - HB (Housing Benefit),D2514,Accommodation Costs,350.00,Specialist Care UK Group Ltd,Accommodation costs Homelessness services Temp Accom - plus VAT,2008203,201812,
Rother District Council,10/03/2019,091HOUSING,Housing and Community Services,20200,Housing Needs - HB (Housing Benefit),D2514,Accommodation Costs,262.50,Specialist Care UK Group Ltd,Accommodation costs Homelessness services Temp Accom - plus VAT,2008207,201812,
Rother District Council,24/03/2019,091HOUSING,Housing and Community Services,20200,Housing Needs - HB (Housing Benefit),D2514,Accommodation Costs,350.00,Specialist Care UK Group Ltd,Accommodation costs Homelessness services Temp Accom - plus VAT,2008529,201812,
Rother District Council,10/03/2019,091HOUSING,Housing and Community Services,20200,Housing Needs - HB (Housing Benefit),D2514,Accommodation Costs,300.00,Specialist Care UK Group Ltd,Accommodation costs Homelessness services Temp Accom - plus VAT,2008197,201812,
Rother District Council,10/03/2019,091HOUSING,Housing and Community Services,20200,Housing Needs - HB (Housing Benefit),D2514,Accommodation Costs,225.00,Specialist Care UK Group Ltd,Accommodation costs Homelessness services Temp Accom - plus VAT,2008202,201812,
Rother District Council,10/03/2019,091HOUSING,Housing and Community Services,20200,Housing Needs - HB (Housing Benefit),D2514,Accommodation Costs,262.50,Specialist Care UK Group Ltd,Accommodation costs Homelessness services Temp Accom - plus VAT,2008206,201812,
Rother District Council,24/03/2019,091HOUSING,Housing and Community Services,20200,Housing Needs - HB (Housing Benefit),D2514,Accommodation Costs,262.50,Specialist Care UK Group Ltd,Accommodation costs Homelessness services Temp Accom - plus VAT,2008533,201812,
Rother District Council,10/03/2019,091HOUSING,Housing and Community Services,20200,Housing Needs - HB (Housing Benefit),D2514,Accommodation Costs,375.00,Specialist Care UK Group Ltd,Accommodation costs Homelessness services Temp Accom - plus VAT,2008208,201812,
Rother District Council,10/03/2019,091HOUSING,Housing and Community Services,20200,Housing Needs - HB (Housing Benefit),D2514,Accommodation Costs,175.00,Specialist Care UK Group Ltd,Accommodation costs Homelessness services Temp Accom - plus VAT,2008204,201812,
Rother District Council,10/03/2019,091HOUSING,Housing and Community Services,20200,Housing Needs - HB (Housing Benefit),D2514,Accommodation Costs,262.50,Specialist Care UK Group Ltd,Accommodation costs Homelessness services Temp Accom - plus VAT,2008210,201812,
Rother District Council,10/03/2019,091HOUSING,Housing and Community Services,20200,Housing Needs - HB (Housing Benefit),D2514,Accommodation Costs,175.00,Specialist Care UK Group Ltd,Accommodation costs Homelessness services Temp Accom - plus VAT,2008198,201812,
Rother District Council,10/03/2019,091HOUSING,Housing and Community Services,20200,Housing Needs - HB (Housing Benefit),D2514,Accommodation Costs,350.00,Specialist Care UK Group Ltd,Accommodation costs Homelessness services Temp Accom - plus VAT,2008209,201812,
Rother District Council,24/03/2019,091HOUSING,Housing and Community Services,20200,Housing Needs - HB (Housing Benefit),D2514,Accommodation Costs,262.50,Specialist Care UK Group Ltd,Accommodation costs Homelessness services Temp Accom - plus VAT,2008528,201812,
Rother District Council,24/03/2019,091HOUSING,Housing and Community Services,20200,Housing Needs - HB (Housing Benefit),D2514,Accommodation Costs,262.50,Specialist Care UK Group Ltd,Accommodation costs Homelessness services Temp Accom - plus VAT,2008531,201812,
Rother District Council,24/03/2019,091HOUSING,Housing and Community Services,20200,Housing Needs - HB (Housing Benefit),D2514,Accommodation Costs,150.00,Specialist Care UK Group Ltd,Accommodation costs Homelessness services Temp Accom - plus VAT,2008536,201812,
Rother District Council,10/03/2019,091HOUSING,Housing and Community Services,20200,Housing Needs - HB (Housing Benefit),D2514,Accommodation Costs,350.00,Specialist Care UK Group Ltd,Accommodation costs Homelessness services Temp Accom - plus VAT,2008199,201812,
Rother District Council,04/03/2019,091HOUSING,Housing and Community Services,20200,Housing Needs - HB (Housing Benefit),D2514,Accommodation Costs,79.10,South Down Residential Ltd,Accommodation costs Homelessness services Temp Accom - plus VAT,2008066,201812,
Rother District Council,04/03/2019,091HOUSING,Housing and Community Services,20200,Housing Needs - HB (Housing Benefit),D2514,Accommodation Costs,35.70,South Down Residential Ltd,Accommodation costs Homelessness services Temp Accom - plus VAT,2008066,201812,
Rother District Council,04/03/2019,091HOUSING,Housing and Community Services,20200,Housing Needs - HB (Housing Benefit),D2514,Accommodation Costs,35.70,South Down Residential Ltd,Accommodation costs Homelessness services Temp Accom - plus VAT,2008066,201812,
Rother District Council,04/03/2019,091HOUSING,Housing and Community Services,20200,Housing Needs - HB (Housing Benefit),D2514,Accommodation Costs,25.50,South Down Residential Ltd,Accommodation costs Homelessness services Temp Accom - plus VAT,2008066,201812,
Rother District Council,04/03/2019,091HOUSING,Housing and Community Services,20200,Housing Needs - HB (Housing Benefit),D2514,Accommodation Costs,192.00,South Down Residential Ltd,Accommodation costs Homelessness services Temp Accom - plus VAT,2008066,201812,
Rother District Council,04/03/2019,091HOUSING,Housing and Community Services,20200,Housing Needs - HB (Housing Benefit),D2514,Accommodation Costs,28.80,South Down Residential Ltd,Accommodation costs Homelessness services Temp Accom - plus VAT,2008066,201812,
Rother District Council,04/03/2019,091HOUSING,Housing and Community Services,20200,Housing Needs - HB (Housing Benefit),D2514,Accommodation Costs,455.00,South Down Residential Ltd,Accommodation costs Homelessness services Temp Accom - plus VAT,2008066,201812,
Rother District Council,04/03/2019,091HOUSING,Housing and Community Services,20200,Housing Needs - HB (Housing Benefit),D2514,Accommodation Costs,178.50,South Down Residential Ltd,Accommodation costs Homelessness services Temp Accom - plus VAT,2008066,201812,
Rother District Council,04/03/2019,091HOUSING,Housing and Community Services,20200,Housing Needs - HB (Housing Benefit),D2514,Accommodation Costs,413.00,South Down Residential Ltd,Accommodation costs Homelessness services Temp Accom - plus VAT,2008066,201812,
Rother District Council,04/03/2019,091HOUSING,Housing and Community Services,20200,Housing Needs - HB (Housing Benefit),D2514,Accommodation Costs,372.00,South Down Residential Ltd,Accommodation costs Homelessness services Temp Accom - plus VAT,2008066,201812,
Rother District Council,04/03/2019,091HOUSING,Housing and Community Services,20200,Housing Needs - HB (Housing Benefit),D2514,Accommodation Costs,336.00,South Down Residential Ltd,Accommodation costs Homelessness services Temp Accom - plus VAT,2008066,201812,
Rother District Council,04/03/2019,091HOUSING,Housing and Community Services,20200,Housing Needs - HB (Housing Benefit),D2514,Accommodation Costs,413.00,South Down Residential Ltd,Accommodation costs Homelessness services Temp Accom - plus VAT,2008066,201812,
Rother District Council,18/03/2019,091HOUSING,Housing and Community Services,20200,Housing Needs - HB (Housing Benefit),D2514,Accommodation Costs,70.00,Solutions Accommodation Providers Ltd,Accommodation costs Homelessness services Temp Accom - plus VAT,2008459,201812,
Rother District Council,18/03/2019,091HOUSING,Housing and Community Services,20200,Housing Needs - HB (Housing Benefit),D2514,Accommodation Costs,36.40,Solutions Accommodation Providers Ltd,Accommodation costs Homelessness services Temp Accom - plus VAT,2008460,201812,
Rother District Council,18/03/2019,091HOUSING,Housing and Community Services,20200,Housing Needs - HB (Housing Benefit),D2514,Accommodation Costs,98.00,Solutions Accommodation Providers Ltd,Accommodation costs Homelessness services Temp Accom - plus VAT,2008461,201812,
Rother District Council,18/03/2019,091HOUSING,Housing and Community Services,20200,Housing Needs - HB (Housing Benefit),D2514,Accommodation Costs,36.00,Solutions Accommodation Providers Ltd,Accommodation costs Homelessness services Temp Accom - plus VAT,2008462,201812,
Rother District Council,11/03/2019,091HOUSING,Housing and Community Services,20200,Housing Needs - HB (Housing Benefit),D2514,Accommodation Costs,79.10,South Down Residential Ltd,Accommodation costs Homelessness services Temp Accom - plus VAT,2008238,201812,
Rother District Council,11/03/2019,091HOUSING,Housing and Community Services,20200,Housing Needs - HB (Housing Benefit),D2514,Accommodation Costs,35.70,South Down Residential Ltd,Accommodation costs Homelessness services Temp Accom - plus VAT,2008238,201812,
Rother District Council,11/03/2019,091HOUSING,Housing and Community Services,20200,Housing Needs - HB (Housing Benefit),D2514,Accommodation Costs,35.70,South Down Residential Ltd,Accommodation costs Homelessness services Temp Accom - plus VAT,2008238,201812,
Rother District Council,11/03/2019,091HOUSING,Housing and Community Services,20200,Housing Needs - HB (Housing Benefit),D2514,Accommodation Costs,67.20,South Down Residential Ltd,Accommodation costs Homelessness services Temp Accom - plus VAT,2008238,201812,
Rother District Council,11/03/2019,091HOUSING,Housing and Community Services,20200,Housing Needs - HB (Housing Benefit),D2514,Accommodation Costs,65.00,South Down Residential Ltd,Accommodation costs Homelessness services Temp Accom - plus VAT,2008238,201812,
Rother District Council,11/03/2019,091HOUSING,Housing and Community Services,20200,Housing Needs - HB (Housing Benefit),D2514,Accommodation Costs,78.00,South Down Residential Ltd,Accommodation costs Homelessness services Temp Accom - plus VAT,2008238,201812,
Rother District Council,11/03/2019,091HOUSING,Housing and Community Services,20200,Housing Needs - HB (Housing Benefit),D2514,Accommodation Costs,76.50,South Down Residential Ltd,Accommodation costs Homelessness services Temp Accom - plus VAT,2008238,201812,
Rother District Council,11/03/2019,091HOUSING,Housing and Community Services,20200,Housing Needs - HB (Housing Benefit),D2514,Accommodation Costs,20.40,South Down Residential Ltd,Accommodation costs Homelessness services Temp Accom - plus VAT,2008238,201812,
Rother District Council,11/03/2019,091HOUSING,Housing and Community Services,20200,Housing Needs - HB (Housing Benefit),D2514,Accommodation Costs,59.00,South Down Residential Ltd,Accommodation costs Homelessness services Temp Accom - plus VAT,2008238,201812,
Rother District Council,11/03/2019,091HOUSING,Housing and Community Services,20200,Housing Needs - HB (Housing Benefit),D2514,Accommodation Costs,434.00,South Down Residential Ltd,Accommodation costs Homelessness services Temp Accom - plus VAT,2008238,201812,
Rother District Council,11/03/2019,091HOUSING,Housing and Community Services,20200,Housing Needs - HB (Housing Benefit),D2514,Accommodation Costs,336.00,South Down Residential Ltd,Accommodation costs Homelessness services Temp Accom - plus VAT,2008238,201812,
Rother District Council,11/03/2019,091HOUSING,Housing and Community Services,20200,Housing Needs - HB (Housing Benefit),D2514,Accommodation Costs,413.00,South Down Residential Ltd,Accommodation costs Homelessness services Temp Accom - plus VAT,2008238,201812,
Rother District Council,11/03/2019,091HOUSING,Housing and Community Services,20200,Housing Needs - HB (Housing Benefit),D2514,Accommodation Costs,354.00,South Down Residential Ltd,Accommodation costs Homelessness services Temp Accom - plus VAT,2008238,201812,
Rother District Council,11/03/2019,091HOUSING,Housing and Community Services,20200,Housing Needs - HB (Housing Benefit),D2514,Accommodation Costs,153.00,South Down Residential Ltd,Accommodation costs Homelessness services Temp Accom - plus VAT,2008238,201812,
Rother District Council,11/03/2019,091HOUSING,Housing and Community Services,20200,Housing Needs - HB (Housing Benefit),D2514,Accommodation Costs,240.00,South Down Residential Ltd,Accommodation costs Homelessness services Temp Accom - plus VAT,2008238,201812,
Rother District Council,11/03/2019,091HOUSING,Housing and Community Services,20200,Housing Needs - HB (Housing Benefit),D2514,Accommodation Costs,236.00,South Down Residential Ltd,Accommodation costs Homelessness services Temp Accom - plus VAT,2008238,201812,
Rother District Council,05/03/2019,091HOUSING,Housing and Community Services,20200,Housing Needs - HB (Housing Benefit),D2632,Additional Computer Equipment,"4,844.40",Dell Corporation Ltd,Additional Computer Equipment New PC/Computer,2008287,201812,
Rother District Council,29/01/2019,091HOUSING,Housing and Community Services,20114,Bexhill Parks & Open Spaces,D2632,Additional Computer Equipment,258.00,Benchmarq Ltd,Additional Computer Equipment New PC/Computer,2008154,201812,
Rother District Council,09/11/2018,101RESOURCES,Resources,20239,Computer Services,D2632,Additional Computer Equipment,28.32,Lloyds Bank,Additional Computer Equipment New PC/Computer,2008336,201812,
Rother District Council,22/03/2019,101RESOURCES,Resources,20239,Computer Services,D2632,Additional Computer Equipment,130.74,PCM Technology Solutions UK Ltd,Additional Computer Equipment New PC/Computer,2008508,201812,
Rother District Council,02/01/2019,081ACQUISIT,"Acquisitions, Transformation and Regeneration",20154,Committee Property Account,B1100,Repairs to Premises,-5.41,Trade UK Account (Screwfix),Additional Computer Equipment New PC/Computer,2006681,201810,
Rother District Council,10/12/2018,081ACQUISIT,"Acquisitions, Transformation and Regeneration",20231,E-Government,D2632,Additional Computer Equipment,"7,111.70",PCM Technology Solutions UK Ltd,Additional Computer Equipment New PC/Computer,2006230,201810,
Rother District Council,10/12/2018,081ACQUISIT,"Acquisitions, Transformation and Regeneration",20231,E-Government,D2632,Additional Computer Equipment,"1,609.39",PCM Technology Solutions UK Ltd,Additional Computer Equipment New PC/Computer,2006231,201810,
Rother District Council,13/02/2019,081ACQUISIT,"Acquisitions, Transformation and Regeneration",20142,Performance Management,D2632,Additional Computer Equipment,"2,149.32",PCM Technology Solutions UK Ltd,Additional Computer Equipment New PC/Computer,2007628,201811,
Rother District Council,11/02/2019,041ENVIRON,Environmental Services,32144,EH Environmental Services Admin R + W Partnership,D2632,Additional Computer Equipment,705.00,Lloyds Bank,Additional Computer Equipment New PC/Computer,2008338,201812,
Rother District Council,11/02/2019,041ENVIRON,Environmental Services,32144,EH Environmental Services Admin R + W Partnership,D2632,Additional Computer Equipment,20.48,Lloyds Bank,Additional Computer Equipment New PC/Computer,2008338,201812,
Rother District Council,04/03/2019,041ENVIRON,Environmental Services,32144,EH Environmental Services Admin R + W Partnership,D2632,Additional Computer Equipment,"4,425.00",Dell Corporation Ltd,Additional Computer Equipment New PC/Computer,2008184,201812,
Rother District Council,11/02/2019,091HOUSING,Housing and Community Services,20206,Syrians,D2632,Additional Computer Equipment,857.57,Lloyds Bank,Additional Computer Equipment New PC/Computer,2008338,201812,
Rother District Council,11/02/2019,091HOUSING,Housing and Community Services,20206,Syrians,D2632,Additional Computer Equipment,275.97,Lloyds Bank,Additional Computer Equipment New PC/Computer,2008338,201812,
Rother District Council,10/12/2018,101RESOURCES,Resources,20239,Computer Services,D2632,Additional Computer Equipment,249.95,Lloyds Bank,Additional Computer Equipment New PC/Computer,2007084,201811,
Rother District Council,10/12/2018,101RESOURCES,Resources,20239,Computer Services,D2632,Additional Computer Equipment,88.04,Lloyds Bank,Additional Computer Equipment New PC/Computer,2007084,201811,
Rother District Council,10/01/2019,101RESOURCES,Resources,20239,Computer Services,D2632,Additional Computer Equipment,"1,110.00",Dell Corporation Ltd,Additional Computer Equipment New PC/Computer,2006931,201810,
Rother District Council,12/01/2019,101RESOURCES,Resources,20239,Computer Services,D2632,Additional Computer Equipment,"1,405.00",Dell Corporation Ltd,Additional Computer Equipment New PC/Computer,2006933,201810,
Rother District Council,12/01/2019,101RESOURCES,Resources,20239,Computer Services,D2632,Additional Computer Equipment,210.00,Dell Corporation Ltd,Additional Computer Equipment New PC/Computer,2006938,201810,
Rother District Council,17/01/2019,101RESOURCES,Resources,20239,Computer Services,D2632,Additional Computer Equipment,516.18,PCM Technology Solutions UK Ltd,Additional Computer Equipment New PC/Computer,2006984,201810,
Rother District Council,09/01/2019,101RESOURCES,Resources,20239,Computer Services,D2632,Additional Computer Equipment,"2,934.00",Dell Corporation Ltd,Additional Computer Equipment New PC/Computer,2006937,201810,
Rother District Council,21/01/2019,101RESOURCES,Resources,20239,Computer Services,D2632,Additional Computer Equipment,"1,445.00",Dell Corporation Ltd,Additional Computer Equipment New PC/Computer,2007215,201810,
Rother District Council,24/01/2019,071STRAT,Strategy and Planning,20259,Land Charges,D2632,Additional Computer Equipment,"1,900.00",Ocella Ltd,Additional Computer Equipment OCELLA Amendments/Upgrading,2007125,201810,
Rother District Council,15/03/2019,031RESOURCES,Executive Directors & Corporate Core,20156,Representing Local Interest,D2518,Advertising,869.25,JPIMedia Publishing Ltd,Advertising Newspapers/Magazine,2008493,201812,
Rother District Council,11/01/2019,031RESOURCES,Executive Directors & Corporate Core,20156,Representing Local Interest,D2518,Advertising,960.75,JPIMedia Publishing Ltd,Advertising Newspapers/Magazine,2006939,201810,
Rother District Council,09/11/2018,081ACQUISIT,"Acquisitions, Transformation and Regeneration",20144,Property Management,D2518,Advertising,37.50,Lloyds Bank,Advertising Newspapers/Magazine,2008336,201812,
Rother District Council,17/01/2019,101RESOURCES,Resources,20221,Financial Services,A1110,Agency Staff,"6,086.50",Penna PLC,Agency Staff,2007002,201810,
Rother District Council,23/10/2018,071STRAT,Strategy and Planning,20246,Planning Applications,A1110,Agency Staff,166.44,The Work People CIC,Agency Staff,2006644,201810,
Rother District Council,19/11/2018,071STRAT,Strategy and Planning,20246,Planning Applications,A1110,Agency Staff,"1,343.21",The Work People CIC,Agency Staff,2006616,201810,
Rother District Council,16/01/2019,091HOUSING,Housing and Community Services,20204,Housing Administration Account,A1110,Agency Staff,649.00,Oyster Partnership,Agency Staff,2006962,201810,
Rother District Council,09/01/2019,091HOUSING,Housing and Community Services,20204,Housing Administration Account,A1110,Agency Staff,319.00,Oyster Partnership,Agency Staff,2006899,201810,
Rother District Council,24/12/2018,091HOUSING,Housing and Community Services,20204,Housing Administration Account,A1110,Agency Staff,937.50,Oyster Partnership,Agency Staff,2006610,201810,
Rother District Council,11/02/2019,091HOUSING,Housing and Community Services,20204,Housing Administration Account,A1110,Agency Staff,"7,500.00",Hastings Borough Council,Agency Staff,2007768,201811,
Rother District Council,19/12/2018,091HOUSING,Housing and Community Services,20204,Housing Administration Account,A1110,Agency Staff,814.00,Oyster Partnership,Agency Staff,2006509,201810,
Rother District Council,19/12/2018,091HOUSING,Housing and Community Services,20204,Housing Administration Account,A1110,Agency Staff,937.50,Oyster Partnership,Agency Staff,2006510,201810,
Rother District Council,09/01/2019,091HOUSING,Housing and Community Services,20204,Housing Administration Account,A1110,Agency Staff,562.50,Oyster Partnership,Agency Staff,2006900,201810,
Rother District Council,23/01/2019,091HOUSING,Housing and Community Services,20204,Housing Administration Account,A1110,Agency Staff,814.00,Oyster Partnership,Agency Staff,2007185,201810,
Rother District Council,05/03/2019,101RESOURCES,Resources,20221,Financial Services,A1110,Agency Staff,"5,050.50",Penna PLC,Agency Staff,2007961,201812,
Rother District Council,24/12/2018,091HOUSING,Housing and Community Services,20204,Housing Administration Account,A1110,Agency Staff,627.00,Oyster Partnership,Agency Staff,2006605,201810,
Rother District Council,30/01/2019,091HOUSING,Housing and Community Services,20204,Housing Administration Account,A1110,Agency Staff,814.00,Oyster Partnership,Agency Staff,2007304,201811,
Rother District Council,06/02/2019,091HOUSING,Housing and Community Services,20204,Housing Administration Account,A1110,Agency Staff,660.00,Oyster Partnership,Agency Staff,2007462,201811,
Rother District Council,19/02/2019,101RESOURCES,Resources,20221,Financial Services,A1110,Agency Staff,"9,324.00",Penna PLC,Agency Staff,2007740,201812,
Rother District Council,15/01/2019,999NOREPORT,"Acquisitions, Transformation and Regeneration",70725,Capital - Blackfriars,N1004,Architects & Consultant Fees,"3,967.50",Ecology Consultancy Ltd,Architects & Consultant Fees Capital-Architect and Conslt Fees,2006893,201811,
Rother District Council,28/12/2018,999NOREPORT,"Acquisitions, Transformation and Regeneration",70725,Capital - Blackfriars,N1004,Architects & Consultant Fees,"5,350.00",GTA Civils Ltd,Architects & Consultant Fees Capital-Architect and Conslt Fees,2007072,201810,
Rother District Council,25/01/2019,999NOREPORT,"Acquisitions, Transformation and Regeneration",70725,Capital - Blackfriars,N1004,Architects & Consultant Fees,"7,681.51",Clague LLP,Architects & Consultant Fees Capital-Architect and Conslt Fees,2007206,201810,
Rother District Council,24/02/2019,999NOREPORT,Housing and Community Services,70704,Capital - Bexhill Leisure Centre,N1004,Architects & Consultant Fees,"14,588.53",The Environment Partnership (TEP) Ltd,Architects & Consultant Fees Capital-Architect and Conslt Fees,2007834,201811,
Rother District Council,03/03/2019,999NOREPORT,Housing and Community Services,70704,Capital - Bexhill Leisure Centre,N1004,Architects & Consultant Fees,"1,695.00",The Environment Partnership (TEP) Ltd,Architects & Consultant Fees Capital-Architect and Conslt Fees,2008194,201812,
Rother District Council,27/03/2019,999NOREPORT,"Acquisitions, Transformation and Regeneration",70725,Capital - Blackfriars,N1004,Architects & Consultant Fees,"4,480.80",DVS Croydon Valuation Office,Architects & Consultant Fees Capital-Architect and Conslt Fees,2008601,201812,
Rother District Council,18/03/2019,999NOREPORT,"Acquisitions, Transformation and Regeneration",70725,Capital - Blackfriars,N1004,Architects & Consultant Fees,"2,361.20",Robinson Escott Planning,Architects & Consultant Fees Capital-Architect and Conslt Fees,2008449,201812,
Rother District Council,28/01/2019,999NOREPORT,"Acquisitions, Transformation and Regeneration",70725,Capital - Blackfriars,N1004,Architects & Consultant Fees,350.00,Southern Testing Laboratories Limited,Architects & Consultant Fees Capital-Architect and Conslt Fees,2008398,201812,
Rother District Council,28/02/2019,999NOREPORT,"Acquisitions, Transformation and Regeneration",70725,Capital - Blackfriars,N1004,Architects & Consultant Fees,"14,850.00",GTA Civils Ltd,Architects & Consultant Fees Capital-Architect and Conslt Fees,2008283,201812,
Rother District Council,12/02/2019,999NOREPORT,"Acquisitions, Transformation and Regeneration",70725,Capital - Blackfriars,N1004,Architects & Consultant Fees,203.00,Battle Memorial Halls Management Committee,Architects & Consultant Fees Capital-Architect and Conslt Fees,2007694,201811,
Rother District Council,29/01/2019,999NOREPORT,"Acquisitions, Transformation and Regeneration",70725,Capital - Blackfriars,N1004,Architects & Consultant Fees,"1,732.00",Waller Gray Consulting Ltd,Architects & Consultant Fees Capital-Architect and Conslt Fees,2008218,201812,
Rother District Council,28/02/2019,999NOREPORT,"Acquisitions, Transformation and Regeneration",70725,Capital - Blackfriars,N1004,Architects & Consultant Fees,"4,598.63",Clague LLP,Architects & Consultant Fees Capital-Architect and Conslt Fees,2008219,201812,
Rother District Council,31/01/2019,999NOREPORT,"Acquisitions, Transformation and Regeneration",70725,Capital - Blackfriars,N1004,Architects & Consultant Fees,"1,895.00",Chris Butler Archaeological Services Ltd,Architects & Consultant Fees Capital-Architect and Conslt Fees,2007711,201811,
Rother District Council,28/11/2018,999NOREPORT,"Acquisitions, Transformation and Regeneration",70725,Capital - Blackfriars,N1004,Architects & Consultant Fees,"10,019.49",Clague LLP,Architects & Consultant Fees Capital-Architect and Conslt Fees,2006830,201810,
Rother District Council,21/12/2018,999NOREPORT,"Acquisitions, Transformation and Regeneration",70725,Capital - Blackfriars,N1004,Architects & Consultant Fees,"7,617.84",Clague LLP,Architects & Consultant Fees Capital-Architect and Conslt Fees,2006831,201810,
Rother District Council,31/12/2018,999NOREPORT,"Acquisitions, Transformation and Regeneration",70725,Capital - Blackfriars,N1004,Architects & Consultant Fees,"3,367.00",Southern Testing Laboratories Limited,Architects & Consultant Fees Capital-Architect and Conslt Fees,2006928,201810,
Rother District Council,21/12/2018,999NOREPORT,"Acquisitions, Transformation and Regeneration",70725,Capital - Blackfriars,N1004,Architects & Consultant Fees,"4,402.35",Valuation Office Agency,Architects & Consultant Fees Capital-Architect and Conslt Fees,2006623,201810,
Rother District Council,31/01/2019,999NOREPORT,Housing and Community Services,70718,Capital - Sidley Recreation Ground,N1004,Architects & Consultant Fees,555.00,CountyClean Environmental Services Ltd,Architects & Consultant Fees Capital-Architect and Conslt Fees,2007425,201811,
Rother District Council,31/01/2019,999NOREPORT,"Acquisitions, Transformation and Regeneration",70725,Capital - Blackfriars,N1004,Architects & Consultant Fees,"7,500.00",GTA Civils Ltd,Architects & Consultant Fees Capital-Architect and Conslt Fees,2007416,201811,
Rother District Council,06/03/2019,101RESOURCES,Resources,20209,Corporate management,D2516,Audit fees,"9,264.75",Grant Thornton UK LLP,Audit Fees - External Audit,2008185,201812,
Rother District Council,05/03/2019,041ENVIRON,Environmental Services,32136,EH Pest Control R + W Partnership,D1202,Baits Poisons Etc,22.46,Trade UK Account (Screwfix),Baits Poisons Etc EnvH- Pest Control Supplies,2008597,201812,
Rother District Council,27/02/2019,041ENVIRON,Environmental Services,32136,EH Pest Control R + W Partnership,D1202,Baits Poisons Etc,410.00,Killgerm Chemicals Ltd,Baits Poisons Etc EnvH- Pest Control Supplies,2007953,201812,
Rother District Council,31/12/2018,101RESOURCES,Resources,20209,Corporate management,D2513,Hired and Contracted services,20.02,Lloyds Bank,Bank Charges,2007097,201810,
Rother District Council,08/01/2019,101RESOURCES,Resources,20209,Corporate management,D2513,Hired and Contracted services,256.48,Capita Business Services Ltd,Bank Charges,2007110,201810,
Rother District Council,31/12/2018,101RESOURCES,Resources,20209,Corporate management,D2513,Hired and Contracted services,40.00,Lloyds Bank,Bank Charges,2007088,201810,
Rother District Council,31/12/2018,101RESOURCES,Resources,20209,Corporate management,D2513,Hired and Contracted services,40.00,Lloyds Bank,Bank Charges,2007089,201810,
Rother District Council,31/12/2018,101RESOURCES,Resources,20209,Corporate management,D2513,Hired and Contracted services,40.00,Lloyds Bank,Bank Charges,2007090,201810,
Rother District Council,31/12/2018,101RESOURCES,Resources,20209,Corporate management,D2513,Hired and Contracted services,40.00,Lloyds Bank,Bank Charges,2007091,201810,
Rother District Council,31/12/2018,101RESOURCES,Resources,20209,Corporate management,D2513,Hired and Contracted services,40.00,Lloyds Bank,Bank Charges,2007092,201810,
Rother District Council,31/12/2018,101RESOURCES,Resources,20209,Corporate management,D2513,Hired and Contracted services,20.37,Lloyds Bank,Bank Charges,2007093,201810,
Rother District Council,31/12/2018,101RESOURCES,Resources,20209,Corporate management,D2513,Hired and Contracted services,356.93,Lloyds Bank,Bank Charges,2007094,201810,
Rother District Council,31/12/2018,101RESOURCES,Resources,20209,Corporate management,D2513,Hired and Contracted services,631.65,Lloyds Bank,Bank Charges,2007095,201810,
Rother District Council,31/12/2018,101RESOURCES,Resources,20209,Corporate management,D2513,Hired and Contracted services,979.52,Lloyds Bank,Bank Charges,2007096,201810,
Rother District Council,10/12/2018,101RESOURCES,Resources,20209,Corporate management,D2513,Hired and Contracted services,239.55,Lloyds Bank,Bank Charges,2006757,201810,
Rother District Council,05/12/2018,101RESOURCES,Resources,20209,Corporate management,D2513,Hired and Contracted services,110.26,Lloyds Bank,Bank Charges,2006758,201810,
Rother District Council,05/12/2018,101RESOURCES,Resources,20209,Corporate management,D2513,Hired and Contracted services,53.00,Lloyds Bank,Bank Charges,2006759,201810,
Rother District Council,06/12/2018,101RESOURCES,Resources,20209,Corporate management,D2513,Hired and Contracted services,277.34,Capita Business Services Ltd,Bank Charges,2006778,201810,
Rother District Council,30/11/2018,101RESOURCES,Resources,20209,Corporate management,D2513,Hired and Contracted services,20.03,Lloyds Bank,Bank Charges,2006544,201810,
Rother District Council,30/11/2018,101RESOURCES,Resources,20209,Corporate management,D2513,Hired and Contracted services,332.62,Lloyds Bank,Bank Charges,2006545,201810,
Rother District Council,30/11/2018,101RESOURCES,Resources,20209,Corporate management,D2513,Hired and Contracted services,40.00,Lloyds Bank,Bank Charges,2006551,201810,
Rother District Council,30/11/2018,101RESOURCES,Resources,20209,Corporate management,D2513,Hired and Contracted services,40.00,Lloyds Bank,Bank Charges,2006552,201810,
Rother District Council,30/11/2018,101RESOURCES,Resources,20209,Corporate management,D2513,Hired and Contracted services,40.00,Lloyds Bank,Bank Charges,2006547,201810,
Rother District Council,30/11/2018,101RESOURCES,Resources,20209,Corporate management,D2513,Hired and Contracted services,662.11,Lloyds Bank,Bank Charges,2006546,201810,
Rother District Council,30/11/2018,101RESOURCES,Resources,20209,Corporate management,D2513,Hired and Contracted services,272.71,Lloyds Bank,Bank Charges,2006546,201810,
Rother District Council,30/11/2018,101RESOURCES,Resources,20209,Corporate management,D2513,Hired and Contracted services,40.00,Lloyds Bank,Bank Charges,2006550,201810,
Rother District Council,30/11/2018,101RESOURCES,Resources,20209,Corporate management,D2513,Hired and Contracted services,20.35,Lloyds Bank,Bank Charges,2006548,201810,
Rother District Council,30/11/2018,101RESOURCES,Resources,20209,Corporate management,D2513,Hired and Contracted services,40.00,Lloyds Bank,Bank Charges,2006549,201810,
Rother District Council,30/11/2018,101RESOURCES,Resources,20209,Corporate management,D2513,Hired and Contracted services,"1,047.17",Lloyds Bank,Bank Charges,2006543,201810,
Rother District Council,01/03/2019,101RESOURCES,Resources,20209,Corporate management,D2513,Hired and Contracted services,40.00,Lloyds Bank,Bank Charges,2008269,201812,
Rother District Council,01/03/2019,101RESOURCES,Resources,20209,Corporate management,D2513,Hired and Contracted services,20.43,Lloyds Bank,Bank Charges,2008271,201812,
Rother District Council,01/03/2019,101RESOURCES,Resources,20209,Corporate management,D2513,Hired and Contracted services,40.00,Lloyds Bank,Bank Charges,2008272,201812,
Rother District Council,01/03/2019,101RESOURCES,Resources,20209,Corporate management,D2513,Hired and Contracted services,40.00,Lloyds Bank,Bank Charges,2008273,201812,
Rother District Council,01/03/2019,101RESOURCES,Resources,20209,Corporate management,D2513,Hired and Contracted services,454.77,Lloyds Bank,Bank Charges,2008274,201812,
Rother District Council,01/03/2019,101RESOURCES,Resources,20209,Corporate management,D2513,Hired and Contracted services,397.81,Lloyds Bank,Bank Charges,2008275,201812,
Rother District Council,01/03/2019,101RESOURCES,Resources,20209,Corporate management,D2513,Hired and Contracted services,40.01,Lloyds Bank,Bank Charges,2008270,201812,
Rother District Council,01/03/2019,101RESOURCES,Resources,20209,Corporate management,D2513,Hired and Contracted services,802.27,Lloyds Bank,Bank Charges,2008266,201812,
Rother District Council,01/03/2019,101RESOURCES,Resources,20209,Corporate management,D2513,Hired and Contracted services,20.02,Lloyds Bank,Bank Charges,2008267,201812,
Rother District Council,01/03/2019,101RESOURCES,Resources,20209,Corporate management,D2513,Hired and Contracted services,40.00,Lloyds Bank,Bank Charges,2008268,201812,
Rother District Council,11/02/2019,101RESOURCES,Resources,20209,Corporate management,D2513,Hired and Contracted services,238.35,Lloyds Bank,Bank Charges,2008257,201812,
Rother District Council,31/01/2019,101RESOURCES,Resources,20209,Corporate management,D2513,Hired and Contracted services,"1,356.52",Lloyds Bank,Bank Charges,2007881,201811,
Rother District Council,31/01/2019,101RESOURCES,Resources,20209,Corporate management,D2513,Hired and Contracted services,20.02,Lloyds Bank,Bank Charges,2007882,201811,
Rother District Council,31/01/2019,101RESOURCES,Resources,20209,Corporate management,D2513,Hired and Contracted services,20.33,Lloyds Bank,Bank Charges,2007878,201811,
Rother District Council,31/01/2019,101RESOURCES,Resources,20209,Corporate management,D2513,Hired and Contracted services,381.39,Lloyds Bank,Bank Charges,2007879,201811,
Rother District Council,31/01/2019,101RESOURCES,Resources,20209,Corporate management,D2513,Hired and Contracted services,777.24,Lloyds Bank,Bank Charges,2007880,201811,
Rother District Council,05/03/2019,101RESOURCES,Resources,20209,Corporate management,D2513,Hired and Contracted services,62.00,Lloyds Bank,Bank Charges,2008572,201812,
Rother District Council,07/03/2019,101RESOURCES,Resources,20209,Corporate management,D2513,Hired and Contracted services,176.12,Capita Business Services Ltd,Bank Charges,2008577,201812,
Rother District Council,05/03/2019,101RESOURCES,Resources,20209,Corporate management,D2513,Hired and Contracted services,99.23,Lloyds Bank,Bank Charges,2008570,201812,
Rother District Council,08/02/2019,101RESOURCES,Resources,20209,Corporate management,D2513,Hired and Contracted services,288.82,Capita Business Services Ltd,Bank Charges,2007853,201811,
Rother District Council,05/02/2019,101RESOURCES,Resources,20209,Corporate management,D2513,Hired and Contracted services,63.00,Lloyds Bank,Bank Charges,2007873,201811,
Rother District Council,31/01/2019,101RESOURCES,Resources,20209,Corporate management,D2513,Hired and Contracted services,40.00,Lloyds Bank,Bank Charges,2007883,201811,
Rother District Council,31/01/2019,101RESOURCES,Resources,20209,Corporate management,D2513,Hired and Contracted services,40.00,Lloyds Bank,Bank Charges,2007884,201811,
Rother District Council,31/01/2019,101RESOURCES,Resources,20209,Corporate management,D2513,Hired and Contracted services,40.00,Lloyds Bank,Bank Charges,2007885,201811,
Rother District Council,31/01/2019,101RESOURCES,Resources,20209,Corporate management,D2513,Hired and Contracted services,40.00,Lloyds Bank,Bank Charges,2007886,201811,
Rother District Council,31/01/2019,101RESOURCES,Resources,20209,Corporate management,D2513,Hired and Contracted services,40.00,Lloyds Bank,Bank Charges,2007887,201811,
Rother District Council,07/01/2019,101RESOURCES,Resources,20209,Corporate management,D2513,Hired and Contracted services,57.00,Lloyds Bank,Bank Charges,2007283,201811,
Rother District Council,10/01/2019,101RESOURCES,Resources,20209,Corporate management,D2513,Hired and Contracted services,235.05,Lloyds Bank,Bank Charges,2007282,201811,
Rother District Council,10/12/2018,101RESOURCES,Resources,20222,Accountancy,D1203,Books And Publications,"960,400.00",CIPFA Business Ltd,Books and Publications - general,2007177,201810,
Rother District Council,10/12/2018,101RESOURCES,Resources,20222,Accountancy,D1203,Books And Publications,"-959,420.00",CIPFA Business Ltd,Books and Publications - general,2007177,201810,
Rother District Council,24/01/2019,101RESOURCES,Resources,20222,Accountancy,D1203,Books And Publications,210.00,CIPFA Business Ltd,Books and Publications - general,2007160,201810,
Rother District Council,04/03/2019,091HOUSING,Housing and Community Services,20114,Bexhill Parks & Open Spaces,D2922,Subscriptions,275.00,Haymarket Media Group Ltd,Books and Publications - general,2008061,201812,
Rother District Council,13/03/2019,101RESOURCES,Resources,20207,Reliefs & Benefits-Housing Benefit,D1203,Books And Publications,256.00,Child Poverty Action Group,Books and Publications - general,2008280,201812,
Rother District Council,13/03/2019,101RESOURCES,Resources,20207,Reliefs & Benefits-Housing Benefit,D1203,Books And Publications,7.49,Child Poverty Action Group,Books And Publications Delivery/Postage of Books,2008280,201812,
Rother District Council,01/02/2019,031RESOURCES,Executive Directors & Corporate Core,20162,Electoral Registration,D1203,Books And Publications,121.50,Thomson Reuters Ltd,Books And Publications Miscellaneous Legal Reference Books,2007584,201811,
Rother District Council,01/02/2019,031RESOURCES,Executive Directors & Corporate Core,20162,Electoral Registration,D1203,Books And Publications,121.50,Thomson Reuters Ltd,Books And Publications Miscellaneous Legal Reference Books,2007584,201811,
Rother District Council,09/01/2019,999NOREPORT,Resources,90000,Balance sheet all accounts,N1008,Equipment,"6,286.78",Public-i Group Ltd,Capital - Purchase of Equipment,2006822,201810,
Rother District Council,24/01/2019,999NOREPORT,Environmental Services,70706,Capital - Disable Facilities Grant,N1012,Capital Advances,"1,112.42",Peabody South East Ltd,Capital Advances Disabled Facilities Grant,2007217,201810,
Rother District Council,18/01/2019,999NOREPORT,Environmental Services,70706,Capital - Disable Facilities Grant,N1012,Capital Advances,"5,416.22",Hedley Visick Ltd,Capital Advances Disabled Facilities Grant,2007256,201810,
Rother District Council,29/01/2019,999NOREPORT,Environmental Services,70706,Capital - Disable Facilities Grant,N1012,Capital Advances,"3,180.00",Mr Mark Neale General Building and Plumbing Ltd,Capital Advances Disabled Facilities Grant,2007314,201811,
Rother District Council,29/01/2019,999NOREPORT,Environmental Services,70706,Capital - Disable Facilities Grant,N1012,Capital Advances,"1,800.00",Peabody South East Ltd,Capital Advances Disabled Facilities Grant,2007315,201811,
Rother District Council,31/01/2019,999NOREPORT,Environmental Services,70706,Capital - Disable Facilities Grant,N1012,Capital Advances,"1,200.00",Peabody South East Ltd,Capital Advances Disabled Facilities Grant,2007316,201811,
Rother District Council,28/01/2019,999NOREPORT,Environmental Services,70706,Capital - Disable Facilities Grant,N1012,Capital Advances,"11,750.00",Dolphin Lifts Kent,Capital Advances Disabled Facilities Grant,2007317,201811,
Rother District Council,31/01/2019,999NOREPORT,Environmental Services,70706,Capital - Disable Facilities Grant,N1012,Capital Advances,"6,200.00",Prestige Stairlifts Ltd,Capital Advances Disabled Facilities Grant,2007318,201811,
Rother District Council,21/02/2019,999NOREPORT,Environmental Services,70706,Capital - Disable Facilities Grant,N1012,Capital Advances,"4,000.00",Alfa Electric Ltd,Capital Advances Disabled Facilities Grant,2007945,201812,
Rother District Council,18/01/2019,999NOREPORT,Environmental Services,70706,Capital - Disable Facilities Grant,N1012,Capital Advances,"2,500.00",A and A J Bishop,Capital Advances Disabled Facilities Grant,2007940,201812,
Rother District Council,01/02/2019,999NOREPORT,Environmental Services,70706,Capital - Disable Facilities Grant,N1012,Capital Advances,"5,000.00",Alfa Electric Ltd,Capital Advances Disabled Facilities Grant,2007438,201811,
Rother District Council,01/02/2019,999NOREPORT,Environmental Services,70706,Capital - Disable Facilities Grant,N1012,Capital Advances,600.00,Peabody South East Ltd,Capital Advances Disabled Facilities Grant,2007439,201811,
Rother District Council,01/02/2019,999NOREPORT,Environmental Services,70706,Capital - Disable Facilities Grant,N1012,Capital Advances,"2,050.00",Prestige Stairlifts Ltd,Capital Advances Disabled Facilities Grant,2007440,201811,
Rother District Council,07/02/2019,999NOREPORT,Environmental Services,70706,Capital - Disable Facilities Grant,N1012,Capital Advances,900.55,Peabody South East Ltd,Capital Advances Disabled Facilities Grant,2007480,201811,
Rother District Council,05/02/2019,999NOREPORT,Environmental Services,70706,Capital - Disable Facilities Grant,N1012,Capital Advances,"1,200.00",Peabody South East Ltd,Capital Advances Disabled Facilities Grant,2007481,201811,
Rother District Council,06/02/2019,999NOREPORT,Environmental Services,70706,Capital - Disable Facilities Grant,N1012,Capital Advances,"1,058.19",Peabody South East Ltd,Capital Advances Disabled Facilities Grant,2007482,201811,
Rother District Council,06/02/2019,999NOREPORT,Environmental Services,70706,Capital - Disable Facilities Grant,N1012,Capital Advances,"7,054.64",The Build Works,Capital Advances Disabled Facilities Grant,2007483,201811,
Rother District Council,06/02/2019,999NOREPORT,Environmental Services,70706,Capital - Disable Facilities Grant,N1012,Capital Advances,"5,000.00",Mr Mark Neale General Building and Plumbing Ltd,Capital Advances Disabled Facilities Grant,2007484,201811,
Rother District Council,11/02/2019,999NOREPORT,Environmental Services,70706,Capital - Disable Facilities Grant,N1012,Capital Advances,"1,200.00",Peabody South East Ltd,Capital Advances Disabled Facilities Grant,2007630,201811,
Rother District Council,11/02/2019,999NOREPORT,Environmental Services,70706,Capital - Disable Facilities Grant,N1012,Capital Advances,"1,200.00",Peabody South East Ltd,Capital Advances Disabled Facilities Grant,2007631,201811,
Rother District Council,11/02/2019,999NOREPORT,Environmental Services,70706,Capital - Disable Facilities Grant,N1012,Capital Advances,"4,523.45",GMS Adaptations,Capital Advances Disabled Facilities Grant,2007632,201811,
Rother District Council,05/02/2019,091HOUSING,Housing and Community Services,20205,Housing Loans Account,D2514,Accommodation Costs,695.00,Mr Giovanni Di Paolo,Accommodation Costs Homelessness services Rent in Advance for Homeless,2007508,201811,
Rother District Council,21/02/2019,999NOREPORT,Environmental Services,70706,Capital - Disable Facilities Grant,N1012,Capital Advances,"6,000.00",Alfa Electric Ltd,Capital Advances Disabled Facilities Grant,2007941,201812,
Rother District Council,22/02/2019,999NOREPORT,Environmental Services,70706,Capital - Disable Facilities Grant,N1012,Capital Advances,"4,000.00",A and A J Bishop,Capital Advances Disabled Facilities Grant,2007942,201812,
Rother District Council,22/02/2019,999NOREPORT,Environmental Services,70706,Capital - Disable Facilities Grant,N1012,Capital Advances,"3,143.00",Mr Mark Neale General Building and Plumbing Ltd,Capital Advances Disabled Facilities Grant,2007943,201812,
Rother District Council,22/02/2019,999NOREPORT,Environmental Services,70706,Capital - Disable Facilities Grant,N1012,Capital Advances,951.44,Peabody South East Ltd,Capital Advances Disabled Facilities Grant,2007944,201812,
Rother District Council,20/03/2019,999NOREPORT,Environmental Services,70706,Capital - Disable Facilities Grant,N1012,Capital Advances,751.87,Peabody South East Ltd,Capital Advances Disabled Facilities Grant,2008441,201812,
Rother District Council,20/03/2019,999NOREPORT,Environmental Services,70706,Capital - Disable Facilities Grant,N1012,Capital Advances,"5,000.00",A and A J Bishop,Capital Advances Disabled Facilities Grant,2008442,201812,
Rother District Council,20/03/2019,999NOREPORT,Environmental Services,70706,Capital - Disable Facilities Grant,N1012,Capital Advances,600.00,Peabody South East Ltd,Capital Advances Disabled Facilities Grant,2008443,201812,
Rother District Council,20/03/2019,999NOREPORT,Environmental Services,70706,Capital - Disable Facilities Grant,N1012,Capital Advances,"3,500.00",Griffin and Son,Capital Advances Disabled Facilities Grant,2008444,201812,
Rother District Council,19/03/2019,999NOREPORT,Environmental Services,70706,Capital - Disable Facilities Grant,N1012,Capital Advances,"1,360.19",Peabody South East Ltd,Capital Advances Disabled Facilities Grant,2008434,201812,
Rother District Council,19/03/2019,999NOREPORT,Environmental Services,70706,Capital - Disable Facilities Grant,N1012,Capital Advances,"10,340.84",Alfa Electric Ltd,Capital Advances Disabled Facilities Grant,2008435,201812,
Rother District Council,19/03/2019,999NOREPORT,Environmental Services,70706,Capital - Disable Facilities Grant,N1012,Capital Advances,116.26,Alfa Electric Ltd,Capital Advances Disabled Facilities Grant,2008436,201812,
Rother District Council,19/03/2019,999NOREPORT,Environmental Services,70706,Capital - Disable Facilities Grant,N1012,Capital Advances,"4,233.74",Peabody South East Ltd,Capital Advances Disabled Facilities Grant,2008437,201812,
Rother District Council,19/03/2019,999NOREPORT,Environmental Services,70706,Capital - Disable Facilities Grant,N1012,Capital Advances,"5,233.61",Alfa Electric Ltd,Capital Advances Disabled Facilities Grant,2008438,201812,
Rother District Council,20/03/2019,999NOREPORT,Environmental Services,70706,Capital - Disable Facilities Grant,N1012,Capital Advances,"1,008.28",Peabody South East Ltd,Capital Advances Disabled Facilities Grant,2008439,201812,
Rother District Council,19/03/2019,999NOREPORT,Environmental Services,70706,Capital - Disable Facilities Grant,N1012,Capital Advances,"5,012.50",Alfa Electric Ltd,Capital Advances Disabled Facilities Grant,2008440,201812,
Rother District Council,25/03/2019,999NOREPORT,Environmental Services,70706,Capital - Disable Facilities Grant,N1012,Capital Advances,"1,664.74",Peabody South East Ltd,Capital Advances Disabled Facilities Grant,2008586,201812,
Rother District Council,25/03/2019,999NOREPORT,Environmental Services,70706,Capital - Disable Facilities Grant,N1012,Capital Advances,"4,456.59",Alfa Electric Ltd,Capital Advances Disabled Facilities Grant,2008587,201812,
Rother District Council,31/01/2019,999NOREPORT,Environmental Services,70706,Capital - Disable Facilities Grant,N1012,Capital Advances,"3,800.00",Nutra Plumbing and Heating Ltd,Capital Advances Disabled Facilities Grant,2008363,201812,
Rother District Council,14/03/2019,999NOREPORT,Environmental Services,70706,Capital - Disable Facilities Grant,N1012,Capital Advances,"4,000.00",A and A J Bishop,Capital Advances Disabled Facilities Grant,2008364,201812,
Rother District Council,14/03/2019,999NOREPORT,Environmental Services,70706,Capital - Disable Facilities Grant,N1012,Capital Advances,"6,517.90",GMS Adaptations,Capital Advances Disabled Facilities Grant,2008365,201812,
Rother District Council,04/03/2019,999NOREPORT,Environmental Services,70706,Capital - Disable Facilities Grant,N1012,Capital Advances,"4,000.00",A and A J Bishop,Capital Advances Disabled Facilities Grant,2008230,201812,
Rother District Council,04/03/2019,999NOREPORT,Environmental Services,70706,Capital - Disable Facilities Grant,N1012,Capital Advances,"5,000.00",A and A J Bishop,Capital Advances Disabled Facilities Grant,2008231,201812,
Rother District Council,04/03/2019,999NOREPORT,Environmental Services,70706,Capital - Disable Facilities Grant,N1012,Capital Advances,"4,000.00",The Build Works,Capital Advances Disabled Facilities Grant,2008232,201812,
Rother District Council,28/02/2019,999NOREPORT,Environmental Services,70706,Capital - Disable Facilities Grant,N1012,Capital Advances,"4,000.00",Mr Mark Neale General Building and Plumbing Ltd,Capital Advances Disabled Facilities Grant,2008233,201812,
Rother District Council,28/02/2019,999NOREPORT,Environmental Services,70706,Capital - Disable Facilities Grant,N1012,Capital Advances,"2,085.00",Southern Mobility Centres Ltd,Capital Advances Disabled Facilities Grant,2008234,201812,
Rother District Council,14/02/2019,999NOREPORT,Environmental Services,70706,Capital - Disable Facilities Grant,N1012,Capital Advances,"5,168.39",GMS Adaptations,Capital Advances Disabled Facilities Grant,2007677,201811,
Rother District Council,06/02/2019,999NOREPORT,Environmental Services,70706,Capital - Disable Facilities Grant,N1012,Capital Advances,"1,196.23",Peabody South East Ltd,Capital Advances Disabled Facilities Grant,2007486,201811,
Rother District Council,07/02/2019,999NOREPORT,Environmental Services,70706,Capital - Disable Facilities Grant,N1012,Capital Advances,976.79,Peabody South East Ltd,Capital Advances Disabled Facilities Grant,2007487,201811,
Rother District Council,06/02/2019,999NOREPORT,Environmental Services,70706,Capital - Disable Facilities Grant,N1012,Capital Advances,"6,674.08",Alfa Electric Ltd,Capital Advances Disabled Facilities Grant,2007488,201811,
Rother District Council,06/02/2019,999NOREPORT,Environmental Services,70706,Capital - Disable Facilities Grant,N1012,Capital Advances,"10,000.00",L G Projects Ltd,Capital Advances Disabled Facilities Grant,2007490,201811,
Rother District Council,06/02/2019,999NOREPORT,Environmental Services,70706,Capital - Disable Facilities Grant,N1012,Capital Advances,"4,400.00",Prestige Stairlifts Ltd,Capital Advances Disabled Facilities Grant,2007491,201811,
Rother District Council,06/02/2019,999NOREPORT,Environmental Services,70706,Capital - Disable Facilities Grant,N1012,Capital Advances,663.00,Peabody South East Ltd,Capital Advances Disabled Facilities Grant,2007492,201811,
Rother District Council,06/02/2019,999NOREPORT,Environmental Services,70706,Capital - Disable Facilities Grant,N1012,Capital Advances,"3,953.00",Mr Mark Neale General Building and Plumbing Ltd,Capital Advances Disabled Facilities Grant,2007493,201811,
Rother District Council,06/02/2019,999NOREPORT,Environmental Services,70706,Capital - Disable Facilities Grant,N1012,Capital Advances,"4,762.36",Alfa Electric Ltd,Capital Advances Disabled Facilities Grant,2007494,201811,
Rother District Council,06/02/2019,999NOREPORT,Environmental Services,70706,Capital - Disable Facilities Grant,N1012,Capital Advances,714.35,Peabody South East Ltd,Capital Advances Disabled Facilities Grant,2007495,201811,
Rother District Council,14/02/2019,999NOREPORT,Environmental Services,70706,Capital - Disable Facilities Grant,N1012,Capital Advances,775.24,Peabody South East Ltd,Capital Advances Disabled Facilities Grant,2007701,201811,
Rother District Council,21/03/2019,999NOREPORT,Environmental Services,70706,Capital - Disable Facilities Grant,N1012,Capital Advances,"1,184.09",Peabody South East Ltd,Capital Advances Disabled Facilities Grant,2008482,201812,
Rother District Council,21/03/2019,999NOREPORT,Environmental Services,70706,Capital - Disable Facilities Grant,N1012,Capital Advances,"3,222.85",Mr Mark Neale General Building and Plumbing Ltd,Capital Advances Disabled Facilities Grant,2008481,201812,
Rother District Council,12/03/2019,999NOREPORT,Environmental Services,70706,Capital - Disable Facilities Grant,N1012,Capital Advances,"10,373.74",GMS Adaptations,Capital Advances Disabled Facilities Grant,2008485,201812,
Rother District Council,07/02/2019,999NOREPORT,Environmental Services,70706,Capital - Disable Facilities Grant,N1012,Capital Advances,"6,003.69",Alfa Electric Ltd,Capital Advances Disabled Facilities Grant,2007588,201811,
Rother District Council,07/02/2019,999NOREPORT,Environmental Services,70706,Capital - Disable Facilities Grant,N1012,Capital Advances,"5,100.00",Dolphin Lifts Kent,Capital Advances Disabled Facilities Grant,2007593,201811,
Rother District Council,20/12/2018,999NOREPORT,Environmental Services,70706,Capital - Disable Facilities Grant,N1012,Capital Advances,399.74,Peabody South East Ltd,Capital Advances Disabled Facilities Grant,2006807,201810,
Rother District Council,18/01/2019,999NOREPORT,Environmental Services,70706,Capital - Disable Facilities Grant,N1012,Capital Advances,"2,730.00",A and A J Bishop,Capital Advances Disabled Facilities Grant,2007043,201810,
Rother District Council,18/01/2019,999NOREPORT,Environmental Services,70706,Capital - Disable Facilities Grant,N1012,Capital Advances,784.50,Peabody South East Ltd,Capital Advances Disabled Facilities Grant,2007044,201810,
Rother District Council,18/01/2019,999NOREPORT,Environmental Services,70706,Capital - Disable Facilities Grant,N1012,Capital Advances,"5,852.53",Hedley Visick Ltd,Capital Advances Disabled Facilities Grant,2007045,201810,
Rother District Council,18/01/2019,999NOREPORT,Environmental Services,70706,Capital - Disable Facilities Grant,N1012,Capital Advances,877.87,Peabody South East Ltd,Capital Advances Disabled Facilities Grant,2007046,201810,
Rother District Council,16/01/2019,999NOREPORT,Environmental Services,70706,Capital - Disable Facilities Grant,N1012,Capital Advances,"6,072.71",Alfa Electric Ltd,Capital Advances Disabled Facilities Grant,2007047,201810,
Rother District Council,18/01/2019,999NOREPORT,Environmental Services,70706,Capital - Disable Facilities Grant,N1012,Capital Advances,"7,159.72",Nutra Plumbing and Heating Ltd,Capital Advances Disabled Facilities Grant,2007042,201810,
Rother District Council,18/01/2019,999NOREPORT,Environmental Services,70706,Capital - Disable Facilities Grant,N1012,Capital Advances,910.91,Peabody South East Ltd,Capital Advances Disabled Facilities Grant,2007048,201810,
Rother District Council,18/01/2019,999NOREPORT,Environmental Services,70706,Capital - Disable Facilities Grant,N1012,Capital Advances,673.66,Peabody South East Ltd,Capital Advances Disabled Facilities Grant,2007049,201810,
Rother District Council,16/01/2019,999NOREPORT,Environmental Services,70706,Capital - Disable Facilities Grant,N1012,Capital Advances,"1,011.72",Peabody South East Ltd,Capital Advances Disabled Facilities Grant,2006996,201810,
Rother District Council,16/01/2019,999NOREPORT,Environmental Services,70706,Capital - Disable Facilities Grant,N1012,Capital Advances,975.00,Peabody South East Ltd,Capital Advances Disabled Facilities Grant,2006997,201810,
Rother District Council,16/01/2019,999NOREPORT,Environmental Services,70706,Capital - Disable Facilities Grant,N1012,Capital Advances,"4,650.00",Prestige Stairlifts Ltd,Capital Advances Disabled Facilities Grant,2006999,201810,
Rother District Council,16/01/2019,999NOREPORT,Environmental Services,70706,Capital - Disable Facilities Grant,N1012,Capital Advances,"1,715.00",Southern Mobility Centres Ltd,Capital Advances Disabled Facilities Grant,2006998,201810,
Rother District Council,18/01/2019,999NOREPORT,Environmental Services,70706,Capital - Disable Facilities Grant,N1012,Capital Advances,"4,491.01",Griffin and Son,Capital Advances Disabled Facilities Grant,2007120,201810,
Rother District Council,31/01/2019,999NOREPORT,Environmental Services,70706,Capital - Disable Facilities Grant,N1012,Capital Advances,"6,000.00",Nutra Plumbing and Heating Ltd,Capital Advances Disabled Facilities Grant,2007407,201811,
Rother District Council,01/02/2019,999NOREPORT,Environmental Services,70706,Capital - Disable Facilities Grant,N1012,Capital Advances,"5,000.00",The Build Works,Capital Advances Disabled Facilities Grant,2007408,201811,
Rother District Council,01/02/2019,999NOREPORT,Environmental Services,70706,Capital - Disable Facilities Grant,N1012,Capital Advances,749.00,A and A J Bishop,Capital Advances Disabled Facilities Grant,2007409,201811,
Rother District Council,01/02/2019,999NOREPORT,Environmental Services,70706,Capital - Disable Facilities Grant,N1012,Capital Advances,"5,000.00",Alfa Electric Ltd,Capital Advances Disabled Facilities Grant,2007410,201811,
Rother District Council,01/02/2019,999NOREPORT,Environmental Services,70706,Capital - Disable Facilities Grant,N1012,Capital Advances,"1,200.00",Peabody South East Ltd,Capital Advances Disabled Facilities Grant,2007411,201811,
Rother District Council,16/01/2019,999NOREPORT,Environmental Services,70706,Capital - Disable Facilities Grant,N1012,Capital Advances,"6,744.80",Alfa Electric Ltd,Capital Advances Disabled Facilities Grant,2007021,201810,
Rother District Council,16/01/2019,999NOREPORT,Environmental Services,70706,Capital - Disable Facilities Grant,N1012,Capital Advances,"6,500.00",Prestige Stairlifts Ltd,Capital Advances Disabled Facilities Grant,2007022,201810,
Rother District Council,11/02/2019,999NOREPORT,Environmental Services,70706,Capital - Disable Facilities Grant,N1012,Capital Advances,678.51,Peabody South East Ltd,Capital Advances Disabled Facilities Grant,2007633,201811,
Rother District Council,31/01/2019,999NOREPORT,Housing and Community Services,70714,Capital - Grants Halls and Community Projects,N1011,Capital Grants,"2,000.00",Burghwood House Residents Association,Capital Grants Community Grants Scheme,2007280,201811,
Rother District Council,28/02/2019,999NOREPORT,Housing and Community Services,70702,Capital - De La Warr Pavillion - Capital Grant,N1011,Capital Grants,"13,394.50",De La Warr Pavilion Charitable Trust,Capital Grants Community Grants Scheme,2007933,201812,Yes
Rother District Council,05/03/2019,999NOREPORT,Housing and Community Services,70714,Capital - Grants Halls and Community Projects,N1011,Capital Grants,"7,283.50",The Pelham,Capital Grants Community Grants Scheme,2008497,201812,
Rother District Council,30/11/2018,999NOREPORT,Housing and Community Services,70714,Capital - Grants Halls and Community Projects,N1011,Capital Grants,270.00,The Royal British Legion,Capital Grants Community Grants Scheme,2006685,201810,
Rother District Council,01/01/2019,999NOREPORT,Housing and Community Services,70714,Capital - Grants Halls and Community Projects,N1011,Capital Grants,"2,100.00",Pett Parish Council,Capital Grants Community Grants Scheme,2007755,201811,
Rother District Council,13/03/2019,031RESOURCES,Executive Directors & Corporate Core,20175,Administrative Offices - T.H. Annex (NOT CHP),B2612,Cleaning materials,154.71,Wightman and Parrish Ltd,Cleaning materials Premises,2008295,201812,
Rother District Council,15/01/2019,031RESOURCES,Executive Directors & Corporate Core,20173,Administrative Offices - Town Hall,B2612,Cleaning materials,349.55,Wightman and Parrish Ltd,Cleaning materials Premises,2006890,201810,
Rother District Council,28/01/2019,031RESOURCES,Executive Directors & Corporate Core,20173,Administrative Offices - Town Hall,B2612,Cleaning materials,191.41,Wightman and Parrish Ltd,Cleaning materials Premises,2007211,201810,
Rother District Council,17/12/2018,031RESOURCES,Executive Directors & Corporate Core,20173,Administrative Offices - Town Hall,B2612,Cleaning materials,129.64,Wightman and Parrish Ltd,Cleaning materials Premises,2006708,201810,
Rother District Council,08/02/2019,031RESOURCES,Executive Directors & Corporate Core,20175,Administrative Offices - T.H. Annex (NOT CHP),B2612,Cleaning materials,103.15,Wightman and Parrish Ltd,Cleaning materials Premises,2007505,201811,
Rother District Council,18/02/2019,031RESOURCES,Executive Directors & Corporate Core,20173,Administrative Offices - Town Hall,B2612,Cleaning materials,277.69,Wightman and Parrish Ltd,Cleaning materials Premises,2007681,201811,
Rother District Council,10/12/2018,081ACQUISIT,"Acquisitions, Transformation and Regeneration",20153,"Elva Business Centre, Bexhill",B2612,Cleaning materials,14.95,Lloyds Bank,Cleaning materials Premises,2007084,201811,
Rother District Council,18/12/2018,101RESOURCES,Resources,20240,Printing Services,D2417,Photocopy Paper by external suppliers,73.34,Premier Paper Group Ltd,CLOSED,2006534,201810,
Rother District Council,31/01/2019,041ENVIRON,Environmental Services,32133,EH Food Hyg / Idc / Water Purity R + W Partnership,D2352,Clothing and Uniforms,38.92,Shoes for Crews,Clothing and Uniforms EnvH- Protective Clothing EnvHealth,2007589,201811,
Rother District Council,12/12/2018,041ENVIRON,Environmental Services,32134,EH Pollution R + W Partnership,D2352,Clothing and Uniforms,138.50,SuperStitch 86,Clothing and Uniforms EnvH- Protective Clothing EnvHealth,2007700,201811,
Rother District Council,19/02/2019,041ENVIRON,Environmental Services,32134,EH Pollution R + W Partnership,D2352,Clothing and Uniforms,67.40,Brady Corporation Ltd (T/A Seton),Clothing and Uniforms EnvH- Protective Clothing EnvHealth,2007737,201812,
Rother District Council,19/02/2019,041ENVIRON,Environmental Services,32134,EH Pollution R + W Partnership,D2352,Clothing and Uniforms,9.95,Brady Corporation Ltd (T/A Seton),Clothing and Uniforms EnvH- Protective Clothing EnvHealth,2007737,201812,
Rother District Council,08/03/2019,041ENVIRON,Environmental Services,32134,EH Pollution R + W Partnership,D2352,Clothing and Uniforms,150.50,SuperStitch 86,Clothing and Uniforms EnvH- Protective Clothing EnvHealth,2008229,201812,
Rother District Council,08/03/2019,041ENVIRON,Environmental Services,32134,EH Pollution R + W Partnership,D2352,Clothing and Uniforms,27.00,SuperStitch 86,Clothing and Uniforms EnvH- Protective Clothing EnvHealth,2008229,201812,
Rother District Council,08/03/2019,041ENVIRON,Environmental Services,32144,EH Environmental Services Admin R + W Partnership,D2352,Clothing and Uniforms,27.00,SuperStitch 86,Clothing and Uniforms EnvH- Protective Clothing EnvHealth,2008235,201812,
Rother District Council,10/12/2018,081ACQUISIT,"Acquisitions, Transformation and Regeneration",20136,Regeneration,D2352,Clothing and Uniforms,89.99,Lloyds Bank,Clothing and Uniforms Mens Protective-Footware,2007084,201811,
Rother District Council,16/01/2019,091HOUSING,Housing and Community Services,20145,Maintenance Services,D2352,Clothing and Uniforms,17.48,Trade UK Account (Screwfix),Clothing and Uniforms Mens Protective-Other,2007219,201810,
Rother District Council,16/01/2019,091HOUSING,Housing and Community Services,20145,Maintenance Services,D2352,Clothing and Uniforms,25.98,Trade UK Account (Screwfix),Clothing and Uniforms Mens Protective-Other,2007219,201810,
Rother District Council,04/01/2019,091HOUSING,Housing and Community Services,20145,Maintenance Services,D2352,Clothing and Uniforms,16.58,Trade UK Account (Screwfix),Clothing and Uniforms Mens Protective-Other,2006929,201810,
Rother District Council,07/01/2019,031RESOURCES,Executive Directors & Corporate Core,20180,Emergency Planning,D2352,Clothing and Uniforms,37.14,Greenham,Clothing and Uniforms Mens Protective-Other,2006825,201810,
Rother District Council,15/01/2019,091HOUSING,Housing and Community Services,20125,Coast Protection,D2352,Clothing and Uniforms,9.99,Trade UK Account (Screwfix),Clothing and Uniforms Mens Protective-Other,2007218,201810,
Rother District Council,15/01/2019,091HOUSING,Housing and Community Services,20125,Coast Protection,D2352,Clothing and Uniforms,5.99,Trade UK Account (Screwfix),Clothing and Uniforms Mens Protective-Other,2007218,201810,
Rother District Council,09/01/2019,091HOUSING,Housing and Community Services,20108,Bexhill Promenade & Foreshore,D2352,Clothing and Uniforms,240.57,Southeast Marketing Ltd T/A GP PromoWear,Clothing and Uniforms Mens Protective-Other,2006814,201810,
Rother District Council,05/03/2019,091HOUSING,Housing and Community Services,20137,Car Parks,D2352,Clothing and Uniforms,241.87,SuperStitch 86,Clothing and Uniforms Mens Uniform-Coat,2008070,201812,
Rother District Council,25/01/2019,101RESOURCES,Resources,20240,Printing Services,D2352,Clothing and Uniforms,70.00,The Stitchery Company,Clothing and Uniforms Mens Uniform-Shirt,2007212,201810,
Rother District Council,05/03/2019,091HOUSING,Housing and Community Services,20114,Bexhill Parks & Open Spaces,D2352,Clothing and Uniforms,107.95,SuperStitch 86,Clothing and Uniforms Parks- Protective Clothing,2008071,201812,
Rother District Council,09/11/2018,101RESOURCES,Resources,20239,Computer Services,D2634,Computer Consumables,20.47,Lloyds Bank,Computer Consumables InkJet Cartridge,2008336,201812,
Rother District Council,25/02/2019,101RESOURCES,Resources,20239,Computer Services,D2634,Computer Consumables,750.00,Canon (UK) Ltd,Computer Consumables InkJet Cartridge,2007923,201812,
Rother District Council,28/01/2019,101RESOURCES,Resources,20239,Computer Services,D2634,Computer Consumables,139.15,PCM Technology Solutions UK Ltd,Computer Consumables Laser Labels,2007243,201810,
Rother District Council,16/01/2019,101RESOURCES,Resources,20239,Computer Services,D2631,Computer Equip Maintenance,"2,160.28",Global Document Systems Ltd,Computer Equip Maintenance Advance Pay Pressure sealing machine maintenance,2006987,201810,
Rother District Council,24/12/2018,101RESOURCES,Resources,20239,Computer Services,D2631,Computer Equip Maintenance,685.00,Arcool Ltd,Computer Equip Maintenance IT EQUIP MAINT - Air Conditioning,2006563,201810,
Rother District Council,11/12/2018,101RESOURCES,Resources,20239,Computer Services,D2631,Computer Equip Maintenance,118.10,Ricoh UK Limited,Computer Equip Maintenance Maintenance of Network Equipment,2006386,201810,
Rother District Council,03/12/2018,101RESOURCES,Resources,20240,Printing Services,D2631,Computer Equip Maintenance,766.59,Canon (UK) Ltd,Computer Equip Maintenance Maintenance re Colourwave Printer,2006141,201810,
Rother District Council,02/01/2019,101RESOURCES,Resources,20240,Printing Services,D2631,Computer Equip Maintenance,381.05,Canon (UK) Ltd,Computer Equip Maintenance Maintenance re Colourwave Printer,2006657,201810,
Rother District Council,10/12/2018,101RESOURCES,Resources,20239,Computer Services,D2631,Computer Equip Maintenance,107.60,Lloyds Bank,Computer Equip Maintenance Maintenance-File Servers,2007084,201811,
Rother District Council,10/12/2018,101RESOURCES,Resources,20239,Computer Services,D2631,Computer Equip Maintenance,151.22,Lloyds Bank,Computer Equip Maintenance Maintenance-File Servers,2007083,201810,
Rother District Council,10/12/2018,101RESOURCES,Resources,20239,Computer Services,D2631,Computer Equip Maintenance,109.59,Lloyds Bank,Computer Equip Maintenance Maintenance-File Servers,2007083,201810,
Rother District Council,10/12/2018,101RESOURCES,Resources,20239,Computer Services,D2631,Computer Equip Maintenance,177.83,Lloyds Bank,Computer Equip Maintenance Maintenance-File Servers,2007083,201810,
Rother District Council,30/01/2019,101RESOURCES,Resources,20239,Computer Services,D2634,Computer Consumables,615.00,Canon (UK) Ltd,Computer Equip Maintenance Scanner Maintenance,2007321,201811,
Rother District Council,11/03/2019,101RESOURCES,Resources,20239,Computer Services,D2633,Computer Equipment,20.48,Lloyds Bank,Computer Equipment Carry Case,2008605,201812,
Rother District Council,09/01/2019,101RESOURCES,Resources,20239,Computer Services,D2633,Computer Equipment,169.90,Lloyds Bank,Computer Equipment Carry Case,2007165,201810,
Rother District Council,09/11/2018,101RESOURCES,Resources,20239,Computer Services,D2633,Computer Equipment,33.39,Lloyds Bank,Computer Equipment Computer Cable,2008336,201812,
Rother District Council,09/11/2018,101RESOURCES,Resources,20239,Computer Services,D2633,Computer Equipment,71.78,Lloyds Bank,Computer Equipment Computer Cable,2008336,201812,
Rother District Council,11/02/2019,101RESOURCES,Resources,20239,Computer Services,D2633,Computer Equipment,47.96,Lloyds Bank,Computer Equipment Computer Cable,2008338,201812,
Rother District Council,10/12/2018,101RESOURCES,Resources,20239,Computer Services,D2633,Computer Equipment,167.56,Lloyds Bank,Computer Equipment Computer Cable,2007084,201811,
Rother District Council,10/12/2018,101RESOURCES,Resources,20239,Computer Services,D2633,Computer Equipment,0.93,Lloyds Bank,Computer Equipment Computer Cable,2007084,201811,
Rother District Council,09/01/2019,101RESOURCES,Resources,20239,Computer Services,D2633,Computer Equipment,105.90,Lloyds Bank,Computer Equipment Computer Cable,2007165,201810,
Rother District Council,09/01/2019,101RESOURCES,Resources,20239,Computer Services,D2633,Computer Equipment,11.48,Lloyds Bank,Computer Equipment Computer Cable,2007165,201810,
Rother District Council,09/01/2019,101RESOURCES,Resources,20239,Computer Services,D2633,Computer Equipment,56.90,Lloyds Bank,Computer Equipment Computer Cable,2007165,201810,
Rother District Council,11/12/2018,071STRAT,Strategy and Planning,20244,General Planning Expenses,D2633,Computer Equipment,"1,073.31",PCM Technology Solutions UK Ltd,Computer Equipment New Computer Hardware,2006306,201810,
Rother District Council,09/11/2018,101RESOURCES,Resources,20239,Computer Services,D2633,Computer Equipment,33.28,Lloyds Bank,Computer Equipment New Computer Hardware,2008336,201812,
Rother District Council,11/03/2019,101RESOURCES,Resources,20239,Computer Services,D2633,Computer Equipment,58.50,Lloyds Bank,Computer Equipment New Computer Hardware,2008605,201812,
Rother District Council,11/03/2019,101RESOURCES,Resources,20239,Computer Services,D2633,Computer Equipment,41.97,Lloyds Bank,Computer Equipment New Computer Hardware,2008605,201812,
Rother District Council,11/03/2019,101RESOURCES,Resources,20239,Computer Services,D2633,Computer Equipment,591.78,Lloyds Bank,Computer Equipment New Computer Hardware,2008605,201812,
Rother District Council,12/03/2019,071STRAT,Strategy and Planning,20259,Land Charges,D2633,Computer Equipment,"1,216.88",Dell Corporation Ltd,Computer Equipment New Computer Hardware,2008370,201812,
Rother District Council,05/03/2019,091HOUSING,Housing and Community Services,20236,Customer Services and Development,D2633,Computer Equipment,636.00,Dell Corporation Ltd,Computer Equipment New Computer Hardware,2008288,201812,
Rother District Council,16/01/2019,101RESOURCES,Resources,20239,Computer Services,D2633,Computer Equipment,430.20,PCM Technology Solutions UK Ltd,Computer Equipment New Computer Hardware,2006945,201810,
Rother District Council,18/03/2019,101RESOURCES,Resources,20239,Computer Services,D2635,Computer Licences,630.00,NCC Services Ltd (T/A NCC Group Escrow Ltd),Computer Licences Advance Pay ESCROW Agreement,2008604,201812,
Rother District Council,09/11/2018,101RESOURCES,Resources,20239,Computer Services,D2635,Computer Licences,401.00,Lloyds Bank,Computer Licences Advnce Pay Maint/Upgrading Software,2008336,201812,
Rother District Council,18/02/2019,101RESOURCES,Resources,20239,Computer Services,D2635,Computer Licences,"5,074.00",MCPC Systems (UK) Ltd,Computer Licences Advnce Pay Maint/Upgrading Software,2007698,201811,
Rother District Council,18/02/2019,041ENVIRON,Environmental Services,32144,EH Environmental Services Admin R + W Partnership,D2635,Computer Licences,"22,000.00",Northgate Public Services (UK) Ltd,Computer Licences Computer Licence Renewal,2007703,201811,
Rother District Council,26/12/2018,091HOUSING,Housing and Community Services,20236,Customer Services and Development,D2635,Computer Licences,269.46,Click4Assistance,Computer Licences Computer Licence Renewal,2006818,201810,
Rother District Council,06/02/2019,101RESOURCES,Resources,20239,Computer Services,D2635,Computer Licences,99.00,Ferret Information Systems Ltd,Computer Licences Computer Licence Renewal,2007702,201811,
Rother District Council,24/12/2018,101RESOURCES,Resources,20239,Computer Services,D2635,Computer Licences,"6,422.83",Quest Software International Limited,Computer Licences Computer Licence Renewal,2006564,201810,
Rother District Council,09/11/2018,101RESOURCES,Resources,20239,Computer Services,D2635,Computer Licences,19.98,Lloyds Bank,Computer Licences Domain Name Renewal,2008336,201812,
Rother District Council,11/02/2019,101RESOURCES,Resources,20239,Computer Services,D2635,Computer Licences,15.99,Lloyds Bank,Computer Licences Domain Name Renewal,2008338,201812,
Rother District Council,11/02/2019,101RESOURCES,Resources,20239,Computer Services,D2635,Computer Licences,19.98,Lloyds Bank,Computer Licences Domain Name Renewal,2008338,201812,
Rother District Council,11/03/2019,101RESOURCES,Resources,20239,Computer Services,D2635,Computer Licences,103.92,Lloyds Bank,Computer Licences Domain Name Renewal,2008605,201812,
Rother District Council,11/03/2019,101RESOURCES,Resources,20239,Computer Services,D2635,Computer Licences,9.99,Lloyds Bank,Computer Licences Domain Name Renewal,2008605,201812,
Rother District Council,09/01/2019,101RESOURCES,Resources,20239,Computer Services,D2635,Computer Licences,15.99,Lloyds Bank,Computer Licences Domain Name Renewal,2007165,201810,
Rother District Council,09/01/2019,101RESOURCES,Resources,20239,Computer Services,D2635,Computer Licences,15.99,Lloyds Bank,Computer Licences Domain Name Renewal,2007165,201810,
Rother District Council,26/02/2019,091HOUSING,Housing and Community Services,20114,Bexhill Parks & Open Spaces,D2635,Computer Licences,86.00,MCPC Systems (UK) Ltd,Computer Licences Down To Earth - Capita - Software,2007921,201812,
Rother District Council,01/04/2019,101RESOURCES,Resources,20239,Computer Services,D2635,Computer Licences,"12,000.00",Xpress Software Solutions Ltd (ERS Group),Computer Licences Election Management System,2008451,201812,
Rother District Council,02/12/2018,041ENVIRON,Environmental Services,20198,Licensing Team,D2635,Computer Licences,262.50,Diamond People Ltd,Computer Licences Maintenance/Upgrading of Software,2006844,201810,
Rother District Council,17/12/2018,031RESOURCES,Executive Directors & Corporate Core,20158,Committee Service General Exp,D2635,Computer Licences,"5,000.00",Modern Mindset Ltd,Computer Licences Maintenance/Upgrading of Software,2006817,201810,
Rother District Council,30/01/2019,081ACQUISIT,"Acquisitions, Transformation and Regeneration",20144,Property Management,D2635,Computer Licences,"9,750.00",Altair Consultancy & Advisory Services Ltd,Computer Licences New Computer Software,2007670,201811,
Rother District Council,03/02/2019,101RESOURCES,Resources,20239,Computer Services,D2635,Computer Licences,370.00,Integra Associates Ltd,Computer Licences New Computer Software,2007713,201811,
Rother District Council,30/11/2018,101RESOURCES,Resources,20239,Computer Services,D2635,Computer Licences,555.00,Integra Associates Ltd,Computer Licences New Computer Software,2007779,201811,
Rother District Council,30/12/2018,101RESOURCES,Resources,20239,Computer Services,D2635,Computer Licences,"1,726.68",Integra Associates Ltd,Computer Licences New Computer Software,2007371,201811,
Rother District Council,03/03/2019,101RESOURCES,Resources,20222,Accountancy,D2635,Computer Licences,"1,133.21",Integra Associates Ltd,Computer Licences New Computer Software,2008468,201812,
Rother District Council,03/02/2019,101RESOURCES,Resources,20222,Accountancy,D2635,Computer Licences,"1,133.21",Integra Associates Ltd,Computer Licences New Computer Software,2007714,201811,
Rother District Council,21/12/2018,101RESOURCES,Resources,20222,Accountancy,D2635,Computer Licences,"3,399.63",Integra Associates Ltd,Computer Licences New Computer Software,2007780,201811,
Rother District Council,30/12/2018,101RESOURCES,Resources,20222,Accountancy,D2635,Computer Licences,"1,133.21",Integra Associates Ltd,Computer Licences New Computer Software,2007370,201811,
Rother District Council,01/02/2019,101RESOURCES,Resources,20239,Computer Services,D2635,Computer Licences,540.00,ReadSpeaker Ltd,Computer Licences Website Management,2007359,201811,
Rother District Council,11/03/2019,101RESOURCES,Resources,20239,Computer Services,D2635,Computer Licences,229.00,Lloyds Bank,Computer Licences Website Management,2008605,201812,
Rother District Council,21/01/2019,101RESOURCES,Resources,20211,Public Accountabilty-Resources,D2738,Conferences,389.00,Solace,Conferences Officers Conference fees,2007140,201810,
Rother District Council,08/02/2019,031RESOURCES,Executive Directors & Corporate Core,20183,Executive Directors,D2738,Conferences,389.00,Event-X Ltd,Conferences Officers Conference fees,2007549,201811,
Rother District Council,04/02/2019,101RESOURCES,Resources,20211,Public Accountabilty-Resources,D2738,Conferences,-389.00,Solace,Conferences Officers Conference fees,2007459,201811,
Rother District Council,31/01/2019,071STRAT,Strategy and Planning,20246,Planning Applications,D2509,Consultants and Other Services,250.00,Rural Planning Ltd,Consultants and Other Services Consultants Fees,2007307,201811,
Rother District Council,29/12/2018,071STRAT,Strategy and Planning,20246,Planning Applications,D2509,Consultants and Other Services,250.00,Rural Planning Ltd,Consultants and Other Services Consultants Fees,2006622,201810,
Rother District Council,13/02/2019,081ACQUISIT,"Acquisitions, Transformation and Regeneration",20136,Regeneration,D2509,Consultants and Other Services,"2,000.00",Hastings Borough Council,Consultants and Other Services Consultants Fees,2008373,201812,
Rother District Council,18/12/2018,091HOUSING,Housing and Community Services,20205,Housing Loans Account,D2514,Accommodation Costs,650.00,Mr Graham  Blake,Accommodation Costs Homelessness services Deposit for Landlords,2007103,201810,
Rother District Council,04/01/2019,031RESOURCES,Executive Directors & Corporate Core,20175,Administrative Offices - T.H. Annex (NOT CHP),D2509,Consultants and Other Services,"3,664.70",Mr R J Sheppard T/A E A R Sheppard,Consultants and Other Services Consultants Fees,2006675,201810,
Rother District Council,18/12/2018,091HOUSING,Housing and Community Services,20205,Housing Loans Account,D2514,Accommodation Costs,650.00,Mr Graham  Blake,Accommodation Costs Homelessness services Rent in Advance for Homeless,2007103,201810,
Rother District Council,30/01/2019,101RESOURCES,Resources,20216,Cost Of Collection,D2509,Consultants and Other Services,655.00,Capita Business Services Ltd,Consultants and Other Services Consultants Fees,2007387,201811,
Rother District Council,30/01/2019,101RESOURCES,Resources,20239,Computer Services,D2509,Consultants and Other Services,"1,908.50",Northgate Public Services (UK) Ltd,Consultants and Other Services Consultants Fees,2007300,201811,
Rother District Council,28/02/2019,101RESOURCES,Resources,20239,Computer Services,D2509,Consultants and Other Services,"1,650.00",Northgate Public Services (UK) Ltd,Consultants and Other Services Consultants Fees,2007892,201812,
Rother District Council,30/01/2019,101RESOURCES,Resources,20239,Computer Services,D2509,Consultants and Other Services,293.57,Northgate Public Services (UK) Ltd,Consultants and Other Services Consultants Fees,2007301,201811,
Rother District Council,28/02/2019,101RESOURCES,Resources,20239,Computer Services,D2509,Consultants and Other Services,103.00,Wilson's Express Hastings Ltd,Consultants and Other Services Consultants Fees,2008023,201812,
Rother District Council,27/02/2019,101RESOURCES,Resources,20239,Computer Services,D2509,Consultants and Other Services,200.29,Northgate Public Services (UK) Ltd,Consultants and Other Services Consultants Fees,2007891,201812,
Rother District Council,28/02/2019,071STRAT,Strategy and Planning,20246,Planning Applications,D2509,Consultants and Other Services,500.00,Rural Planning Ltd,Consultants and Other Services Consultants Fees,2008027,201812,
Rother District Council,31/01/2019,101RESOURCES,Resources,20239,Computer Services,D2509,Consultants and Other Services,135.96,Wilson's Express Hastings Ltd,Consultants and Other Services Consultants Fees,2007458,201811,
Rother District Council,20/12/2018,101RESOURCES,Resources,20239,Computer Services,D2509,Consultants and Other Services,203.75,Northgate Public Services (UK) Ltd,Consultants and Other Services Consultants Fees,2006570,201810,
Rother District Council,31/12/2018,101RESOURCES,Resources,20239,Computer Services,D2509,Consultants and Other Services,77.25,Wilson's Express Hastings Ltd,Consultants and Other Services Consultants Fees,2006648,201810,
Rother District Council,10/12/2018,101RESOURCES,Resources,20216,Cost Of Collection,D2509,Consultants and Other Services,"2,100.00",Capita Business Services Ltd,Consultants and Other Services Consultants Fees,2006833,201810,
Rother District Council,10/12/2018,101RESOURCES,Resources,20216,Cost Of Collection,D2509,Consultants and Other Services,"3,150.00",Capita Business Services Ltd,Consultants and Other Services Consultants Fees,2006832,201810,
Rother District Council,31/10/2018,091HOUSING,Housing and Community Services,20138,Residual Highway Services,D2513,Hired and Contracted services,353.10,Abacus Main Ltd,Contract cleaning Bus Shelter Cleaning Contract,2007127,201811,
Rother District Council,30/08/2018,091HOUSING,Housing and Community Services,20138,Residual Highway Services,D2513,Hired and Contracted services,353.10,Abacus Main Ltd,Contract cleaning Bus Shelter Cleaning Contract,2007128,201811,
Rother District Council,01/02/2019,081ACQUISIT,"Acquisitions, Transformation and Regeneration",20153,"Elva Business Centre, Bexhill",B1100,Repairs to Premises,127.40,J M Waste Management Limited,Contract cleaning Bus Shelter Cleaning Contract,2007561,201812,
Rother District Council,28/02/2019,091HOUSING,Housing and Community Services,20132,Street & Beach Cleansing,D2513,Hired and Contracted services,353.10,Abacus Main Ltd,Contract cleaning Bus Shelter Cleaning Contract,2007984,201812,
Rother District Council,31/01/2019,031RESOURCES,Executive Directors & Corporate Core,20175,Administrative Offices - T.H. Annex (NOT CHP),B2611,Contract cleaning,112.00,Abacus Main Ltd,Contract cleaning Office Cleaning,2007319,201811,
Rother District Council,31/01/2019,031RESOURCES,Executive Directors & Corporate Core,20176,Administrative Offices - Print Room,B2611,Contract cleaning,28.00,Abacus Main Ltd,Contract cleaning Office Cleaning,2007319,201811,
Rother District Council,31/01/2019,031RESOURCES,Executive Directors & Corporate Core,20173,Administrative Offices - Town Hall,B2611,Contract cleaning,240.00,Abacus Main Ltd,Contract cleaning Office Cleaning,2007319,201811,
Rother District Council,17/01/2019,031RESOURCES,Executive Directors & Corporate Core,20175,Administrative Offices - T.H. Annex (NOT CHP),B2611,Contract cleaning,132.00,1st Online Solutions Ltd,Contract cleaning Office Cleaning,2007017,201810,
Rother District Council,10/01/2019,031RESOURCES,Executive Directors & Corporate Core,20173,Administrative Offices - Town Hall,B2611,Contract cleaning,132.00,1st Online Solutions Ltd,Contract cleaning Office Cleaning,2006856,201810,
Rother District Council,04/03/2019,081ACQUISIT,"Acquisitions, Transformation and Regeneration",20153,"Elva Business Centre, Bexhill",B1100,Repairs to Premises,127.40,J M Waste Management Limited,Contract cleaning Office Cleaning,2008392,201812,
Rother District Council,07/02/2019,081ACQUISIT,"Acquisitions, Transformation and Regeneration",20153,"Elva Business Centre, Bexhill",B2611,Contract cleaning,60.00,Just Maid 4 U,Contract cleaning Office Cleaning,2007478,201811,
Rother District Council,31/01/2019,091HOUSING,Housing and Community Services,20108,Bexhill Promenade & Foreshore,B2611,Contract cleaning,126.00,Abacus Main Ltd,Contract cleaning Office Cleaning,2007320,201811,
Rother District Council,31/10/2018,091HOUSING,Housing and Community Services,20108,Bexhill Promenade & Foreshore,B2611,Contract cleaning,126.00,Abacus Main Ltd,Contract cleaning Office Cleaning,2007126,201810,
Rother District Council,07/01/2019,081ACQUISIT,"Acquisitions, Transformation and Regeneration",20153,"Elva Business Centre, Bexhill",B2611,Contract cleaning,127.40,J M Waste Management Limited,Contract cleaning Office Cleaning,2007220,201810,
Rother District Council,31/12/2018,091HOUSING,Housing and Community Services,20108,Bexhill Promenade & Foreshore,B2611,Contract cleaning,126.00,Abacus Main Ltd,Contract cleaning Office Cleaning,2007036,201810,
Rother District Council,28/02/2019,091HOUSING,Housing and Community Services,20108,Bexhill Promenade & Foreshore,B2611,Contract cleaning,126.00,Abacus Main Ltd,Contract cleaning Office Cleaning,2007985,201812,
Rother District Council,01/04/2019,091HOUSING,Housing and Community Services,20128,Public Conveniences,B2611,Contract cleaning,816.03,Specialist Hygiene Services Ltd,Contract cleaning Public Conveniences Cleaning Servic,2008559,201812,
Rother District Council,01/04/2019,091HOUSING,Housing and Community Services,20128,Public Conveniences,B2611,Contract cleaning,721.82,Specialist Hygiene Services Ltd,Contract cleaning Public Conveniences Cleaning Servic,2008559,201812,
Rother District Council,01/04/2019,091HOUSING,Housing and Community Services,20128,Public Conveniences,B2611,Contract cleaning,190.45,Specialist Hygiene Services Ltd,Contract cleaning Public Conveniences Cleaning Servic,2008559,201812,
Rother District Council,01/04/2019,091HOUSING,Housing and Community Services,20128,Public Conveniences,B2611,Contract cleaning,679.98,Specialist Hygiene Services Ltd,Contract cleaning Public Conveniences Cleaning Servic,2008559,201812,
Rother District Council,01/04/2019,091HOUSING,Housing and Community Services,20128,Public Conveniences,B2611,Contract cleaning,489.62,Specialist Hygiene Services Ltd,Contract cleaning Public Conveniences Cleaning Servic,2008559,201812,
Rother District Council,01/04/2019,091HOUSING,Housing and Community Services,20128,Public Conveniences,B2611,Contract cleaning,816.03,Specialist Hygiene Services Ltd,Contract cleaning Public Conveniences Cleaning Servic,2008559,201812,
Rother District Council,01/04/2019,091HOUSING,Housing and Community Services,20128,Public Conveniences,B2611,Contract cleaning,489.62,Specialist Hygiene Services Ltd,Contract cleaning Public Conveniences Cleaning Servic,2008559,201812,
Rother District Council,01/04/2019,091HOUSING,Housing and Community Services,20128,Public Conveniences,B2611,Contract cleaning,598.34,Specialist Hygiene Services Ltd,Contract cleaning Public Conveniences Cleaning Servic,2008559,201812,
Rother District Council,01/04/2019,091HOUSING,Housing and Community Services,20128,Public Conveniences,B2611,Contract cleaning,272.01,Specialist Hygiene Services Ltd,Contract cleaning Public Conveniences Cleaning Servic,2008559,201812,
Rother District Council,01/04/2019,091HOUSING,Housing and Community Services,20128,Public Conveniences,B2611,Contract cleaning,326.42,Specialist Hygiene Services Ltd,Contract cleaning Public Conveniences Cleaning Servic,2008559,201812,
Rother District Council,01/04/2019,091HOUSING,Housing and Community Services,20128,Public Conveniences,B2611,Contract cleaning,571.18,Specialist Hygiene Services Ltd,Contract cleaning Public Conveniences Cleaning Servic,2008559,201812,
Rother District Council,01/04/2019,091HOUSING,Housing and Community Services,20128,Public Conveniences,B2611,Contract cleaning,516.78,Specialist Hygiene Services Ltd,Contract cleaning Public Conveniences Cleaning Servic,2008559,201812,
Rother District Council,01/04/2019,091HOUSING,Housing and Community Services,20128,Public Conveniences,B2611,Contract cleaning,244.77,Specialist Hygiene Services Ltd,Contract cleaning Public Conveniences Cleaning Servic,2008559,201812,
Rother District Council,01/04/2019,091HOUSING,Housing and Community Services,20128,Public Conveniences,B2611,Contract cleaning,543.94,Specialist Hygiene Services Ltd,Contract cleaning Public Conveniences Cleaning Servic,2008559,201812,
Rother District Council,01/04/2019,091HOUSING,Housing and Community Services,20128,Public Conveniences,B2611,Contract cleaning,299.17,Specialist Hygiene Services Ltd,Contract cleaning Public Conveniences Cleaning Servic,2008559,201812,
Rother District Council,01/04/2019,091HOUSING,Housing and Community Services,20128,Public Conveniences,B2611,Contract cleaning,489.62,Specialist Hygiene Services Ltd,Contract cleaning Public Conveniences Cleaning Servic,2008559,201812,
Rother District Council,01/04/2019,091HOUSING,Housing and Community Services,20128,Public Conveniences,B2611,Contract cleaning,721.32,Specialist Hygiene Services Ltd,Contract cleaning Public Conveniences Cleaning Servic,2008559,201812,
Rother District Council,01/04/2019,091HOUSING,Housing and Community Services,20128,Public Conveniences,B2611,Contract cleaning,"1,180.74",Specialist Hygiene Services Ltd,Contract cleaning Public Conveniences Cleaning Servic,2008559,201812,
Rother District Council,01/04/2019,091HOUSING,Housing and Community Services,20128,Public Conveniences,B2611,Contract cleaning,459.34,Specialist Hygiene Services Ltd,Contract cleaning Public Conveniences Cleaning Servic,2008559,201812,
Rother District Council,01/04/2019,091HOUSING,Housing and Community Services,20128,Public Conveniences,B2611,Contract cleaning,901.56,Specialist Hygiene Services Ltd,Contract cleaning Public Conveniences Cleaning Servic,2008559,201812,
Rother District Council,01/04/2019,091HOUSING,Housing and Community Services,20128,Public Conveniences,B2611,Contract cleaning,"1,196.43",Specialist Hygiene Services Ltd,Contract cleaning Public Conveniences Cleaning Servic,2008559,201812,
Rother District Council,01/04/2019,091HOUSING,Housing and Community Services,20128,Public Conveniences,B2611,Contract cleaning,"1,196.43",Specialist Hygiene Services Ltd,Contract cleaning Public Conveniences Cleaning Servic,2008559,201812,
Rother District Council,01/04/2019,091HOUSING,Housing and Community Services,20128,Public Conveniences,B2611,Contract cleaning,"1,700.98",Specialist Hygiene Services Ltd,Contract cleaning Public Conveniences Cleaning Servic,2008559,201812,
Rother District Council,01/04/2019,091HOUSING,Housing and Community Services,20128,Public Conveniences,B2611,Contract cleaning,282.39,Specialist Hygiene Services Ltd,Contract cleaning Public Conveniences Cleaning Servic,2008559,201812,
Rother District Council,01/04/2019,091HOUSING,Housing and Community Services,20128,Public Conveniences,B2611,Contract cleaning,376.60,Specialist Hygiene Services Ltd,Contract cleaning Public Conveniences Cleaning Servic,2008559,201812,
Rother District Council,01/04/2019,091HOUSING,Housing and Community Services,20128,Public Conveniences,B2611,Contract cleaning,313.85,Specialist Hygiene Services Ltd,Contract cleaning Public Conveniences Cleaning Servic,2008559,201812,
Rother District Council,01/04/2019,091HOUSING,Housing and Community Services,20128,Public Conveniences,B2611,Contract cleaning,345.22,Specialist Hygiene Services Ltd,Contract cleaning Public Conveniences Cleaning Servic,2008559,201812,
Rother District Council,01/04/2019,091HOUSING,Housing and Community Services,20128,Public Conveniences,B2611,Contract cleaning,376.60,Specialist Hygiene Services Ltd,Contract cleaning Public Conveniences Cleaning Servic,2008559,201812,
Rother District Council,01/04/2019,091HOUSING,Housing and Community Services,20128,Public Conveniences,B2611,Contract cleaning,282.39,Specialist Hygiene Services Ltd,Contract cleaning Public Conveniences Cleaning Servic,2008559,201812,
Rother District Council,01/04/2019,091HOUSING,Housing and Community Services,20128,Public Conveniences,B2611,Contract cleaning,546.60,Specialist Hygiene Services Ltd,Contract cleaning Public Conveniences Cleaning Servic,2008559,201812,
Rother District Council,01/02/2019,091HOUSING,Housing and Community Services,20128,Public Conveniences,B2611,Contract cleaning,816.03,Specialist Hygiene Services Ltd,Contract cleaning Public Conveniences Cleaning Servic,2007849,201811,
Rother District Council,01/02/2019,091HOUSING,Housing and Community Services,20128,Public Conveniences,B2611,Contract cleaning,721.82,Specialist Hygiene Services Ltd,Contract cleaning Public Conveniences Cleaning Servic,2007849,201811,
Rother District Council,01/02/2019,091HOUSING,Housing and Community Services,20128,Public Conveniences,B2611,Contract cleaning,190.45,Specialist Hygiene Services Ltd,Contract cleaning Public Conveniences Cleaning Servic,2007849,201811,
Rother District Council,01/02/2019,091HOUSING,Housing and Community Services,20128,Public Conveniences,B2611,Contract cleaning,679.98,Specialist Hygiene Services Ltd,Contract cleaning Public Conveniences Cleaning Servic,2007849,201811,
Rother District Council,01/02/2019,091HOUSING,Housing and Community Services,20128,Public Conveniences,B2611,Contract cleaning,489.62,Specialist Hygiene Services Ltd,Contract cleaning Public Conveniences Cleaning Servic,2007849,201811,
Rother District Council,01/02/2019,091HOUSING,Housing and Community Services,20128,Public Conveniences,B2611,Contract cleaning,816.03,Specialist Hygiene Services Ltd,Contract cleaning Public Conveniences Cleaning Servic,2007849,201811,
Rother District Council,01/02/2019,091HOUSING,Housing and Community Services,20128,Public Conveniences,B2611,Contract cleaning,489.62,Specialist Hygiene Services Ltd,Contract cleaning Public Conveniences Cleaning Servic,2007849,201811,
Rother District Council,01/02/2019,091HOUSING,Housing and Community Services,20128,Public Conveniences,B2611,Contract cleaning,598.34,Specialist Hygiene Services Ltd,Contract cleaning Public Conveniences Cleaning Servic,2007849,201811,
Rother District Council,01/02/2019,091HOUSING,Housing and Community Services,20128,Public Conveniences,B2611,Contract cleaning,272.01,Specialist Hygiene Services Ltd,Contract cleaning Public Conveniences Cleaning Servic,2007849,201811,
Rother District Council,01/02/2019,091HOUSING,Housing and Community Services,20128,Public Conveniences,B2611,Contract cleaning,326.42,Specialist Hygiene Services Ltd,Contract cleaning Public Conveniences Cleaning Servic,2007849,201811,
Rother District Council,01/02/2019,091HOUSING,Housing and Community Services,20128,Public Conveniences,B2611,Contract cleaning,571.18,Specialist Hygiene Services Ltd,Contract cleaning Public Conveniences Cleaning Servic,2007849,201811,
Rother District Council,01/02/2019,091HOUSING,Housing and Community Services,20128,Public Conveniences,B2611,Contract cleaning,516.78,Specialist Hygiene Services Ltd,Contract cleaning Public Conveniences Cleaning Servic,2007849,201811,
Rother District Council,01/02/2019,091HOUSING,Housing and Community Services,20128,Public Conveniences,B2611,Contract cleaning,244.77,Specialist Hygiene Services Ltd,Contract cleaning Public Conveniences Cleaning Servic,2007849,201811,
Rother District Council,01/02/2019,091HOUSING,Housing and Community Services,20128,Public Conveniences,B2611,Contract cleaning,543.94,Specialist Hygiene Services Ltd,Contract cleaning Public Conveniences Cleaning Servic,2007849,201811,
Rother District Council,01/02/2019,091HOUSING,Housing and Community Services,20128,Public Conveniences,B2611,Contract cleaning,299.17,Specialist Hygiene Services Ltd,Contract cleaning Public Conveniences Cleaning Servic,2007849,201811,
Rother District Council,01/02/2019,091HOUSING,Housing and Community Services,20128,Public Conveniences,B2611,Contract cleaning,489.62,Specialist Hygiene Services Ltd,Contract cleaning Public Conveniences Cleaning Servic,2007849,201811,
Rother District Council,01/02/2019,091HOUSING,Housing and Community Services,20128,Public Conveniences,B2611,Contract cleaning,721.32,Specialist Hygiene Services Ltd,Contract cleaning Public Conveniences Cleaning Servic,2007849,201811,
Rother District Council,01/02/2019,091HOUSING,Housing and Community Services,20128,Public Conveniences,B2611,Contract cleaning,"1,180.74",Specialist Hygiene Services Ltd,Contract cleaning Public Conveniences Cleaning Servic,2007849,201811,
Rother District Council,01/02/2019,091HOUSING,Housing and Community Services,20128,Public Conveniences,B2611,Contract cleaning,459.34,Specialist Hygiene Services Ltd,Contract cleaning Public Conveniences Cleaning Servic,2007849,201811,
Rother District Council,01/02/2019,091HOUSING,Housing and Community Services,20128,Public Conveniences,B2611,Contract cleaning,901.56,Specialist Hygiene Services Ltd,Contract cleaning Public Conveniences Cleaning Servic,2007849,201811,
Rother District Council,01/02/2019,091HOUSING,Housing and Community Services,20128,Public Conveniences,B2611,Contract cleaning,"1,196.43",Specialist Hygiene Services Ltd,Contract cleaning Public Conveniences Cleaning Servic,2007849,201811,
Rother District Council,01/02/2019,091HOUSING,Housing and Community Services,20128,Public Conveniences,B2611,Contract cleaning,"1,196.43",Specialist Hygiene Services Ltd,Contract cleaning Public Conveniences Cleaning Servic,2007849,201811,
Rother District Council,01/02/2019,091HOUSING,Housing and Community Services,20128,Public Conveniences,B2611,Contract cleaning,"1,700.98",Specialist Hygiene Services Ltd,Contract cleaning Public Conveniences Cleaning Servic,2007849,201811,
Rother District Council,01/02/2019,091HOUSING,Housing and Community Services,20128,Public Conveniences,B2611,Contract cleaning,282.39,Specialist Hygiene Services Ltd,Contract cleaning Public Conveniences Cleaning Servic,2007849,201811,
Rother District Council,01/02/2019,091HOUSING,Housing and Community Services,20128,Public Conveniences,B2611,Contract cleaning,376.60,Specialist Hygiene Services Ltd,Contract cleaning Public Conveniences Cleaning Servic,2007849,201811,
Rother District Council,01/02/2019,091HOUSING,Housing and Community Services,20128,Public Conveniences,B2611,Contract cleaning,313.85,Specialist Hygiene Services Ltd,Contract cleaning Public Conveniences Cleaning Servic,2007849,201811,
Rother District Council,01/02/2019,091HOUSING,Housing and Community Services,20128,Public Conveniences,B2611,Contract cleaning,345.22,Specialist Hygiene Services Ltd,Contract cleaning Public Conveniences Cleaning Servic,2007849,201811,
Rother District Council,01/02/2019,091HOUSING,Housing and Community Services,20128,Public Conveniences,B2611,Contract cleaning,376.60,Specialist Hygiene Services Ltd,Contract cleaning Public Conveniences Cleaning Servic,2007849,201811,
Rother District Council,01/02/2019,091HOUSING,Housing and Community Services,20128,Public Conveniences,B2611,Contract cleaning,282.39,Specialist Hygiene Services Ltd,Contract cleaning Public Conveniences Cleaning Servic,2007849,201811,
Rother District Council,01/02/2019,091HOUSING,Housing and Community Services,20128,Public Conveniences,B2611,Contract cleaning,546.60,Specialist Hygiene Services Ltd,Contract cleaning Public Conveniences Cleaning Servic,2007849,201811,
Rother District Council,01/01/2019,091HOUSING,Housing and Community Services,20128,Public Conveniences,B2611,Contract cleaning,244.77,Specialist Hygiene Services Ltd,Contract cleaning Public Conveniences Cleaning Servic,2006653,201810,
Rother District Council,01/01/2019,091HOUSING,Housing and Community Services,20128,Public Conveniences,B2611,Contract cleaning,543.94,Specialist Hygiene Services Ltd,Contract cleaning Public Conveniences Cleaning Servic,2006653,201810,
Rother District Council,01/01/2019,091HOUSING,Housing and Community Services,20128,Public Conveniences,B2611,Contract cleaning,299.17,Specialist Hygiene Services Ltd,Contract cleaning Public Conveniences Cleaning Servic,2006653,201810,
Rother District Council,01/01/2019,091HOUSING,Housing and Community Services,20128,Public Conveniences,B2611,Contract cleaning,489.62,Specialist Hygiene Services Ltd,Contract cleaning Public Conveniences Cleaning Servic,2006653,201810,
Rother District Council,01/01/2019,091HOUSING,Housing and Community Services,20128,Public Conveniences,B2611,Contract cleaning,721.32,Specialist Hygiene Services Ltd,Contract cleaning Public Conveniences Cleaning Servic,2006653,201810,
Rother District Council,01/01/2019,091HOUSING,Housing and Community Services,20128,Public Conveniences,B2611,Contract cleaning,"1,180.74",Specialist Hygiene Services Ltd,Contract cleaning Public Conveniences Cleaning Servic,2006653,201810,
Rother District Council,01/01/2019,091HOUSING,Housing and Community Services,20128,Public Conveniences,B2611,Contract cleaning,459.34,Specialist Hygiene Services Ltd,Contract cleaning Public Conveniences Cleaning Servic,2006653,201810,
Rother District Council,01/01/2019,091HOUSING,Housing and Community Services,20128,Public Conveniences,B2611,Contract cleaning,901.56,Specialist Hygiene Services Ltd,Contract cleaning Public Conveniences Cleaning Servic,2006653,201810,
Rother District Council,01/01/2019,091HOUSING,Housing and Community Services,20128,Public Conveniences,B2611,Contract cleaning,"1,196.43",Specialist Hygiene Services Ltd,Contract cleaning Public Conveniences Cleaning Servic,2006653,201810,
Rother District Council,01/01/2019,091HOUSING,Housing and Community Services,20128,Public Conveniences,B2611,Contract cleaning,"1,196.43",Specialist Hygiene Services Ltd,Contract cleaning Public Conveniences Cleaning Servic,2006653,201810,
Rother District Council,01/01/2019,091HOUSING,Housing and Community Services,20128,Public Conveniences,B2611,Contract cleaning,"1,700.98",Specialist Hygiene Services Ltd,Contract cleaning Public Conveniences Cleaning Servic,2006653,201810,
Rother District Council,01/01/2019,091HOUSING,Housing and Community Services,20128,Public Conveniences,B2611,Contract cleaning,282.39,Specialist Hygiene Services Ltd,Contract cleaning Public Conveniences Cleaning Servic,2006653,201810,
Rother District Council,01/01/2019,091HOUSING,Housing and Community Services,20128,Public Conveniences,B2611,Contract cleaning,376.60,Specialist Hygiene Services Ltd,Contract cleaning Public Conveniences Cleaning Servic,2006653,201810,
Rother District Council,01/01/2019,091HOUSING,Housing and Community Services,20128,Public Conveniences,B2611,Contract cleaning,313.85,Specialist Hygiene Services Ltd,Contract cleaning Public Conveniences Cleaning Servic,2006653,201810,
Rother District Council,01/01/2019,091HOUSING,Housing and Community Services,20128,Public Conveniences,B2611,Contract cleaning,345.22,Specialist Hygiene Services Ltd,Contract cleaning Public Conveniences Cleaning Servic,2006653,201810,
Rother District Council,01/01/2019,091HOUSING,Housing and Community Services,20128,Public Conveniences,B2611,Contract cleaning,376.60,Specialist Hygiene Services Ltd,Contract cleaning Public Conveniences Cleaning Servic,2006653,201810,
Rother District Council,01/01/2019,091HOUSING,Housing and Community Services,20128,Public Conveniences,B2611,Contract cleaning,282.39,Specialist Hygiene Services Ltd,Contract cleaning Public Conveniences Cleaning Servic,2006653,201810,
Rother District Council,01/01/2019,091HOUSING,Housing and Community Services,20128,Public Conveniences,B2611,Contract cleaning,546.60,Specialist Hygiene Services Ltd,Contract cleaning Public Conveniences Cleaning Servic,2006653,201810,
Rother District Council,01/01/2019,091HOUSING,Housing and Community Services,20128,Public Conveniences,B2611,Contract cleaning,816.03,Specialist Hygiene Services Ltd,Contract cleaning Public Conveniences Cleaning Servic,2006653,201810,
Rother District Council,01/01/2019,091HOUSING,Housing and Community Services,20128,Public Conveniences,B2611,Contract cleaning,721.82,Specialist Hygiene Services Ltd,Contract cleaning Public Conveniences Cleaning Servic,2006653,201810,
Rother District Council,01/01/2019,091HOUSING,Housing and Community Services,20128,Public Conveniences,B2611,Contract cleaning,190.45,Specialist Hygiene Services Ltd,Contract cleaning Public Conveniences Cleaning Servic,2006653,201810,
Rother District Council,01/01/2019,091HOUSING,Housing and Community Services,20128,Public Conveniences,B2611,Contract cleaning,679.98,Specialist Hygiene Services Ltd,Contract cleaning Public Conveniences Cleaning Servic,2006653,201810,
Rother District Council,01/01/2019,091HOUSING,Housing and Community Services,20128,Public Conveniences,B2611,Contract cleaning,489.62,Specialist Hygiene Services Ltd,Contract cleaning Public Conveniences Cleaning Servic,2006653,201810,
Rother District Council,01/01/2019,091HOUSING,Housing and Community Services,20128,Public Conveniences,B2611,Contract cleaning,816.03,Specialist Hygiene Services Ltd,Contract cleaning Public Conveniences Cleaning Servic,2006653,201810,
Rother District Council,01/01/2019,091HOUSING,Housing and Community Services,20128,Public Conveniences,B2611,Contract cleaning,489.62,Specialist Hygiene Services Ltd,Contract cleaning Public Conveniences Cleaning Servic,2006653,201810,
Rother District Council,01/01/2019,091HOUSING,Housing and Community Services,20128,Public Conveniences,B2611,Contract cleaning,598.34,Specialist Hygiene Services Ltd,Contract cleaning Public Conveniences Cleaning Servic,2006653,201810,
Rother District Council,01/01/2019,091HOUSING,Housing and Community Services,20128,Public Conveniences,B2611,Contract cleaning,272.01,Specialist Hygiene Services Ltd,Contract cleaning Public Conveniences Cleaning Servic,2006653,201810,
Rother District Council,01/01/2019,091HOUSING,Housing and Community Services,20128,Public Conveniences,B2611,Contract cleaning,326.42,Specialist Hygiene Services Ltd,Contract cleaning Public Conveniences Cleaning Servic,2006653,201810,
Rother District Council,01/01/2019,091HOUSING,Housing and Community Services,20128,Public Conveniences,B2611,Contract cleaning,571.18,Specialist Hygiene Services Ltd,Contract cleaning Public Conveniences Cleaning Servic,2006653,201810,
Rother District Council,01/01/2019,091HOUSING,Housing and Community Services,20128,Public Conveniences,B2611,Contract cleaning,516.78,Specialist Hygiene Services Ltd,Contract cleaning Public Conveniences Cleaning Servic,2006653,201810,
Rother District Council,05/02/2019,091HOUSING,Housing and Community Services,20128,Public Conveniences,B2611,Contract cleaning,"1,146.80",Specialist Hygiene Services Ltd,Contract cleaning Public Conveniences Cleaning Servic,2007645,201811,
Rother District Council,01/03/2019,091HOUSING,Housing and Community Services,20128,Public Conveniences,B2611,Contract cleaning,816.03,Specialist Hygiene Services Ltd,Contract cleaning Public Conveniences Cleaning Servic,2007646,201811,
Rother District Council,01/03/2019,091HOUSING,Housing and Community Services,20128,Public Conveniences,B2611,Contract cleaning,721.82,Specialist Hygiene Services Ltd,Contract cleaning Public Conveniences Cleaning Servic,2007646,201811,
Rother District Council,01/03/2019,091HOUSING,Housing and Community Services,20128,Public Conveniences,B2611,Contract cleaning,190.45,Specialist Hygiene Services Ltd,Contract cleaning Public Conveniences Cleaning Servic,2007646,201811,
Rother District Council,01/03/2019,091HOUSING,Housing and Community Services,20128,Public Conveniences,B2611,Contract cleaning,679.98,Specialist Hygiene Services Ltd,Contract cleaning Public Conveniences Cleaning Servic,2007646,201811,
Rother District Council,01/03/2019,091HOUSING,Housing and Community Services,20128,Public Conveniences,B2611,Contract cleaning,489.62,Specialist Hygiene Services Ltd,Contract cleaning Public Conveniences Cleaning Servic,2007646,201811,
Rother District Council,01/03/2019,091HOUSING,Housing and Community Services,20128,Public Conveniences,B2611,Contract cleaning,816.03,Specialist Hygiene Services Ltd,Contract cleaning Public Conveniences Cleaning Servic,2007646,201811,
Rother District Council,01/03/2019,091HOUSING,Housing and Community Services,20128,Public Conveniences,B2611,Contract cleaning,489.62,Specialist Hygiene Services Ltd,Contract cleaning Public Conveniences Cleaning Servic,2007646,201811,
Rother District Council,01/03/2019,091HOUSING,Housing and Community Services,20128,Public Conveniences,B2611,Contract cleaning,598.34,Specialist Hygiene Services Ltd,Contract cleaning Public Conveniences Cleaning Servic,2007646,201811,
Rother District Council,01/03/2019,091HOUSING,Housing and Community Services,20128,Public Conveniences,B2611,Contract cleaning,272.01,Specialist Hygiene Services Ltd,Contract cleaning Public Conveniences Cleaning Servic,2007646,201811,
Rother District Council,01/03/2019,091HOUSING,Housing and Community Services,20128,Public Conveniences,B2611,Contract cleaning,326.42,Specialist Hygiene Services Ltd,Contract cleaning Public Conveniences Cleaning Servic,2007646,201811,
Rother District Council,01/03/2019,091HOUSING,Housing and Community Services,20128,Public Conveniences,B2611,Contract cleaning,571.18,Specialist Hygiene Services Ltd,Contract cleaning Public Conveniences Cleaning Servic,2007646,201811,
Rother District Council,01/03/2019,091HOUSING,Housing and Community Services,20128,Public Conveniences,B2611,Contract cleaning,516.78,Specialist Hygiene Services Ltd,Contract cleaning Public Conveniences Cleaning Servic,2007646,201811,
Rother District Council,01/03/2019,091HOUSING,Housing and Community Services,20128,Public Conveniences,B2611,Contract cleaning,244.77,Specialist Hygiene Services Ltd,Contract cleaning Public Conveniences Cleaning Servic,2007646,201811,
Rother District Council,01/03/2019,091HOUSING,Housing and Community Services,20128,Public Conveniences,B2611,Contract cleaning,543.94,Specialist Hygiene Services Ltd,Contract cleaning Public Conveniences Cleaning Servic,2007646,201811,
Rother District Council,01/03/2019,091HOUSING,Housing and Community Services,20128,Public Conveniences,B2611,Contract cleaning,299.17,Specialist Hygiene Services Ltd,Contract cleaning Public Conveniences Cleaning Servic,2007646,201811,
Rother District Council,01/03/2019,091HOUSING,Housing and Community Services,20128,Public Conveniences,B2611,Contract cleaning,489.62,Specialist Hygiene Services Ltd,Contract cleaning Public Conveniences Cleaning Servic,2007646,201811,
Rother District Council,01/03/2019,091HOUSING,Housing and Community Services,20128,Public Conveniences,B2611,Contract cleaning,721.32,Specialist Hygiene Services Ltd,Contract cleaning Public Conveniences Cleaning Servic,2007646,201811,
Rother District Council,01/03/2019,091HOUSING,Housing and Community Services,20128,Public Conveniences,B2611,Contract cleaning,"1,180.74",Specialist Hygiene Services Ltd,Contract cleaning Public Conveniences Cleaning Servic,2007646,201811,
Rother District Council,01/03/2019,091HOUSING,Housing and Community Services,20128,Public Conveniences,B2611,Contract cleaning,459.34,Specialist Hygiene Services Ltd,Contract cleaning Public Conveniences Cleaning Servic,2007646,201811,
Rother District Council,01/03/2019,091HOUSING,Housing and Community Services,20128,Public Conveniences,B2611,Contract cleaning,901.56,Specialist Hygiene Services Ltd,Contract cleaning Public Conveniences Cleaning Servic,2007646,201811,
Rother District Council,01/03/2019,091HOUSING,Housing and Community Services,20128,Public Conveniences,B2611,Contract cleaning,"1,196.43",Specialist Hygiene Services Ltd,Contract cleaning Public Conveniences Cleaning Servic,2007646,201811,
Rother District Council,01/03/2019,091HOUSING,Housing and Community Services,20128,Public Conveniences,B2611,Contract cleaning,"1,196.43",Specialist Hygiene Services Ltd,Contract cleaning Public Conveniences Cleaning Servic,2007646,201811,
Rother District Council,01/03/2019,091HOUSING,Housing and Community Services,20128,Public Conveniences,B2611,Contract cleaning,"1,700.98",Specialist Hygiene Services Ltd,Contract cleaning Public Conveniences Cleaning Servic,2007646,201811,
Rother District Council,01/03/2019,091HOUSING,Housing and Community Services,20128,Public Conveniences,B2611,Contract cleaning,282.39,Specialist Hygiene Services Ltd,Contract cleaning Public Conveniences Cleaning Servic,2007646,201811,
Rother District Council,01/03/2019,091HOUSING,Housing and Community Services,20128,Public Conveniences,B2611,Contract cleaning,376.60,Specialist Hygiene Services Ltd,Contract cleaning Public Conveniences Cleaning Servic,2007646,201811,
Rother District Council,01/03/2019,091HOUSING,Housing and Community Services,20128,Public Conveniences,B2611,Contract cleaning,313.85,Specialist Hygiene Services Ltd,Contract cleaning Public Conveniences Cleaning Servic,2007646,201811,
Rother District Council,01/03/2019,091HOUSING,Housing and Community Services,20128,Public Conveniences,B2611,Contract cleaning,345.22,Specialist Hygiene Services Ltd,Contract cleaning Public Conveniences Cleaning Servic,2007646,201811,
Rother District Council,01/03/2019,091HOUSING,Housing and Community Services,20128,Public Conveniences,B2611,Contract cleaning,376.60,Specialist Hygiene Services Ltd,Contract cleaning Public Conveniences Cleaning Servic,2007646,201811,
Rother District Council,01/03/2019,091HOUSING,Housing and Community Services,20128,Public Conveniences,B2611,Contract cleaning,282.39,Specialist Hygiene Services Ltd,Contract cleaning Public Conveniences Cleaning Servic,2007646,201811,
Rother District Council,01/03/2019,091HOUSING,Housing and Community Services,20128,Public Conveniences,B2611,Contract cleaning,546.60,Specialist Hygiene Services Ltd,Contract cleaning Public Conveniences Cleaning Servic,2007646,201811,
Rother District Council,07/03/2019,031RESOURCES,Executive Directors & Corporate Core,20170,Communications-Postages,D2627,County Courier service,"1,388.76",East Sussex County Council,County Courier service County Courier Service,2008156,201812,
Rother District Council,08/02/2019,031RESOURCES,Executive Directors & Corporate Core,20170,Communications-Postages,D2627,County Courier service,"1,193.16",East Sussex County Council,County Courier service County Courier Service,2007616,201811,
Rother District Council,22/01/2019,101RESOURCES,Resources,20216,Cost Of Collection,D2639,Departmental Systems,"1,500.00",Destin Solutions Ltd,Departmental Systems Destin Soloutions,2007216,201810,
Rother District Council,06/02/2019,041ENVIRON,Environmental Services,32144,EH Environmental Services Admin R + W Partnership,D2639,Departmental Systems,"1,700.00",Northgate Public Services (UK) Ltd,Departmental Systems EnvH- Northgate Support & Maintenance,2007453,201811,
Rother District Council,15/02/2019,101RESOURCES,Resources,20216,Cost Of Collection,D2639,Departmental Systems,"1,500.00",Capita Business Services Ltd,Departmental Systems Software for Academy System,2007809,201811,
Rother District Council,15/03/2019,101RESOURCES,Resources,20216,Cost Of Collection,D2513,Hired and Contracted services,"1,300.00",Capita Business Services Ltd,Departmental Systems Software for Academy System,2008366,201812,
Rother District Council,19/03/2019,101RESOURCES,Resources,20216,Cost Of Collection,D2639,Departmental Systems,"2,898.00",Capita Business Services Ltd,Departmental Systems Software for Academy System,2008562,201812,
Rother District Council,12/11/2018,101RESOURCES,Resources,20216,Cost Of Collection,D2639,Departmental Systems,"1,545.00",Document Output Solutions UK Ltd,Departmental Systems Software for Academy System,2007547,201811,
Rother District Council,30/01/2019,101RESOURCES,Resources,20216,Cost Of Collection,D2639,Departmental Systems,"26,250.00",Capita Business Services Ltd,Departmental Systems Software for Academy System,2007544,201811,
Rother District Council,28/12/2018,101RESOURCES,Resources,20216,Cost Of Collection,D2639,Departmental Systems,"2,850.00",Capita Business Services Ltd,Departmental Systems Software for Academy System,2006849,201810,
Rother District Council,15/12/2018,091HOUSING,Housing and Community Services,20145,Maintenance Services,C1104,Derv,1.90,Allstar Business Solutions,Derv Fuel Service fee payable on fuel cards,2007161,201810,
Rother District Council,31/12/2018,091HOUSING,Housing and Community Services,20145,Maintenance Services,C1104,Derv,3.80,Allstar Business Solutions,Derv Fuel Service fee payable on fuel cards,2007289,201811,
Rother District Council,30/11/2018,091HOUSING,Housing and Community Services,20145,Maintenance Services,C1104,Derv,1.90,Allstar Business Solutions,Derv Fuel Service fee payable on fuel cards,2006767,201810,
Rother District Council,15/11/2018,091HOUSING,Housing and Community Services,20145,Maintenance Services,C1104,Derv,1.90,Allstar Business Solutions,Derv Fuel Service fee payable on fuel cards,2006768,201810,
Rother District Council,15/01/2019,091HOUSING,Housing and Community Services,20145,Maintenance Services,C1104,Derv,1.90,Allstar Business Solutions,Derv Fuel Service fee payable on fuel cards,2007877,201812,
Rother District Council,15/12/2018,091HOUSING,Housing and Community Services,20107,Camber Beach & Foreshore,C1104,Derv,1.90,Allstar Business Solutions,Derv Fuel Service fee payable on fuel cards,2007161,201810,
Rother District Council,30/11/2018,091HOUSING,Housing and Community Services,20107,Camber Beach & Foreshore,C1104,Derv,1.90,Allstar Business Solutions,Derv Fuel Service fee payable on fuel cards,2006767,201810,
Rother District Council,15/11/2018,091HOUSING,Housing and Community Services,20107,Camber Beach & Foreshore,C1104,Derv,1.90,Allstar Business Solutions,Derv Fuel Service fee payable on fuel cards,2006768,201810,
Rother District Council,15/01/2019,091HOUSING,Housing and Community Services,20107,Camber Beach & Foreshore,C1104,Derv,1.90,Allstar Business Solutions,Derv Fuel Service fee payable on fuel cards,2007877,201812,
Rother District Council,28/02/2019,091HOUSING,Housing and Community Services,20145,Maintenance Services,C1104,Derv,1.90,Allstar Business Solutions,Derv Fuel Service fee payable on fuel cards,2008611,201812,
Rother District Council,15/02/2019,091HOUSING,Housing and Community Services,20145,Maintenance Services,C1104,Derv,1.90,Allstar Business Solutions,Derv Fuel Service fee payable on fuel cards,2008414,201812,
Rother District Council,02/01/2019,081ACQUISIT,"Acquisitions, Transformation and Regeneration",20101,Cultural Development,D2926,District Events- Concessionary Use,"2,000.00",De La Warr Pavilion (Enterprise) Ltd,District Events- Concessionary Use DLWP Community Concessionary Grant,2007417,201811,
Rother District Council,12/02/2019,081ACQUISIT,"Acquisitions, Transformation and Regeneration",20101,Cultural Development,D2926,District Events- Concessionary Use,"1,000.00",De La Warr Pavilion (Enterprise) Ltd,District Events- Concessionary Use DLWP Community Concessionary Grant,2007582,201811,
Rother District Council,22/03/2019,081ACQUISIT,"Acquisitions, Transformation and Regeneration",20101,Cultural Development,D2926,District Events- Concessionary Use,"2,090.02",De La Warr Pavilion (Enterprise) Ltd,District Events- Concessionary Use DLWP Community Concessionary Grant,2008551,201812,
Rother District Council,01/02/2019,101RESOURCES,Resources,20229,Internal Drainage Boards,F1202,Drainage board levies,"4,260.00",Pevensey and Cuckmere Water Level Management Board,Drainage board levies Pevensey Levels Special Levy,2008171,201812,
Rother District Council,26/03/2019,101RESOURCES,Resources,20229,Internal Drainage Boards,F1202,Drainage board levies,"-4,260.00",,Drainage board levies Pevensey Levels Special Levy,1003126,201812,
Rother District Council,06/01/2019,041ENVIRON,Environmental Services,20129,Community Safety,B2201,Electricity,38.90,Npower Ltd,Electricity Charges,2006691,201810,
Rother District Council,06/01/2019,041ENVIRON,Environmental Services,20129,Community Safety,B2201,Electricity,307.88,Npower Ltd,Electricity Charges,2006692,201810,
Rother District Council,29/01/2019,081ACQUISIT,"Acquisitions, Transformation and Regeneration",20146,West Trading Estate,B2201,Electricity,37.05,Opus Energy (Corporate) Ltd,Electricity Charges,2007399,201811,
Rother District Council,21/01/2019,081ACQUISIT,"Acquisitions, Transformation and Regeneration",20104,Ancient Monuments & Gazebo,B2201,Electricity,29.69,Laser Energy Buying Group (Kent County Council Commercial Services),Electricity Charges,2007695,201811,
Rother District Council,21/01/2019,081ACQUISIT,"Acquisitions, Transformation and Regeneration",20148,Misc Land & Buildings,B2201,Electricity,86.55,Laser Energy Buying Group (Kent County Council Commercial Services),Electricity Charges,2007695,201811,
Rother District Council,21/01/2019,081ACQUISIT,"Acquisitions, Transformation and Regeneration",20148,Misc Land & Buildings,B2201,Electricity,29.76,Laser Energy Buying Group (Kent County Council Commercial Services),Electricity Charges,2007695,201811,
Rother District Council,21/01/2019,081ACQUISIT,"Acquisitions, Transformation and Regeneration",20148,Misc Land & Buildings,B2201,Electricity,18.64,Laser Energy Buying Group (Kent County Council Commercial Services),Electricity Charges,2007695,201811,
Rother District Council,10/02/2019,041ENVIRON,Environmental Services,20129,Community Safety,B2201,Electricity,39.24,Npower Ltd,Electricity Charges,2007551,201811,
Rother District Council,10/02/2019,041ENVIRON,Environmental Services,20129,Community Safety,B2201,Electricity,311.48,Npower Ltd,Electricity Charges,2007552,201811,
Rother District Council,20/02/2019,031RESOURCES,Executive Directors & Corporate Core,20175,Administrative Offices - T.H. Annex (NOT CHP),B2201,Electricity,"1,142.72",Laser Energy Buying Group (Kent County Council Commercial Services),Electricity Charges,2008356,201812,
Rother District Council,20/02/2019,031RESOURCES,Executive Directors & Corporate Core,20175,Administrative Offices - T.H. Annex (NOT CHP),B2201,Electricity,"1,218.31",Laser Energy Buying Group (Kent County Council Commercial Services),Electricity Charges,2008356,201812,
Rother District Council,20/02/2019,031RESOURCES,Executive Directors & Corporate Core,20175,Administrative Offices - T.H. Annex (NOT CHP),B2201,Electricity,"1,032.22",Laser Energy Buying Group (Kent County Council Commercial Services),Electricity Charges,2008356,201812,
Rother District Council,20/02/2019,031RESOURCES,Executive Directors & Corporate Core,20173,Administrative Offices - Town Hall,B2201,Electricity,"3,696.77",Laser Energy Buying Group (Kent County Council Commercial Services),Electricity Charges,2008356,201812,
Rother District Council,20/02/2019,031RESOURCES,Executive Directors & Corporate Core,20173,Administrative Offices - Town Hall,B2201,Electricity,"3,847.43",Laser Energy Buying Group (Kent County Council Commercial Services),Electricity Charges,2008356,201812,
Rother District Council,20/02/2019,031RESOURCES,Executive Directors & Corporate Core,20173,Administrative Offices - Town Hall,B2201,Electricity,"3,739.60",Laser Energy Buying Group (Kent County Council Commercial Services),Electricity Charges,2008356,201812,
Rother District Council,17/12/2018,031RESOURCES,Executive Directors & Corporate Core,20176,Administrative Offices - Print Room,B2201,Electricity,234.17,Laser Energy Buying Group (Kent County Council Commercial Services),Electricity Charges,2006755,201810,
Rother District Council,21/01/2019,031RESOURCES,Executive Directors & Corporate Core,20177,Administrative Offices - Rear Depot,B2201,Electricity,42.83,Laser Energy Buying Group (Kent County Council Commercial Services),Electricity Charges,2007695,201811,
Rother District Council,08/03/2019,091HOUSING,Housing and Community Services,20138,Residual Highway Services,B2201,Electricity,31.23,Npower Ltd,Electricity Charges,2008161,201812,
Rother District Council,08/03/2019,091HOUSING,Housing and Community Services,20138,Residual Highway Services,B2201,Electricity,0.85,Npower Ltd,Electricity Charges,2008163,201812,
Rother District Council,08/03/2019,091HOUSING,Housing and Community Services,20138,Residual Highway Services,B2201,Electricity,6.01,Npower Ltd,Electricity Charges,2008164,201812,
Rother District Council,08/03/2019,091HOUSING,Housing and Community Services,20138,Residual Highway Services,B2201,Electricity,2.30,Npower Ltd,Electricity Charges,2008159,201812,
Rother District Council,08/03/2019,091HOUSING,Housing and Community Services,20138,Residual Highway Services,B2201,Electricity,3.93,Npower Ltd,Electricity Charges,2008160,201812,
Rother District Council,06/01/2019,091HOUSING,Housing and Community Services,20138,Residual Highway Services,B2201,Electricity,0.93,Npower Ltd,Electricity Charges,2006694,201810,
Rother District Council,06/01/2019,091HOUSING,Housing and Community Services,20138,Residual Highway Services,B2201,Electricity,6.59,Npower Ltd,Electricity Charges,2006695,201810,
Rother District Council,21/01/2019,091HOUSING,Housing and Community Services,20234,Battle Community Help Point,B2201,Electricity,80.54,Laser Energy Buying Group (Kent County Council Commercial Services),Electricity Charges,2007695,201811,
Rother District Council,06/02/2019,091HOUSING,Housing and Community Services,20261,"41 Jameson Mews, Bexhill on Sea",B2201,Electricity,"1,804.63",E.ON,Electricity Charges,2007734,201811,
Rother District Council,06/01/2019,091HOUSING,Housing and Community Services,20138,Residual Highway Services,B2201,Electricity,2.53,Npower Ltd,Electricity Charges,2006690,201810,
Rother District Council,06/01/2019,091HOUSING,Housing and Community Services,20138,Residual Highway Services,B2201,Electricity,4.32,Npower Ltd,Electricity Charges,2006691,201810,
Rother District Council,06/01/2019,091HOUSING,Housing and Community Services,20138,Residual Highway Services,B2201,Electricity,34.17,Npower Ltd,Electricity Charges,2006692,201810,
Rother District Council,10/02/2019,091HOUSING,Housing and Community Services,20138,Residual Highway Services,B2201,Electricity,6.65,Npower Ltd,Electricity Charges,2007555,201811,
Rother District Council,10/02/2019,091HOUSING,Housing and Community Services,20138,Residual Highway Services,B2201,Electricity,4.36,Npower Ltd,Electricity Charges,2007551,201811,
Rother District Council,10/02/2019,091HOUSING,Housing and Community Services,20138,Residual Highway Services,B2201,Electricity,34.57,Npower Ltd,Electricity Charges,2007552,201811,
Rother District Council,10/02/2019,091HOUSING,Housing and Community Services,20138,Residual Highway Services,B2201,Electricity,0.93,Npower Ltd,Electricity Charges,2007554,201811,
Rother District Council,10/02/2019,091HOUSING,Housing and Community Services,20138,Residual Highway Services,B2201,Electricity,2.55,Npower Ltd,Electricity Charges,2007550,201811,
Rother District Council,20/02/2019,081ACQUISIT,"Acquisitions, Transformation and Regeneration",20154,Committee Property Account,B2201,Electricity,31.82,Laser Energy Buying Group (Kent County Council Commercial Services),Electricity Charges,2008356,201812,
Rother District Council,20/02/2019,081ACQUISIT,"Acquisitions, Transformation and Regeneration",20154,Committee Property Account,B2201,Electricity,75.14,Laser Energy Buying Group (Kent County Council Commercial Services),Electricity Charges,2008356,201812,
Rother District Council,20/02/2019,081ACQUISIT,"Acquisitions, Transformation and Regeneration",20154,Committee Property Account,B2201,Electricity,286.77,Laser Energy Buying Group (Kent County Council Commercial Services),Electricity Charges,2008356,201812,
Rother District Council,20/02/2019,081ACQUISIT,"Acquisitions, Transformation and Regeneration",20154,Committee Property Account,B2201,Electricity,-166.82,Laser Energy Buying Group (Kent County Council Commercial Services),Electricity Charges,2008356,201812,
Rother District Council,20/02/2019,081ACQUISIT,"Acquisitions, Transformation and Regeneration",20154,Committee Property Account,B2201,Electricity,"-2,582.29",Laser Energy Buying Group (Kent County Council Commercial Services),Electricity Charges,2008356,201812,
Rother District Council,20/02/2019,081ACQUISIT,"Acquisitions, Transformation and Regeneration",20154,Committee Property Account,B2201,Electricity,-678.63,Laser Energy Buying Group (Kent County Council Commercial Services),Electricity Charges,2008356,201812,
Rother District Council,20/02/2019,081ACQUISIT,"Acquisitions, Transformation and Regeneration",20153,"Elva Business Centre, Bexhill",B2201,Electricity,"1,078.17",Laser Energy Buying Group (Kent County Council Commercial Services),Electricity Charges,2008356,201812,
Rother District Council,20/02/2019,091HOUSING,Housing and Community Services,20102,Rother Museum Services,B2201,Electricity,"1,541.50",Laser Energy Buying Group (Kent County Council Commercial Services),Electricity Charges,2008356,201812,
Rother District Council,20/02/2019,091HOUSING,Housing and Community Services,20108,Bexhill Promenade & Foreshore,B2201,Electricity,47.28,Laser Energy Buying Group (Kent County Council Commercial Services),Electricity Charges,2008356,201812,
Rother District Council,20/02/2019,091HOUSING,Housing and Community Services,20114,Bexhill Parks & Open Spaces,B2201,Electricity,52.55,Laser Energy Buying Group (Kent County Council Commercial Services),Electricity Charges,2008356,201812,
Rother District Council,20/02/2019,091HOUSING,Housing and Community Services,20128,Public Conveniences,B2201,Electricity,25.99,Laser Energy Buying Group (Kent County Council Commercial Services),Electricity Charges,2008356,201812,
Rother District Council,20/02/2019,091HOUSING,Housing and Community Services,20128,Public Conveniences,B2201,Electricity,157.65,Laser Energy Buying Group (Kent County Council Commercial Services),Electricity Charges,2008356,201812,
Rother District Council,20/02/2019,091HOUSING,Housing and Community Services,20125,Coast Protection,B2201,Electricity,563.46,Laser Energy Buying Group (Kent County Council Commercial Services),Electricity Charges,2008356,201812,
Rother District Council,08/03/2019,091HOUSING,Housing and Community Services,20108,Bexhill Promenade & Foreshore,B2201,Electricity,0.84,Npower Ltd,Electricity Charges,2008163,201812,
Rother District Council,08/03/2019,091HOUSING,Housing and Community Services,20108,Bexhill Promenade & Foreshore,B2201,Electricity,6.01,Npower Ltd,Electricity Charges,2008164,201812,
Rother District Council,08/03/2019,091HOUSING,Housing and Community Services,20114,Bexhill Parks & Open Spaces,B2201,Electricity,13.13,Npower Ltd,Electricity Charges,2008162,201812,
Rother District Council,08/03/2019,091HOUSING,Housing and Community Services,20137,Car Parks,B2201,Electricity,37.53,Npower Ltd,Electricity Charges,2008161,201812,
Rother District Council,08/03/2019,091HOUSING,Housing and Community Services,20137,Car Parks,B2201,Electricity,5.36,Npower Ltd,Electricity Charges,2008163,201812,
Rother District Council,08/03/2019,091HOUSING,Housing and Community Services,20137,Car Parks,B2201,Electricity,38.07,Npower Ltd,Electricity Charges,2008164,201812,
Rother District Council,08/03/2019,091HOUSING,Housing and Community Services,20137,Car Parks,B2201,Electricity,14.58,Npower Ltd,Electricity Charges,2008159,201812,
Rother District Council,08/03/2019,091HOUSING,Housing and Community Services,20137,Car Parks,B2201,Electricity,4.73,Npower Ltd,Electricity Charges,2008160,201812,
Rother District Council,08/03/2019,091HOUSING,Housing and Community Services,20108,Bexhill Promenade & Foreshore,B2201,Electricity,2.31,Npower Ltd,Electricity Charges,2008159,201812,
Rother District Council,02/03/2019,081ACQUISIT,"Acquisitions, Transformation and Regeneration",20266,Property Investment Strategy,B2201,Electricity,199.33,E.ON,Electricity Charges,2008149,201812,
Rother District Council,16/03/2019,081ACQUISIT,"Acquisitions, Transformation and Regeneration",20266,Property Investment Strategy,B2201,Electricity,39.06,E.ON,Electricity Charges,2008502,201812,
Rother District Council,26/02/2019,081ACQUISIT,"Acquisitions, Transformation and Regeneration",20266,Property Investment Strategy,B2201,Electricity,186.70,SmartestEnergy Ltd,Electricity Charges,2007888,201812,
Rother District Council,26/02/2019,081ACQUISIT,"Acquisitions, Transformation and Regeneration",20266,Property Investment Strategy,B2201,Electricity,526.17,SmartestEnergy Ltd,Electricity Charges,2007889,201812,
Rother District Council,06/01/2019,091HOUSING,Housing and Community Services,20137,Car Parks,B2201,Electricity,5.90,Npower Ltd,Electricity Charges,2006694,201810,
Rother District Council,06/01/2019,091HOUSING,Housing and Community Services,20137,Car Parks,B2201,Electricity,41.77,Npower Ltd,Electricity Charges,2006695,201810,
Rother District Council,06/01/2019,091HOUSING,Housing and Community Services,20108,Bexhill Promenade & Foreshore,B2201,Electricity,0.93,Npower Ltd,Electricity Charges,2006694,201810,
Rother District Council,06/01/2019,091HOUSING,Housing and Community Services,20108,Bexhill Promenade & Foreshore,B2201,Electricity,6.60,Npower Ltd,Electricity Charges,2006695,201810,
Rother District Council,06/01/2019,091HOUSING,Housing and Community Services,20108,Bexhill Promenade & Foreshore,B2201,Electricity,2.53,Npower Ltd,Electricity Charges,2006690,201810,
Rother District Council,06/01/2019,091HOUSING,Housing and Community Services,20137,Car Parks,B2201,Electricity,16.03,Npower Ltd,Electricity Charges,2006690,201810,
Rother District Council,06/01/2019,091HOUSING,Housing and Community Services,20137,Car Parks,B2201,Electricity,5.19,Npower Ltd,Electricity Charges,2006691,201810,
Rother District Council,06/01/2019,091HOUSING,Housing and Community Services,20137,Car Parks,B2201,Electricity,41.07,Npower Ltd,Electricity Charges,2006692,201810,
Rother District Council,06/01/2019,091HOUSING,Housing and Community Services,20114,Bexhill Parks & Open Spaces,B2201,Electricity,14.47,Npower Ltd,Electricity Charges,2006693,201810,
Rother District Council,17/12/2018,081ACQUISIT,"Acquisitions, Transformation and Regeneration",20154,Committee Property Account,B2201,Electricity,53.20,Laser Energy Buying Group (Kent County Council Commercial Services),Electricity Charges,2006755,201810,
Rother District Council,17/12/2018,081ACQUISIT,"Acquisitions, Transformation and Regeneration",20154,Committee Property Account,B2201,Electricity,53.20,Laser Energy Buying Group (Kent County Council Commercial Services),Electricity Charges,2006755,201810,
Rother District Council,17/12/2018,081ACQUISIT,"Acquisitions, Transformation and Regeneration",20154,Committee Property Account,B2201,Electricity,16.73,Laser Energy Buying Group (Kent County Council Commercial Services),Electricity Charges,2006755,201810,
Rother District Council,17/12/2018,081ACQUISIT,"Acquisitions, Transformation and Regeneration",20154,Committee Property Account,B2201,Electricity,16.73,Laser Energy Buying Group (Kent County Council Commercial Services),Electricity Charges,2006755,201810,
Rother District Council,17/12/2018,091HOUSING,Housing and Community Services,20108,Bexhill Promenade & Foreshore,B2201,Electricity,53.20,Laser Energy Buying Group (Kent County Council Commercial Services),Electricity Charges,2006755,201810,
Rother District Council,17/12/2018,091HOUSING,Housing and Community Services,20108,Bexhill Promenade & Foreshore,B2201,Electricity,16.73,Laser Energy Buying Group (Kent County Council Commercial Services),Electricity Charges,2006755,201810,
Rother District Council,17/12/2018,081ACQUISIT,"Acquisitions, Transformation and Regeneration",20154,Committee Property Account,B2201,Electricity,16.73,Laser Energy Buying Group (Kent County Council Commercial Services),Electricity Charges,2006755,201810,
Rother District Council,17/12/2018,081ACQUISIT,"Acquisitions, Transformation and Regeneration",20154,Committee Property Account,B2201,Electricity,-57.51,Laser Energy Buying Group (Kent County Council Commercial Services),Electricity Charges,2006755,201810,
Rother District Council,17/12/2018,081ACQUISIT,"Acquisitions, Transformation and Regeneration",20154,Committee Property Account,B2201,Electricity,-57.51,Laser Energy Buying Group (Kent County Council Commercial Services),Electricity Charges,2006755,201810,
Rother District Council,17/12/2018,081ACQUISIT,"Acquisitions, Transformation and Regeneration",20154,Committee Property Account,B2201,Electricity,-57.51,Laser Energy Buying Group (Kent County Council Commercial Services),Electricity Charges,2006755,201810,
Rother District Council,17/12/2018,081ACQUISIT,"Acquisitions, Transformation and Regeneration",20154,Committee Property Account,B2201,Electricity,166.82,Laser Energy Buying Group (Kent County Council Commercial Services),Electricity Charges,2006755,201810,
Rother District Council,17/12/2018,091HOUSING,Housing and Community Services,20108,Bexhill Promenade & Foreshore,B2201,Electricity,-57.51,Laser Energy Buying Group (Kent County Council Commercial Services),Electricity Charges,2006755,201810,
Rother District Council,17/12/2018,081ACQUISIT,"Acquisitions, Transformation and Regeneration",20153,"Elva Business Centre, Bexhill",B2201,Electricity,954.61,Laser Energy Buying Group (Kent County Council Commercial Services),Electricity Charges,2006755,201810,
Rother District Council,17/12/2018,091HOUSING,Housing and Community Services,20125,Coast Protection,B2201,Electricity,459.77,Laser Energy Buying Group (Kent County Council Commercial Services),Electricity Charges,2006755,201810,
Rother District Council,17/12/2018,091HOUSING,Housing and Community Services,20128,Public Conveniences,B2201,Electricity,66.80,Laser Energy Buying Group (Kent County Council Commercial Services),Electricity Charges,2006755,201810,
Rother District Council,17/12/2018,091HOUSING,Housing and Community Services,20128,Public Conveniences,B2201,Electricity,19.76,Laser Energy Buying Group (Kent County Council Commercial Services),Electricity Charges,2006755,201810,
Rother District Council,17/12/2018,091HOUSING,Housing and Community Services,20115,Rye Area Parks & Gardens,B2201,Electricity,25.06,Laser Energy Buying Group (Kent County Council Commercial Services),Electricity Charges,2006755,201810,
Rother District Council,17/12/2018,081ACQUISIT,"Acquisitions, Transformation and Regeneration",20154,Committee Property Account,B2201,Electricity,53.20,Laser Energy Buying Group (Kent County Council Commercial Services),Electricity Charges,2006755,201810,
Rother District Council,05/03/2019,081ACQUISIT,"Acquisitions, Transformation and Regeneration",20266,Property Investment Strategy,B2201,Electricity,475.25,SmartestEnergy Ltd,Electricity Charges,2008068,201812,
Rother District Council,21/01/2019,091HOUSING,Housing and Community Services,20108,Bexhill Promenade & Foreshore,B2201,Electricity,-16.73,Laser Energy Buying Group (Kent County Council Commercial Services),Electricity Charges,2007695,201811,
Rother District Council,21/01/2019,081ACQUISIT,"Acquisitions, Transformation and Regeneration",20154,Committee Property Account,B2201,Electricity,502.55,Laser Energy Buying Group (Kent County Council Commercial Services),Electricity Charges,2007695,201811,
Rother District Council,21/01/2019,081ACQUISIT,"Acquisitions, Transformation and Regeneration",20154,Committee Property Account,B2201,Electricity,-16.73,Laser Energy Buying Group (Kent County Council Commercial Services),Electricity Charges,2007695,201811,
Rother District Council,21/01/2019,081ACQUISIT,"Acquisitions, Transformation and Regeneration",20154,Committee Property Account,B2201,Electricity,-16.73,Laser Energy Buying Group (Kent County Council Commercial Services),Electricity Charges,2007695,201811,
Rother District Council,21/01/2019,081ACQUISIT,"Acquisitions, Transformation and Regeneration",20154,Committee Property Account,B2201,Electricity,-16.73,Laser Energy Buying Group (Kent County Council Commercial Services),Electricity Charges,2007695,201811,
Rother District Council,21/01/2019,081ACQUISIT,"Acquisitions, Transformation and Regeneration",20154,Committee Property Account,B2201,Electricity,14.44,Laser Energy Buying Group (Kent County Council Commercial Services),Electricity Charges,2007695,201811,
Rother District Council,21/01/2019,081ACQUISIT,"Acquisitions, Transformation and Regeneration",20154,Committee Property Account,B2201,Electricity,14.44,Laser Energy Buying Group (Kent County Council Commercial Services),Electricity Charges,2007695,201811,
Rother District Council,21/01/2019,081ACQUISIT,"Acquisitions, Transformation and Regeneration",20154,Committee Property Account,B2201,Electricity,14.44,Laser Energy Buying Group (Kent County Council Commercial Services),Electricity Charges,2007695,201811,
Rother District Council,21/01/2019,081ACQUISIT,"Acquisitions, Transformation and Regeneration",20154,Committee Property Account,B2201,Electricity,29.85,Laser Energy Buying Group (Kent County Council Commercial Services),Electricity Charges,2007695,201811,
Rother District Council,21/01/2019,081ACQUISIT,"Acquisitions, Transformation and Regeneration",20154,Committee Property Account,B2201,Electricity,29.84,Laser Energy Buying Group (Kent County Council Commercial Services),Electricity Charges,2007695,201811,
Rother District Council,21/01/2019,081ACQUISIT,"Acquisitions, Transformation and Regeneration",20154,Committee Property Account,B2201,Electricity,29.84,Laser Energy Buying Group (Kent County Council Commercial Services),Electricity Charges,2007695,201811,
Rother District Council,21/01/2019,081ACQUISIT,"Acquisitions, Transformation and Regeneration",20154,Committee Property Account,B2201,Electricity,416.61,Laser Energy Buying Group (Kent County Council Commercial Services),Electricity Charges,2007695,201811,
Rother District Council,21/01/2019,081ACQUISIT,"Acquisitions, Transformation and Regeneration",20154,Committee Property Account,B2201,Electricity,450.19,Laser Energy Buying Group (Kent County Council Commercial Services),Electricity Charges,2007695,201811,
Rother District Council,21/01/2019,081ACQUISIT,"Acquisitions, Transformation and Regeneration",20154,Committee Property Account,B2201,Electricity,450.18,Laser Energy Buying Group (Kent County Council Commercial Services),Electricity Charges,2007695,201811,
Rother District Council,21/01/2019,081ACQUISIT,"Acquisitions, Transformation and Regeneration",20154,Committee Property Account,B2201,Electricity,450.18,Laser Energy Buying Group (Kent County Council Commercial Services),Electricity Charges,2007695,201811,
Rother District Council,21/01/2019,081ACQUISIT,"Acquisitions, Transformation and Regeneration",20154,Committee Property Account,B2201,Electricity,450.18,Laser Energy Buying Group (Kent County Council Commercial Services),Electricity Charges,2007695,201811,
Rother District Council,21/01/2019,081ACQUISIT,"Acquisitions, Transformation and Regeneration",20153,"Elva Business Centre, Bexhill",B2201,Electricity,935.67,Laser Energy Buying Group (Kent County Council Commercial Services),Electricity Charges,2007695,201811,
Rother District Council,21/01/2019,081ACQUISIT,"Acquisitions, Transformation and Regeneration",20150,Peasmarsh Workshops,B2201,Electricity,30.72,Laser Energy Buying Group (Kent County Council Commercial Services),Electricity Charges,2007695,201811,
Rother District Council,21/01/2019,091HOUSING,Housing and Community Services,20108,Bexhill Promenade & Foreshore,B2201,Electricity,14.45,Laser Energy Buying Group (Kent County Council Commercial Services),Electricity Charges,2007695,201811,
Rother District Council,21/01/2019,091HOUSING,Housing and Community Services,20108,Bexhill Promenade & Foreshore,B2201,Electricity,29.84,Laser Energy Buying Group (Kent County Council Commercial Services),Electricity Charges,2007695,201811,
Rother District Council,21/01/2019,091HOUSING,Housing and Community Services,20108,Bexhill Promenade & Foreshore,B2201,Electricity,277.54,Laser Energy Buying Group (Kent County Council Commercial Services),Electricity Charges,2007695,201811,
Rother District Council,21/01/2019,091HOUSING,Housing and Community Services,20108,Bexhill Promenade & Foreshore,B2201,Electricity,450.18,Laser Energy Buying Group (Kent County Council Commercial Services),Electricity Charges,2007695,201811,
Rother District Council,21/01/2019,091HOUSING,Housing and Community Services,20125,Coast Protection,B2201,Electricity,511.00,Laser Energy Buying Group (Kent County Council Commercial Services),Electricity Charges,2007695,201811,
Rother District Council,21/01/2019,091HOUSING,Housing and Community Services,20137,Car Parks,B2201,Electricity,53.70,Laser Energy Buying Group (Kent County Council Commercial Services),Electricity Charges,2007695,201811,
Rother District Council,21/01/2019,091HOUSING,Housing and Community Services,20128,Public Conveniences,B2201,Electricity,34.88,Laser Energy Buying Group (Kent County Council Commercial Services),Electricity Charges,2007695,201811,
Rother District Council,21/01/2019,091HOUSING,Housing and Community Services,20128,Public Conveniences,B2201,Electricity,61.08,Laser Energy Buying Group (Kent County Council Commercial Services),Electricity Charges,2007695,201811,
Rother District Council,21/01/2019,091HOUSING,Housing and Community Services,20128,Public Conveniences,B2201,Electricity,292.79,Laser Energy Buying Group (Kent County Council Commercial Services),Electricity Charges,2007695,201811,
Rother District Council,21/01/2019,091HOUSING,Housing and Community Services,20128,Public Conveniences,B2201,Electricity,110.52,Laser Energy Buying Group (Kent County Council Commercial Services),Electricity Charges,2007695,201811,
Rother District Council,21/01/2019,091HOUSING,Housing and Community Services,20128,Public Conveniences,B2201,Electricity,35.09,Laser Energy Buying Group (Kent County Council Commercial Services),Electricity Charges,2007695,201811,
Rother District Council,21/01/2019,091HOUSING,Housing and Community Services,20128,Public Conveniences,B2201,Electricity,6.33,Laser Energy Buying Group (Kent County Council Commercial Services),Electricity Charges,2007695,201811,
Rother District Council,21/01/2019,091HOUSING,Housing and Community Services,20128,Public Conveniences,B2201,Electricity,73.19,Laser Energy Buying Group (Kent County Council Commercial Services),Electricity Charges,2007695,201811,
Rother District Council,21/01/2019,091HOUSING,Housing and Community Services,20108,Bexhill Promenade & Foreshore,B2201,Electricity,46.78,Laser Energy Buying Group (Kent County Council Commercial Services),Electricity Charges,2007695,201811,
Rother District Council,21/01/2019,091HOUSING,Housing and Community Services,20108,Bexhill Promenade & Foreshore,B2201,Electricity,187.68,Laser Energy Buying Group (Kent County Council Commercial Services),Electricity Charges,2007695,201811,
Rother District Council,21/01/2019,091HOUSING,Housing and Community Services,20108,Bexhill Promenade & Foreshore,B2201,Electricity,47.25,Laser Energy Buying Group (Kent County Council Commercial Services),Electricity Charges,2007695,201811,
Rother District Council,21/01/2019,091HOUSING,Housing and Community Services,20108,Bexhill Promenade & Foreshore,B2201,Electricity,57.97,Laser Energy Buying Group (Kent County Council Commercial Services),Electricity Charges,2007695,201811,
Rother District Council,21/01/2019,091HOUSING,Housing and Community Services,20107,Camber Beach & Foreshore,B2201,Electricity,49.78,Laser Energy Buying Group (Kent County Council Commercial Services),Electricity Charges,2007695,201811,
Rother District Council,21/01/2019,081ACQUISIT,"Acquisitions, Transformation and Regeneration",20154,Committee Property Account,B2201,Electricity,112.69,Laser Energy Buying Group (Kent County Council Commercial Services),Electricity Charges,2007695,201811,
Rother District Council,21/01/2019,081ACQUISIT,"Acquisitions, Transformation and Regeneration",20155,Investment properties,B2201,Electricity,61.09,Laser Energy Buying Group (Kent County Council Commercial Services),Electricity Charges,2007695,201811,
Rother District Council,21/01/2019,091HOUSING,Housing and Community Services,20114,Bexhill Parks & Open Spaces,B2201,Electricity,25.32,Laser Energy Buying Group (Kent County Council Commercial Services),Electricity Charges,2007695,201811,
Rother District Council,21/01/2019,091HOUSING,Housing and Community Services,20114,Bexhill Parks & Open Spaces,B2201,Electricity,31.23,Laser Energy Buying Group (Kent County Council Commercial Services),Electricity Charges,2007695,201811,
Rother District Council,21/01/2019,091HOUSING,Housing and Community Services,20114,Bexhill Parks & Open Spaces,B2201,Electricity,33.86,Laser Energy Buying Group (Kent County Council Commercial Services),Electricity Charges,2007695,201811,
Rother District Council,21/01/2019,091HOUSING,Housing and Community Services,20114,Bexhill Parks & Open Spaces,B2201,Electricity,45.57,Laser Energy Buying Group (Kent County Council Commercial Services),Electricity Charges,2007695,201811,
Rother District Council,21/01/2019,081ACQUISIT,"Acquisitions, Transformation and Regeneration",20151,Udimore Workshops,B2201,Electricity,61.14,Laser Energy Buying Group (Kent County Council Commercial Services),Electricity Charges,2007695,201811,
Rother District Council,21/01/2019,091HOUSING,Housing and Community Services,20128,Public Conveniences,B2201,Electricity,199.97,Laser Energy Buying Group (Kent County Council Commercial Services),Electricity Charges,2007695,201811,
Rother District Council,21/01/2019,091HOUSING,Housing and Community Services,20128,Public Conveniences,B2201,Electricity,533.57,Laser Energy Buying Group (Kent County Council Commercial Services),Electricity Charges,2007695,201811,
Rother District Council,21/01/2019,091HOUSING,Housing and Community Services,20128,Public Conveniences,B2201,Electricity,178.26,Laser Energy Buying Group (Kent County Council Commercial Services),Electricity Charges,2007695,201811,
Rother District Council,21/01/2019,091HOUSING,Housing and Community Services,20128,Public Conveniences,B2201,Electricity,73.98,Laser Energy Buying Group (Kent County Council Commercial Services),Electricity Charges,2007695,201811,
Rother District Council,21/01/2019,091HOUSING,Housing and Community Services,20128,Public Conveniences,B2201,Electricity,59.21,Laser Energy Buying Group (Kent County Council Commercial Services),Electricity Charges,2007695,201811,
Rother District Council,21/01/2019,091HOUSING,Housing and Community Services,20128,Public Conveniences,B2201,Electricity,121.17,Laser Energy Buying Group (Kent County Council Commercial Services),Electricity Charges,2007695,201811,
Rother District Council,21/01/2019,091HOUSING,Housing and Community Services,20128,Public Conveniences,B2201,Electricity,40.25,Laser Energy Buying Group (Kent County Council Commercial Services),Electricity Charges,2007695,201811,
Rother District Council,21/01/2019,091HOUSING,Housing and Community Services,20128,Public Conveniences,B2201,Electricity,34.86,Laser Energy Buying Group (Kent County Council Commercial Services),Electricity Charges,2007695,201811,
Rother District Council,21/01/2019,091HOUSING,Housing and Community Services,20128,Public Conveniences,B2201,Electricity,30.88,Laser Energy Buying Group (Kent County Council Commercial Services),Electricity Charges,2007695,201811,
Rother District Council,21/01/2019,091HOUSING,Housing and Community Services,20128,Public Conveniences,B2201,Electricity,24.81,Laser Energy Buying Group (Kent County Council Commercial Services),Electricity Charges,2007695,201811,
Rother District Council,21/01/2019,091HOUSING,Housing and Community Services,20128,Public Conveniences,B2201,Electricity,290.30,Laser Energy Buying Group (Kent County Council Commercial Services),Electricity Charges,2007695,201811,
Rother District Council,21/01/2019,091HOUSING,Housing and Community Services,20128,Public Conveniences,B2201,Electricity,375.07,Laser Energy Buying Group (Kent County Council Commercial Services),Electricity Charges,2007695,201811,
Rother District Council,21/01/2019,091HOUSING,Housing and Community Services,20128,Public Conveniences,B2201,Electricity,34.91,Laser Energy Buying Group (Kent County Council Commercial Services),Electricity Charges,2007695,201811,
Rother District Council,21/01/2019,091HOUSING,Housing and Community Services,20128,Public Conveniences,B2201,Electricity,40.80,Laser Energy Buying Group (Kent County Council Commercial Services),Electricity Charges,2007695,201811,
Rother District Council,21/01/2019,091HOUSING,Housing and Community Services,20128,Public Conveniences,B2201,Electricity,70.76,Laser Energy Buying Group (Kent County Council Commercial Services),Electricity Charges,2007695,201811,
Rother District Council,21/01/2019,091HOUSING,Housing and Community Services,20128,Public Conveniences,B2201,Electricity,88.30,Laser Energy Buying Group (Kent County Council Commercial Services),Electricity Charges,2007695,201811,
Rother District Council,21/01/2019,091HOUSING,Housing and Community Services,20128,Public Conveniences,B2201,Electricity,43.89,Laser Energy Buying Group (Kent County Council Commercial Services),Electricity Charges,2007695,201811,
Rother District Council,21/01/2019,091HOUSING,Housing and Community Services,20128,Public Conveniences,B2201,Electricity,94.06,Laser Energy Buying Group (Kent County Council Commercial Services),Electricity Charges,2007695,201811,
Rother District Council,21/01/2019,091HOUSING,Housing and Community Services,20128,Public Conveniences,B2201,Electricity,50.69,Laser Energy Buying Group (Kent County Council Commercial Services),Electricity Charges,2007695,201811,
Rother District Council,21/01/2019,091HOUSING,Housing and Community Services,20115,Rye Area Parks & Gardens,B2201,Electricity,18.63,Laser Energy Buying Group (Kent County Council Commercial Services),Electricity Charges,2007695,201811,
Rother District Council,21/01/2019,091HOUSING,Housing and Community Services,20123,Cemeteries,B2201,Electricity,114.38,Laser Energy Buying Group (Kent County Council Commercial Services),Electricity Charges,2007695,201811,
Rother District Council,21/01/2019,081ACQUISIT,"Acquisitions, Transformation and Regeneration",20154,Committee Property Account,B2201,Electricity,623.93,Laser Energy Buying Group (Kent County Council Commercial Services),Electricity Charges,2007695,201811,
Rother District Council,21/01/2019,091HOUSING,Housing and Community Services,20107,Camber Beach & Foreshore,B2201,Electricity,380.48,Laser Energy Buying Group (Kent County Council Commercial Services),Electricity Charges,2007695,201811,
Rother District Council,21/01/2019,081ACQUISIT,"Acquisitions, Transformation and Regeneration",20154,Committee Property Account,B2201,Electricity,391.92,Laser Energy Buying Group (Kent County Council Commercial Services),Electricity Charges,2007695,201811,
Rother District Council,21/01/2019,091HOUSING,Housing and Community Services,20114,Bexhill Parks & Open Spaces,B2201,Electricity,49.06,Laser Energy Buying Group (Kent County Council Commercial Services),Electricity Charges,2007695,201811,
Rother District Council,21/01/2019,091HOUSING,Housing and Community Services,20114,Bexhill Parks & Open Spaces,B2201,Electricity,39.62,Laser Energy Buying Group (Kent County Council Commercial Services),Electricity Charges,2007695,201811,
Rother District Council,21/01/2019,091HOUSING,Housing and Community Services,20128,Public Conveniences,B2201,Electricity,12.26,Laser Energy Buying Group (Kent County Council Commercial Services),Electricity Charges,2007695,201811,
Rother District Council,21/01/2019,091HOUSING,Housing and Community Services,20128,Public Conveniences,B2201,Electricity,9.90,Laser Energy Buying Group (Kent County Council Commercial Services),Electricity Charges,2007695,201811,
Rother District Council,21/01/2019,091HOUSING,Housing and Community Services,20137,Car Parks,B2201,Electricity,77.30,Laser Energy Buying Group (Kent County Council Commercial Services),Electricity Charges,2007695,201811,
Rother District Council,10/02/2019,091HOUSING,Housing and Community Services,20137,Car Parks,B2201,Electricity,16.15,Npower Ltd,Electricity Charges,2007550,201811,
Rother District Council,10/02/2019,091HOUSING,Housing and Community Services,20137,Car Parks,B2201,Electricity,42.13,Npower Ltd,Electricity Charges,2007555,201811,
Rother District Council,10/02/2019,091HOUSING,Housing and Community Services,20108,Bexhill Promenade & Foreshore,B2201,Electricity,6.66,Npower Ltd,Electricity Charges,2007555,201811,
Rother District Council,10/02/2019,091HOUSING,Housing and Community Services,20108,Bexhill Promenade & Foreshore,B2201,Electricity,2.55,Npower Ltd,Electricity Charges,2007550,201811,
Rother District Council,10/02/2019,091HOUSING,Housing and Community Services,20137,Car Parks,B2201,Electricity,5.23,Npower Ltd,Electricity Charges,2007551,201811,
Rother District Council,10/02/2019,091HOUSING,Housing and Community Services,20137,Car Parks,B2201,Electricity,41.55,Npower Ltd,Electricity Charges,2007552,201811,
Rother District Council,10/02/2019,091HOUSING,Housing and Community Services,20137,Car Parks,B2201,Electricity,5.92,Npower Ltd,Electricity Charges,2007554,201811,
Rother District Council,10/02/2019,091HOUSING,Housing and Community Services,20108,Bexhill Promenade & Foreshore,B2201,Electricity,0.94,Npower Ltd,Electricity Charges,2007554,201811,
Rother District Council,10/02/2019,091HOUSING,Housing and Community Services,20114,Bexhill Parks & Open Spaces,B2201,Electricity,14.53,Npower Ltd,Electricity Charges,2007553,201811,
Rother District Council,08/03/2019,041ENVIRON,Environmental Services,20129,Community Safety,B2201,Electricity,35.44,Npower Ltd,Electricity Charges,2008160,201812,
Rother District Council,08/03/2019,041ENVIRON,Environmental Services,20129,Community Safety,B2201,Electricity,281.33,Npower Ltd,Electricity Charges,2008161,201812,
Rother District Council,26/02/2019,081ACQUISIT,"Acquisitions, Transformation and Regeneration",20146,West Trading Estate,B2201,Electricity,-37.05,Opus Energy (Corporate) Ltd,Electricity Charges,2007905,201812,
Rother District Council,26/02/2019,081ACQUISIT,"Acquisitions, Transformation and Regeneration",20146,West Trading Estate,B2201,Electricity,63.65,Opus Energy (Corporate) Ltd,Electricity Charges,2007905,201812,
Rother District Council,08/02/2019,081ACQUISIT,"Acquisitions, Transformation and Regeneration",20148,Misc Land & Buildings,B2201,Electricity,53.73,Polegrove Management Committee,Electricity Re-imbursement -Electricity Charges,2007506,201811,
Rother District Council,02/01/2019,091HOUSING,Housing and Community Services,20137,Car Parks,D1201,Equipment & Materials,111.00,Modal Innovation Ltd t/a The Parking Shop,Equipment & Materials - Car Parks Tickets,2006662,201810,
Rother District Council,26/02/2019,091HOUSING,Housing and Community Services,20137,Car Parks,D1201,Equipment & Materials,89.22,Cale UK Ltd,Equipment & Materials - Car Parks various,2007929,201812,
Rother District Council,26/02/2019,091HOUSING,Housing and Community Services,20114,Bexhill Parks & Open Spaces,D1201,Equipment & Materials,118.72,Alfa Electric Ltd,Equipment & Materials - Maintenance of Seats/Plaques from Donations,2008014,201812,
Rother District Council,14/01/2019,091HOUSING,Housing and Community Services,20115,Rye Area Parks & Gardens,D1201,Equipment & Materials,184.27,Alfa Electric Ltd,Equipment & Materials - Maintenance of Seats/Plaques from Donations,2007294,201811,
Rother District Council,18/02/2019,091HOUSING,Housing and Community Services,20114,Bexhill Parks & Open Spaces,D1201,Equipment & Materials,110.00,B.F.J. Engraving Ltd,Equipment & Materials - Maintenance of Seats/Plaques from Donations,2007750,201811,
Rother District Council,18/02/2019,091HOUSING,Housing and Community Services,20114,Bexhill Parks & Open Spaces,D1201,Equipment & Materials,90.00,B.F.J. Engraving Ltd,Equipment & Materials - Maintenance of Seats/Plaques from Donations,2007750,201811,
Rother District Council,18/02/2019,091HOUSING,Housing and Community Services,20114,Bexhill Parks & Open Spaces,D1201,Equipment & Materials,105.00,B.F.J. Engraving Ltd,Equipment & Materials - Maintenance of Seats/Plaques from Donations,2007750,201811,
Rother District Council,18/02/2019,091HOUSING,Housing and Community Services,20114,Bexhill Parks & Open Spaces,D1201,Equipment & Materials,20.00,B.F.J. Engraving Ltd,Equipment & Materials - Maintenance of Seats/Plaques from Donations,2007750,201811,
Rother District Council,22/01/2019,091HOUSING,Housing and Community Services,20114,Bexhill Parks & Open Spaces,D1201,Equipment & Materials,118.72,Alfa Electric Ltd,Equipment & Materials - Maintenance of Seats/Plaques from Donations,2007292,201811,
Rother District Council,15/01/2019,091HOUSING,Housing and Community Services,20114,Bexhill Parks & Open Spaces,D1201,Equipment & Materials,350.14,Alfa Electric Ltd,Equipment & Materials - Maintenance of Seats/Plaques from Donations,2007293,201811,
Rother District Council,16/01/2019,091HOUSING,Housing and Community Services,20114,Bexhill Parks & Open Spaces,D1201,Equipment & Materials,110.00,B.F.J. Engraving Ltd,Equipment & Materials - Maintenance of Seats/Plaques from Donations,2006986,201810,
Rother District Council,19/02/2019,091HOUSING,Housing and Community Services,20114,Bexhill Parks & Open Spaces,D1201,Equipment & Materials,96.00,The Workplace Depot Ltd,Equipment & Materials - Parks- Fencing Products,2008180,201812,
Rother District Council,29/11/2018,091HOUSING,Housing and Community Services,20114,Bexhill Parks & Open Spaces,D1201,Equipment & Materials,603.00,Littlewood Fencing Ltd,Equipment & Materials - Parks- Fencing Products,2007345,201811,
Rother District Council,19/12/2018,091HOUSING,Housing and Community Services,20114,Bexhill Parks & Open Spaces,D1201,Equipment & Materials,50.00,Wybone Ltd,Equipment & Materials - Parks- Litter Bins,2006687,201810,
Rother District Council,23/01/2019,091HOUSING,Housing and Community Services,20114,Bexhill Parks & Open Spaces,D1201,Equipment & Materials,"3,160.00",Surface Matter Ltd,Equipment & Materials - Parks- Playground Equipment,2007222,201810,
Rother District Council,04/01/2019,041ENVIRON,Environmental Services,20130,Crime and Disorder Initiatives,D1201,Equipment & Materials,"1,187.50",White Ribbon Campaign Ltd,Equipment & Materials - Safer Rother Partnership,2006812,201810,
Rother District Council,15/03/2019,041ENVIRON,Environmental Services,20130,Crime and Disorder Initiatives,D1201,Equipment & Materials,450.00,DC Property Maintenance,Equipment & Materials - Safer Rother Partnership,2008395,201812,
Rother District Council,11/10/2018,041ENVIRON,Environmental Services,32134,EH Pollution R + W Partnership,D2513,Hired and Contracted services,"1,250.00",Mr Jeremy Cook,Hired and contracted services Service fee paid,2006747,201810,
Rother District Council,06/03/2019,041ENVIRON,Environmental Services,20130,Crime and Disorder Initiatives,D1201,Equipment & Materials,"1,277.69",Besure Security Systems,Equipment & Materials - Safer Rother Partnership,2008284,201812,
Rother District Council,19/12/2018,031RESOURCES,Executive Directors & Corporate Core,20159,Corporate Policy Making,D1201,Equipment & Materials,299.90,Haven Security Ltd,Equipment & Materials Access cards and systems,2006613,201810,
Rother District Council,01/02/2019,031RESOURCES,Executive Directors & Corporate Core,20159,Corporate Policy Making,D1201,Equipment & Materials,63.00,Ribbonworks Ltd,Equipment & Materials Access cards and systems,2007356,201811,
Rother District Council,26/11/2018,031RESOURCES,Executive Directors & Corporate Core,20159,Corporate Policy Making,D1201,Equipment & Materials,113.00,Ribbonworks Ltd,Equipment & Materials Access cards and systems,2006828,201810,
Rother District Council,10/12/2018,101RESOURCES,Resources,20222,Accountancy,D1203,Books And Publications,3.75,CIPFA Business Ltd,Equipment & Materials Carriage/Handling Charge,2007177,201810,
Rother District Council,18/12/2018,041ENVIRON,Environmental Services,32134,EH Pollution R + W Partnership,D1201,Equipment & Materials,35.00,Campbell Associates Ltd,Equipment & Materials Carriage/Handling Charge,2006947,201810,
Rother District Council,11/02/2019,041ENVIRON,Environmental Services,32134,EH Pollution R + W Partnership,D1201,Equipment & Materials,5.50,eSupplies Medical,Equipment & Materials Carriage/Handling Charge,2007586,201811,
Rother District Council,20/02/2019,041ENVIRON,Environmental Services,32134,EH Pollution R + W Partnership,D1201,Equipment & Materials,4.95,Greenham,Equipment & Materials Carriage/Handling Charge,2007973,201812,
Rother District Council,12/02/2019,041ENVIRON,Environmental Services,32134,EH Pollution R + W Partnership,D1201,Equipment & Materials,4.50,Gradko International Ltd,Equipment & Materials Carriage/Handling Charge,2007641,201811,
Rother District Council,08/02/2019,041ENVIRON,Environmental Services,32134,EH Pollution R + W Partnership,D1201,Equipment & Materials,5.94,Jointing Tech Woking,Equipment & Materials Carriage/Handling Charge,2007522,201811,
Rother District Council,31/01/2019,041ENVIRON,Environmental Services,32134,EH Pollution R + W Partnership,D1201,Equipment & Materials,12.50,Gradko International Ltd,Equipment & Materials Carriage/Handling Charge,2007509,201811,
Rother District Council,20/12/2018,041ENVIRON,Environmental Services,32142,EH Taxi and Private Hire Licenses R + W Partnership,D1201,Equipment & Materials,7.90,NewAuto Ltd T/A MOGO (UK),Equipment & Materials Carriage/Handling Charge,2006566,201810,
Rother District Council,11/01/2019,041ENVIRON,Environmental Services,32142,EH Taxi and Private Hire Licenses R + W Partnership,D1201,Equipment & Materials,19.90,NewAuto Ltd T/A MOGO (UK),Equipment & Materials Carriage/Handling Charge,2006981,201810,
Rother District Council,01/02/2019,091HOUSING,Housing and Community Services,20128,Public Conveniences,D1201,Equipment & Materials,12.50,Owlett-Jaton,Equipment & Materials Carriage/Handling Charge,2007353,201811,
Rother District Council,30/10/2018,091HOUSING,Housing and Community Services,20109,Sports Development,D1201,Equipment & Materials,90.90,Alan Ransome Sporting Goods Group Ltd,Equipment & Materials Carriage/Handling Charge,2007364,201811,
Rother District Council,01/02/2019,101RESOURCES,Resources,20241,Stationery,D2420,General office supplies (Stationery purchased from ext suppliers),9.85,Peleman Industries Ltd,Equipment & Materials Carriage/Handling Charge,2007347,201811,
Rother District Council,22/03/2019,101RESOURCES,Resources,20239,Computer Services,D1201,Equipment & Materials,4.85,PCM Technology Solutions UK Ltd,Equipment & Materials Carriage/Handling Charge,2008508,201812,
Rother District Council,11/03/2019,041ENVIRON,Environmental Services,32134,EH Pollution R + W Partnership,D1201,Equipment & Materials,4.50,Gradko International Ltd,Equipment & Materials Carriage/Handling Charge,2008293,201812,
Rother District Council,21/02/2019,041ENVIRON,Environmental Services,32140,EN Wealden Training (WEALDEN ONLY) R + W Partnership,D1201,Equipment & Materials,10.00,Highfield Awarding Body for Compliance Ltd,Equipment & Materials Carriage/Handling Charge,2007925,201812,
Rother District Council,10/12/2018,101RESOURCES,Resources,20239,Computer Services,D1201,Equipment & Materials,6.95,Lloyds Bank,Equipment & Materials Carriage/Handling Charge,2007084,201811,
Rother District Council,10/12/2018,101RESOURCES,Resources,20239,Computer Services,D1201,Equipment & Materials,5.29,Lloyds Bank,Equipment & Materials Carriage/Handling Charge,2007084,201811,
